Workbook

Sheet Cover
D1: FY2024 Budget Data Entry Template
D2: Due Date: June 1st, 2023 | U2: =VLOOKUP($F$6,'NEW CODES'!$C$2:$D$130,2,FALSE) -> 
D3: Vermont Agency of Education Help Desk (802) 828-1017
C4: Please create a folder on your "Local Disk" C drive called "BUDGET" before using this template | J4: The following applies to SUs with multiple districts (an oxymoron . . .): | U4: =IF(SUM(Expenditures!$G$2:$G$11,Expenditures!$G$13,Expenditures!$G$15:$G$21)<>SUM(Revenues!$G$2:$G$8,Revenues!$G$10:$G$19,Revenues!$G$21:$G$27,Revenues!$G$29:$G$32,Revenues!$G$34:$G$37,Revenues!$G$39,Revenues!$G$41:$G$42,Revenues!$G$44:$G$51),1,0) -> 0 | V4: =IF(U4=1,"Revenues do not equal expenditures!","") -> 
B6: Please Select Your Organization: | D6: ** SELECT DISTRICT ** | F6: =IFERROR(VLOOKUP(D6,'NEW CODES'!B2:C130,2,FALSE),"X") -> X | J6: The 5% local share of SpEd extraordinary costs are at the SU level.
J7: I need them at the district level in order to use them as exclusions for excess spending.
J8: You will have to break them out and send them back to me in this file.
J9: I will send you the data at the SU level so you can do that. You're welcome.
J10: I will take your data and use it when I look at the excess spending.
J11: Feel free to overwrite the formula in G24 on the Expenditure tab (F8121), even though it says not to.
J12: If you have become a Supervisory District, you can completely ignore this section now that you've read it.
B18: Please submit budget data file to
B19: Nicole Gray: | F19: If total revenues do not equal total expenditures,
B20: nicole.gray@vermont.gov | F20: a message will appear in the box below until they do equal.
D23: Did you create a folder on your "Local Disk" C drive Called "BUDGET"?
F24: The function 8000 amounts and any amounts in fund 6 do not count.

Sheet Expenditures
A1: DSTID | B1: TYP | C1: FUND | D1: FUND DESCRIPTION | E1: FUNC | F1: FUNCTION DESCRIPTION | G1: AMOUNT | H1: FY | J1: FY23 Exp
A2: =Cover!F$6 -> X | B2: E | C2: 1 | D2: =IF(C2="1","LOCAL EDUCATION","CAPITAL PROJECT FUNDS") -> LOCAL EDUCATION | E2: 1000 | F2: DIRECT INSTR-EXCEPT TECH CTR TUITION | H2: FY24 | J2: =IF(OR($C2="1",$C2="7"),SUMIFS(FY23Exp!$I$2:$I$1922,FY23Exp!$C$2:$C$1922,$A2,FY23Exp!$G$2:$G$1922,$E2),"??") -> 0
A3: =Cover!F$6 -> X | B3: E | C3: 1 | D3: =IF(C3="1","LOCAL EDUCATION","CAPITAL PROJECT FUNDS") -> LOCAL EDUCATION | E3: 1568 | F3: OBJ 568-TCH CTR TUIT/AMT STATE PAYS FOR DST | G3: =SUMIF(FY23prefillData!$A$3:$A$329,$A3,FY23prefillData!$D$3:$D$329) -> 0 | H3: FY24 | J3: =IF(OR($C3="1",$C3="7"),SUMIFS(FY23Exp!$I$2:$I$1922,FY23Exp!$C$2:$C$1922,$A3,FY23Exp!$G$2:$G$1922,$E3),"??") -> 0 | L3: Formula in cell - do not delete
A4: =Cover!F$6 -> X | B4: E | C4: 1 | D4: LOCAL EDUCATION | E4: 1569 | F4: OBJ 569-DISTRICT TUITION TO TECH CNTRS | H4: FY24 | J4: =IF(OR($C4="1",$C4="7"),SUMIFS(FY23Exp!$I$2:$I$1922,FY23Exp!$C$2:$C$1922,$A4,FY23Exp!$G$2:$G$1922,$E4),"??") -> 0
A5: =Cover!F$6 -> X | B5: E | C5: 1 | D5: LOCAL EDUCATION | E5: 2396 | F5: ADMINISTRATIVE SUPPORT SERVICES - LEA | H5: FY24 | J5: =IF(OR($C5="1",$C5="7"),SUMIFS(FY23Exp!$I$2:$I$1922,FY23Exp!$C$2:$C$1922,$A5,FY23Exp!$G$2:$G$1922,$E5),"??") -> 0
A6: =Cover!F$6 -> X | B6: E | C6: 1 | D6: LOCAL EDUCATION | E6: 2397 | F6: ADMINISTRATIVE SUPPORT SERV. - ASSESS TO SU | H6: FY24 | J6: =IF(OR($C6="1",$C6="7"),SUMIFS(FY23Exp!$I$2:$I$1922,FY23Exp!$C$2:$C$1922,$A6,FY23Exp!$G$2:$G$1922,$E6),"??") -> 0
A7: =Cover!F$6 -> X | B7: E | C7: 1 | D7: LOCAL EDUCATION | E7: 2999 | F7: ALL FUNC 2000 SUPPORT SERV. NOT INCL. ABOVE | H7: FY24 | J7: =IF(OR($C7="1",$C7="7"),SUMIFS(FY23Exp!$I$2:$I$1922,FY23Exp!$C$2:$C$1922,$A7,FY23Exp!$G$2:$G$1922,$E7),"??") -> 0
A8: =Cover!F$6 -> X | B8: E | C8: 1 | D8: LOCAL EDUCATION | E8: 3100 | F8: FOOD SERVICES | H8: FY24 | J8: =IF(OR($C8="1",$C8="7"),SUMIFS(FY23Exp!$I$2:$I$1922,FY23Exp!$C$2:$C$1922,$A8,FY23Exp!$G$2:$G$1922,$E8),"??") -> 0
A9: =Cover!F$6 -> X | B9: E | C9: 1 | D9: LOCAL EDUCATION | E9: 3200 | F9: ENTERPRISE OPERATIONS | H9: FY24 | J9: =IF(OR($C9="1",$C9="7"),SUMIFS(FY23Exp!$I$2:$I$1922,FY23Exp!$C$2:$C$1922,$A9,FY23Exp!$G$2:$G$1922,$E9),"??") -> 0
A10: =Cover!F$6 -> X | B10: E | C10: 1 | D10: LOCAL EDUCATION | E10: 3300 | F10: COMMUNITY SERVICES | H10: FY24 | J10: =IF(OR($C10="1",$C10="7"),SUMIFS(FY23Exp!$I$2:$I$1922,FY23Exp!$C$2:$C$1922,$A10,FY23Exp!$G$2:$G$1922,$E10),"??") -> 0
A11: =Cover!F$6 -> X | B11: E | C11: 1 | D11: LOCAL EDUCATION | E11: 4000 | F11: FACILITY ACQUISITION AND CONSTRUCTION | H11: FY24 | J11: =IF(OR($C11="1",$C11="7"),SUMIFS(FY23Exp!$I$2:$I$1922,FY23Exp!$C$2:$C$1922,$A11,FY23Exp!$G$2:$G$1922,$E11),"??") -> 0
A12: =Cover!F$6 -> X | B12: E | C12: 6 | D12: CAPITAL PROJECT FUNDS | E12: 4000 | F12: FACILITY ACQUISITION AND CONSTRUCTION | H12: FY24 | J12: =IF(OR($C12="1",$C12="7"),SUMIFS(FY23Exp!$I$2:$I$1922,FY23Exp!$C$2:$C$1922,$A12,FY23Exp!$G$2:$G$1922,$E12),"??") -> ??
A13: =Cover!F$6 -> X | B13: E | C13: 1 | D13: LOCAL EDUCATION | E13: 5100 | F13: OTHER-DEBT SERVICE | H13: FY24 | J13: =IF(OR($C13="1",$C13="7"),SUMIFS(FY23Exp!$I$2:$I$1922,FY23Exp!$C$2:$C$1922,$A13,FY23Exp!$G$2:$G$1922,$E13),"??") -> 0
A14: =Cover!F$6 -> X | B14: E | C14: 6 | D14: CAPITAL PROJECT FUNDS | E14: 5100 | F14: OTHER-DEBT SERVICE | H14: FY24 | J14: =IF(OR($C14="1",$C14="7"),SUMIFS(FY23Exp!$I$2:$I$1922,FY23Exp!$C$2:$C$1922,$A14,FY23Exp!$G$2:$G$1922,$E14),"??") -> ??
A15: =Cover!F$6 -> X | B15: E | C15: 1 | D15: LOCAL EDUCATION | E15: 5210 | F15: ADJUSTMENTS/REPAYMENTS TO THE STATE | H15: FY24 | J15: =IF(OR($C15="1",$C15="7"),SUMIFS(FY23Exp!$I$2:$I$1922,FY23Exp!$C$2:$C$1922,$A15,FY23Exp!$G$2:$G$1922,$E15),"??") -> 0
A16: =Cover!F$6 -> X | B16: E | C16: 1 | D16: LOCAL EDUCATION | E16: 5310 | F16: TRANSFERS TO ENTERPRISE FUNDS | H16: FY24 | J16: =IF(OR($C16="1",$C16="7"),SUMIFS(FY23Exp!$I$2:$I$1922,FY23Exp!$C$2:$C$1922,$A16,FY23Exp!$G$2:$G$1922,$E16),"??") -> 0
A17: =Cover!F$6 -> X | B17: E | C17: 1 | D17: LOCAL EDUCATION | E17: 5350 | F17: CONTRS TO RSRVD ACCTS (INC. FUNC 5352) | H17: FY24 | J17: =IF(OR($C17="1",$C17="7"),SUMIFS(FY23Exp!$I$2:$I$1922,FY23Exp!$C$2:$C$1922,$A17,FY23Exp!$G$2:$G$1922,$E17),"??") -> 0
A18: =Cover!F$6 -> X | B18: E | C18: 1 | D18: LOCAL EDUCATION | E18: 5353 | F18: TRANSFER TO QSCB DEBT SERVICE FUND | H18: FY24 | J18: =IF(OR($C18="1",$C18="7"),SUMIFS(FY23Exp!$I$2:$I$1922,FY23Exp!$C$2:$C$1922,$A18,FY23Exp!$G$2:$G$1922,$E18),"??") -> 0
A19: =Cover!F$6 -> X | B19: E | C19: 1 | D19: LOCAL EDUCATION | E19: 5390 | F19: OTHER-FUND TRANSFERS | H19: FY24 | J19: =IF(OR($C19="1",$C19="7"),SUMIFS(FY23Exp!$I$2:$I$1922,FY23Exp!$C$2:$C$1922,$A19,FY23Exp!$G$2:$G$1922,$E19),"??") -> 0
A20: =Cover!F$6 -> X | B20: E | C20: 1 | D20: LOCAL EDUCATION | E20: 5500 | F20: OTHER-SUBGRANTS | H20: FY24 | J20: =IF(OR($C20="1",$C20="7"),SUMIFS(FY23Exp!$I$2:$I$1922,FY23Exp!$C$2:$C$1922,$A20,FY23Exp!$G$2:$G$1922,$E20),"??") -> 0
A21: =Cover!F$6 -> X | B21: E | C21: 1 | D21: LOCAL EDUCATION | E21: 6999 | F21: DEFICIT | H21: FY24 | J21: =IF(OR($C21="1",$C21="7"),SUMIFS(FY23Exp!$I$2:$I$1922,FY23Exp!$C$2:$C$1922,$A21,FY23Exp!$G$2:$G$1922,$E21),"??") -> 0
A22: =Cover!F$6 -> X | B22: E | C22: 6 | D22: CAPITAL PROJECT FUNDS | E22: 6999 | F22: DEFICIT | H22: FY24 | J22: =IF(OR($C22="1",$C22="7"),SUMIFS(FY23Exp!$I$2:$I$1922,FY23Exp!$C$2:$C$1922,$A22,FY23Exp!$G$2:$G$1922,$E22),"??") -> ??
A23: =Cover!F$6 -> X | B23: E | C23: 1 | D23: LOCAL EDUCATION | E23: 8112 | F23: DEFICIT FOR NEW SPED 20 | H23: FY24 | J23: =IF(OR($C23="1",$C23="7"),SUMIFS(FY23Exp!$I$2:$I$1922,FY23Exp!$C$2:$C$1922,$A23,FY23Exp!$G$2:$G$1922,$E23),"??") -> 0
A24: =Cover!F$6 -> X | B24: E | C24: 1 | D24: LOCAL EDUCATION | E24: 8121 | F24: SPED IN EXCESS OF 60K | G24: =SUMIF(FY23prefillData!$A$3:$A$329,$A24,FY23prefillData!$E$3:$E$329) -> 0 | H24: FY24 | J24: =IF(OR($C24="1",$C24="7"),SUMIFS(FY23Exp!$I$2:$I$1922,FY23Exp!$C$2:$C$1922,$A24,FY23Exp!$G$2:$G$1922,$E24),"??") -> 0 | L24: Formula in cell - do not delete
A25: =Cover!F$6 -> X | B25: E | C25: 1 | D25: LOCAL EDUCATION | E25: 8125 | F25: DEFICIT FROM NEW TUITION | H25: FY24 | J25: =IF(OR($C25="1",$C25="7"),SUMIFS(FY23Exp!$I$2:$I$1922,FY23Exp!$C$2:$C$1922,$A25,FY23Exp!$G$2:$G$1922,$E25),"??") -> 0
A26: =Cover!F$6 -> X | B26: E | C26: 1 | D26: LOCAL EDUCATION | E26: 8130 | F26: PLANNING COSTS FOR SMALL SCHOOLS MERGER | H26: FY24 | J26: =IF(OR($C26="1",$C26="7"),SUMIFS(FY23Exp!$I$2:$I$1922,FY23Exp!$C$2:$C$1922,$A26,FY23Exp!$G$2:$G$1922,$E26),"??") -> 0
A27: =Cover!F$6 -> X | B27: E | C27: 1 | D27: LOCAL EDUCATION | E27: 8888 | F27: ELIGIBLE CAP CONST/DEBT SERVICE FOR ALL ELIG.PROJS | H27: FY24 | J27: =IF(OR($C27="1",$C27="7"),SUMIFS(FY23Exp!$I$2:$I$1922,FY23Exp!$C$2:$C$1922,$A27,FY23Exp!$G$2:$G$1922,$E27),"??") -> 0
A28: =Cover!F$6 -> X | B28: E | C28: 1 | D28: =IF(C28="1","LOCAL EDUCATION","CAPITAL PROJECT FUNDS") -> LOCAL EDUCATION | E28: 8135 | F28: ASSESSMENTS TO VERMONT TEACHERS RETIREMENT SYSTEM | H28: FY24 | J28: =IF(OR($C28="1",$C28="7"),SUMIFS(FY23Exp!$I$2:$I$1922,FY23Exp!$C$2:$C$1922,$A28,FY23Exp!$G$2:$G$1922,$E28),"??") -> 0
A29: =Cover!F$6 -> X | B29: E | C29: 1 | D29: =IF(C29="1","LOCAL EDUCATION","CAPITAL PROJECT FUNDS") -> LOCAL EDUCATION | E29: 8140 | F29: COSTS FOR DUAL ENROLLMENT AND EARLY COLLEGE | H29: FY24 | J29: =IF(OR($C29="1",$C29="7"),SUMIFS(FY23Exp!$I$2:$I$1922,FY23Exp!$C$2:$C$1922,$A29,FY23Exp!$G$2:$G$1922,$E29),"??") -> 0
A30: =Cover!F$6 -> X | B30: E | C30: 1 | D30: =IF(C30="1","LOCAL EDUCATION","CAPITAL PROJECT FUNDS") -> LOCAL EDUCATION | E30: 8145 | F30: COSTS FOR LEAD SAMPLING, REMEDIATION AND RETESTING | H30: FY24 | J30: =IF(OR($C30="1",$C30="7"),SUMIFS(FY23Exp!$I$2:$I$1922,FY23Exp!$C$2:$C$1922,$A30,FY23Exp!$G$2:$G$1922,$E30),"??") -> 0
A31: =IF(ISERROR(VLOOKUP(Cover!F6,LISTvoc!A2:A12,1,FALSE))=TRUE,"",VLOOKUP(Cover!F6,LISTvoc!A2:A12,1,FALSE)) ->  | B31: =IF(C31="1","E","") ->  | C31: =IF(A31=Cover!F6,"1","") ->  | D31: =IF(C31="1","LOCAL EDUCATION","") ->  | E31: =IF(B31="E","2398","") ->  | F31: =IF(E31="2398","ADMINISTRATIVE SUPPORT SERVICES, TECH CENTER","") ->  | H31: =IF($C31="1","FY24","") ->  | J31: =IF(OR($C31="1",$C31="7"),SUMIFS(FY23Exp!$I$2:$I$1922,FY23Exp!$C$2:$C$1922,$A31,FY23Exp!$G$2:$G$1922,$E31),"??") -> ??

Sheet Revenues
A1: DISTID | B1: TYP | C1: FUND | D1: Fund Description | E1: FUNC | F1: FUNCTION DESCRIPTION | G1: AMOUNT | H1: FY | J1: FY23 Rev
A2: =Cover!F6 -> X | B2: R | C2: 5 | D2: =IF(C2="5","GENERAL FUND","CAPITAL PROJECT FUNDS") -> GENERAL FUND | E2: 1110 | F2: SPECIAL PROPERTY TAX ASSMT(FOR SOME INCORP. DISTS) | H2: FY24 | J2: =IF(OR($C2="5",$C2="7"),SUMIFS(FY23Rev!$I$2:$I$1996,FY23Rev!$B$2:$B$1996,$A2,FY23Rev!$G$2:$G$1996,$E2),"??") -> 0
A3: =Cover!F6 -> X | B3: R | C3: 5 | D3: =IF(C3="5","GENERAL FUND","CAPITAL PROJECT FUNDS") -> GENERAL FUND | E3: 1170 | F3: NON-PROPERTY TAXES/IMPACT FEES | H3: FY24 | J3: =IF(OR($C3="5",$C3="7"),SUMIFS(FY23Rev!$I$2:$I$1996,FY23Rev!$B$2:$B$1996,$A3,FY23Rev!$G$2:$G$1996,$E3),"??") -> 0
A4: =Cover!F6 -> X | B4: R | C4: 5 | D4: GENERAL FUND | E4: 1180 | F4: DELINQ TAXES/RELATED PENALTIES/INT (INCORP DIST) | H4: FY24 | J4: =IF(OR($C4="5",$C4="7"),SUMIFS(FY23Rev!$I$2:$I$1996,FY23Rev!$B$2:$B$1996,$A4,FY23Rev!$G$2:$G$1996,$E4),"??") -> 0
A5: =Cover!F6 -> X | B5: R | C5: 5 | D5: GENERAL FUND | E5: 1200 | F5: REVENUES FROM LOCAL GOVERNMENT - NOT LEAS | H5: FY24 | J5: =IF(OR($C5="5",$C5="7"),SUMIFS(FY23Rev!$I$2:$I$1996,FY23Rev!$B$2:$B$1996,$A5,FY23Rev!$G$2:$G$1996,$E5),"??") -> 0
A6: =Cover!F6 -> X | B6: R | C6: 5 | D6: GENERAL FUND | E6: 1300 | F6: TUITION RECEIVED | H6: FY24 | J6: =IF(OR($C6="5",$C6="7"),SUMIFS(FY23Rev!$I$2:$I$1996,FY23Rev!$B$2:$B$1996,$A6,FY23Rev!$G$2:$G$1996,$E6),"??") -> 0
A7: =Cover!F6 -> X | B7: R | C7: 5 | D7: GENERAL FUND | E7: 1400 | F7: TRANSPORTATION FEES RECEIVED | H7: FY24 | J7: =IF(OR($C7="5",$C7="7"),SUMIFS(FY23Rev!$I$2:$I$1996,FY23Rev!$B$2:$B$1996,$A7,FY23Rev!$G$2:$G$1996,$E7),"??") -> 0
A8: =Cover!F6 -> X | B8: R | C8: 5 | D8: GENERAL FUND | E8: 1500 | F8: EARNINGS ON INVESTMENTS | H8: FY24 | J8: =IF(OR($C8="5",$C8="7"),SUMIFS(FY23Rev!$I$2:$I$1996,FY23Rev!$B$2:$B$1996,$A8,FY23Rev!$G$2:$G$1996,$E8),"??") -> 0
A9: =Cover!F6 -> X | B9: R | C9: 6 | D9: CAPITAL PROJECT FUNDS | E9: 1500 | F9: EARNINGS ON INVESTMENTS | H9: FY24 | J9: =IF(OR($C9="5",$C9="7"),SUMIFS(FY23Rev!$I$2:$I$1996,FY23Rev!$B$2:$B$1996,$A9,FY23Rev!$G$2:$G$1996,$E9),"??") -> ??
A10: =Cover!F6 -> X | B10: R | C10: 5 | D10: GENERAL FUND | E10: 1600 | F10: FOOD SERVICE (IF EXPENDITURES INCLUDED IN BUDGET) | H10: FY24 | J10: =IF(OR($C10="5",$C10="7"),SUMIFS(FY23Rev!$I$2:$I$1996,FY23Rev!$B$2:$B$1996,$A10,FY23Rev!$G$2:$G$1996,$E10),"??") -> 0
A11: =Cover!F6 -> X | B11: R | C11: 5 | D11: GENERAL FUND | E11: 1700 | F11: INCOME FROM STUDENT ACTIVITIES (NOT AGENCY FUNDS) | H11: FY24 | J11: =IF(OR($C11="5",$C11="7"),SUMIFS(FY23Rev!$I$2:$I$1996,FY23Rev!$B$2:$B$1996,$A11,FY23Rev!$G$2:$G$1996,$E11),"??") -> 0
A12: =Cover!F6 -> X | B12: R | C12: 5 | D12: GENERAL FUND | E12: 1800 | F12: REVENUE FROM COMMUNITY SERVICE ACTIVITIES | H12: FY24 | J12: =IF(OR($C12="5",$C12="7"),SUMIFS(FY23Rev!$I$2:$I$1996,FY23Rev!$B$2:$B$1996,$A12,FY23Rev!$G$2:$G$1996,$E12),"??") -> 0
A13: =Cover!F6 -> X | B13: R | C13: 5 | D13: GENERAL FUND | E13: 1920 | F13: CONTRIBUTIONS AND DONATIONS RAISED BY THE LEA | H13: FY24 | J13: =IF(OR($C13="5",$C13="7"),SUMIFS(FY23Rev!$I$2:$I$1996,FY23Rev!$B$2:$B$1996,$A13,FY23Rev!$G$2:$G$1996,$E13),"??") -> 0
A14: =Cover!F6 -> X | B14: R | C14: 5 | D14: GENERAL FUND | E14: 1999 | F14: ALL OTHER 1900 REVENUES (EXCEPT ACT 144 REVENUES) | H14: FY24 | J14: =IF(OR($C14="5",$C14="7"),SUMIFS(FY23Rev!$I$2:$I$1996,FY23Rev!$B$2:$B$1996,$A14,FY23Rev!$G$2:$G$1996,$E14),"??") -> 0
A15: =Cover!F6 -> X | B15: R | C15: 5 | D15: GENERAL FUND | E15: 2000 | F15: INTRMED. REVS - SUBGRANTS FROM SU-ALL EXC. ARRA FUNDS | H15: FY24 | J15: =IF(OR($C15="5",$C15="7"),SUMIFS(FY23Rev!$I$2:$I$1996,FY23Rev!$B$2:$B$1996,$A15,FY23Rev!$G$2:$G$1996,$E15),"??") -> 0
A16: =Cover!F6 -> X | B16: R | C16: 5 | D16: GENERAL FUND | E16: 2950 | F16: INTRMED.REVS - SUBGRANTS FROM SU-ALL ARRA FUNDS | H16: FY24 | J16: =IF(OR($C16="5",$C16="7"),SUMIFS(FY23Rev!$I$2:$I$1996,FY23Rev!$B$2:$B$1996,$A16,FY23Rev!$G$2:$G$1996,$E16),"??") -> 0
A17: =Cover!F6 -> X | B17: R | C17: 5 | D17: GENERAL FUND | E17: 3110 | F17: EDUCATION SPENDING GRANT | H17: FY24 | J17: =IF(OR($C17="5",$C17="7"),SUMIFS(FY23Rev!$I$2:$I$1996,FY23Rev!$B$2:$B$1996,$A17,FY23Rev!$G$2:$G$1996,$E17),"??") -> 0
A18: =Cover!F6 -> X | B18: R | C18: 5 | D18: =IF(C18="5","GENERAL FUND","CAPITAL PROJECT FUNDS") -> GENERAL FUND | E18: 3114 | F18: SUP TUITION GRANT FOR TECH CTRS DISTRIB BY STATE | G18: =SUMIF(FY23prefillData!$A$3:$A$329,$A18,FY23prefillData!$D$3:$D$329) -> 0 | H18: FY24 | J18: =IF(OR($C18="5",$C18="7"),SUMIFS(FY23Rev!$I$2:$I$1996,FY23Rev!$B$2:$B$1996,$A18,FY23Rev!$G$2:$G$1996,$E18),"??") -> 0 | L18: Formula in cell - do not delete
A19: =Cover!F6 -> X | B19: R | C19: 5 | D19: GENERAL FUND | E19: 3130 | F19: CONSTRUCTION AID--INCLUDES REVCODES 3130 AND 3135 | H19: FY24 | J19: =IF(OR($C19="5",$C19="7"),SUMIFS(FY23Rev!$I$2:$I$1996,FY23Rev!$B$2:$B$1996,$A19,FY23Rev!$G$2:$G$1996,$E19),"??") -> 0
A20: =Cover!F6 -> X | B20: R | C20: 6 | D20: CAPITAL PROJECT FUNDS | E20: 3130 | F20: CONSTRUCTION AID--INCLUDES REVCODES 3130 AND 3135 | H20: FY24 | J20: =IF(OR($C20="5",$C20="7"),SUMIFS(FY23Rev!$I$2:$I$1996,FY23Rev!$B$2:$B$1996,$A20,FY23Rev!$G$2:$G$1996,$E20),"??") -> ??
A21: =Cover!F6 -> X | B21: R | C21: 5 | D21: GENERAL FUND | E21: 3145 | F21: SMALL SCHOOLS GRANT | H21: FY24 | J21: =IF(OR($C21="5",$C21="7"),SUMIFS(FY23Rev!$I$2:$I$1996,FY23Rev!$B$2:$B$1996,$A21,FY23Rev!$G$2:$G$1996,$E21),"??") -> 0
A22: =Cover!F6 -> X | B22: R | C22: 5 | D22: GENERAL FUND | E22: 3146 | F22: SMALL SCHOOLS FINANCIAL STABILITY GRANT | H22: FY24 | J22: =IF(OR($C22="5",$C22="7"),SUMIFS(FY23Rev!$I$2:$I$1996,FY23Rev!$B$2:$B$1996,$A22,FY23Rev!$G$2:$G$1996,$E22),"??") -> 0
A23: =Cover!F6 -> X | B23: R | C23: 5 | D23: GENERAL FUND | E23: 3150 | F23: STATE AID TRANSPORTATION | H23: FY24 | J23: =IF(OR($C23="5",$C23="7"),SUMIFS(FY23Rev!$I$2:$I$1996,FY23Rev!$B$2:$B$1996,$A23,FY23Rev!$G$2:$G$1996,$E23),"??") -> 0
A24: =Cover!F6 -> X | B24: R | C24: 5 | D24: GENERAL FUND | E24: 3152 | F24: STATE AID TRANSPORTATION - EXTRAORDINARY | H24: FY24 | J24: =IF(OR($C24="5",$C24="7"),SUMIFS(FY23Rev!$I$2:$I$1996,FY23Rev!$B$2:$B$1996,$A24,FY23Rev!$G$2:$G$1996,$E24),"??") -> 0
A25: =Cover!F6 -> X | B25: R | C25: 5 | D25: GENERAL FUND | E25: 3170 | F25: ACT 153 REVENUE | H25: FY24 | J25: =IF(OR($C25="5",$C25="7"),SUMIFS(FY23Rev!$I$2:$I$1996,FY23Rev!$B$2:$B$1996,$A25,FY23Rev!$G$2:$G$1996,$E25),"??") -> 0
A26: =Cover!F6 -> X | B26: R | C26: 5 | D26: GENERAL FUND | E26: 3199 | F26: ALL OTHER 3100 REVENUE | H26: FY24 | J26: =IF(OR($C26="5",$C26="7"),SUMIFS(FY23Rev!$I$2:$I$1996,FY23Rev!$B$2:$B$1996,$A26,FY23Rev!$G$2:$G$1996,$E26),"??") -> 0
A27: =Cover!F6 -> X | B27: R | C27: 5 | D27: GENERAL FUND | E27: 3200 | F27: RESTRICTED REVENUE (3200-3799) | H27: FY24 | J27: =IF(OR($C27="5",$C27="7"),SUMIFS(FY23Rev!$I$2:$I$1996,FY23Rev!$B$2:$B$1996,$A27,FY23Rev!$G$2:$G$1996,$E27),"??") -> 0
A28: =Cover!F6 -> X | B28: R | C28: 6 | D28: CAPITAL PROJECT FUNDS | E28: 3200 | F28: RESTRICTED REVENUE (3200-3799) | H28: FY24 | J28: =IF(OR($C28="5",$C28="7"),SUMIFS(FY23Rev!$I$2:$I$1996,FY23Rev!$B$2:$B$1996,$A28,FY23Rev!$G$2:$G$1996,$E28),"??") -> ??
A29: =Cover!F6 -> X | B29: R | C29: 5 | D29: GENERAL FUND | E29: 3999 | F29: ALL 3800 AND 3900 REVENUES | H29: FY24 | J29: =IF(OR($C29="5",$C29="7"),SUMIFS(FY23Rev!$I$2:$I$1996,FY23Rev!$B$2:$B$1996,$A29,FY23Rev!$G$2:$G$1996,$E29),"??") -> 0
A30: =Cover!F6 -> X | B30: R | C30: 5 | D30: GENERAL FUND | E30: 4100 | F30: UNRESTRICTED GRANTS | H30: FY24 | J30: =IF(OR($C30="5",$C30="7"),SUMIFS(FY23Rev!$I$2:$I$1996,FY23Rev!$B$2:$B$1996,$A30,FY23Rev!$G$2:$G$1996,$E30),"??") -> 0
A31: =Cover!F6 -> X | B31: R | C31: 5 | D31: GENERAL FUND | E31: 4120 | F31: EDUCATION JOBS FUND | H31: FY24 | J31: =IF(OR($C31="5",$C31="7"),SUMIFS(FY23Rev!$I$2:$I$1996,FY23Rev!$B$2:$B$1996,$A31,FY23Rev!$G$2:$G$1996,$E31),"??") -> 0
A32: =Cover!F6 -> X | B32: R | C32: 5 | D32: GENERAL FUND | E32: 4200 | F32: RESTRICTED REVENUE (4200-4799) | H32: FY24 | J32: =IF(OR($C32="5",$C32="7"),SUMIFS(FY23Rev!$I$2:$I$1996,FY23Rev!$B$2:$B$1996,$A32,FY23Rev!$G$2:$G$1996,$E32),"??") -> 0
A33: =Cover!F6 -> X | B33: R | C33: 6 | D33: CAPITAL PROJECT FUNDS | E33: 4200 | F33: RESTRICTED REVENUE (4200-4799) | H33: FY24 | J33: =IF(OR($C33="5",$C33="7"),SUMIFS(FY23Rev!$I$2:$I$1996,FY23Rev!$B$2:$B$1996,$A33,FY23Rev!$G$2:$G$1996,$E33),"??") -> ??
A34: =Cover!F6 -> X | B34: R | C34: 5 | D34: GENERAL FUND | E34: 4800 | F34: FEDERAL OFFSET PAYMENTS | H34: FY24 | J34: =IF(OR($C34="5",$C34="7"),SUMIFS(FY23Rev!$I$2:$I$1996,FY23Rev!$B$2:$B$1996,$A34,FY23Rev!$G$2:$G$1996,$E34),"??") -> 0
A35: =Cover!F6 -> X | B35: R | C35: 5 | D35: GENERAL FUND | E35: 4900 | F35: REVENUE FOR/ON BEHALF OF THE LEA | H35: FY24 | J35: =IF(OR($C35="5",$C35="7"),SUMIFS(FY23Rev!$I$2:$I$1996,FY23Rev!$B$2:$B$1996,$A35,FY23Rev!$G$2:$G$1996,$E35),"??") -> 0
A36: =Cover!F6 -> X | B36: R | C36: 5 | D36: GENERAL FUND | E36: 4950 | F36: RESTRICTED FEDERAL REVENUE, ARRA | H36: FY24 | J36: =IF(OR($C36="5",$C36="7"),SUMIFS(FY23Rev!$I$2:$I$1996,FY23Rev!$B$2:$B$1996,$A36,FY23Rev!$G$2:$G$1996,$E36),"??") -> 0
A37: =Cover!F6 -> X | B37: R | C37: 5 | D37: GENERAL FUND | E37: 5100 | F37: PROCEEDS FROM BONDS/OTHER LONGTERM BORROWING | H37: FY24 | J37: =IF(OR($C37="5",$C37="7"),SUMIFS(FY23Rev!$I$2:$I$1996,FY23Rev!$B$2:$B$1996,$A37,FY23Rev!$G$2:$G$1996,$E37),"??") -> 0
A38: =Cover!F6 -> X | B38: R | C38: 6 | D38: CAPITAL PROJECT FUNDS | E38: 5100 | F38: PROCEEDS FROM BONDS/OTHER LONGTERM BORROWING | H38: FY24 | J38: =IF(OR($C38="5",$C38="7"),SUMIFS(FY23Rev!$I$2:$I$1996,FY23Rev!$B$2:$B$1996,$A38,FY23Rev!$G$2:$G$1996,$E38),"??") -> ??
A39: =Cover!F6 -> X | B39: R | C39: 5 | D39: GENERAL FUND | E39: 5230 | F39: TRANSFERS FROM RESERVED ACCOUNTS INCL 5232 | H39: FY24 | J39: =IF(OR($C39="5",$C39="7"),SUMIFS(FY23Rev!$I$2:$I$1996,FY23Rev!$B$2:$B$1996,$A39,FY23Rev!$G$2:$G$1996,$E39),"??") -> 0
A40: =Cover!F6 -> X | B40: R | C40: 6 | D40: CAPITAL PROJECT FUNDS | E40: 5230 | F40: TRANSFERS FROM RESERVED ACCOUNTS INCL 5232 | H40: FY24 | J40: =IF(OR($C40="5",$C40="7"),SUMIFS(FY23Rev!$I$2:$I$1996,FY23Rev!$B$2:$B$1996,$A40,FY23Rev!$G$2:$G$1996,$E40),"??") -> ??
A41: =Cover!F6 -> X | B41: R | C41: 5 | D41: GENERAL FUND | E41: 5233 | F41: TRANSFER FROM QSCB DEBT SERVICE FUND | H41: FY24 | J41: =IF(OR($C41="5",$C41="7"),SUMIFS(FY23Rev!$I$2:$I$1996,FY23Rev!$B$2:$B$1996,$A41,FY23Rev!$G$2:$G$1996,$E41),"??") -> 0
A42: =Cover!F6 -> X | B42: R | C42: 5 | D42: GENERAL FUND | E42: 5299 | F42: OTHER TRANSFERS | H42: FY24 | J42: =IF(OR($C42="5",$C42="7"),SUMIFS(FY23Rev!$I$2:$I$1996,FY23Rev!$B$2:$B$1996,$A42,FY23Rev!$G$2:$G$1996,$E42),"??") -> 0
A43: =Cover!F6 -> X | B43: R | C43: 6 | D43: CAPITAL PROJECT FUNDS | E43: 5299 | F43: OTHER TRANSFERS | H43: FY24 | J43: =IF(OR($C43="5",$C43="7"),SUMIFS(FY23Rev!$I$2:$I$1996,FY23Rev!$B$2:$B$1996,$A43,FY23Rev!$G$2:$G$1996,$E43),"??") -> ??
A44: =Cover!F6 -> X | B44: R | C44: 5 | D44: GENERAL FUND | E44: 5300 | F44: SALE OR COMPENSATION FOR LOSS OF FIXED ASSETS | H44: FY24 | J44: =IF(OR($C44="5",$C44="7"),SUMIFS(FY23Rev!$I$2:$I$1996,FY23Rev!$B$2:$B$1996,$A44,FY23Rev!$G$2:$G$1996,$E44),"??") -> 0
A45: =Cover!F6 -> X | B45: R | C45: 5 | D45: GENERAL FUND | E45: 5400 | F45: ADJUSTMENTS FOR PRIOR YEAR EXPENDITURES | H45: FY24 | J45: =IF(OR($C45="5",$C45="7"),SUMIFS(FY23Rev!$I$2:$I$1996,FY23Rev!$B$2:$B$1996,$A45,FY23Rev!$G$2:$G$1996,$E45),"??") -> 0
A46: =Cover!F6 -> X | B46: R | C46: 5 | D46: GENERAL FUND | E46: 5480 | F46: MEDICAID-INCLUDES REVENUE CODES 5481-5483 | H46: FY24 | J46: =IF(OR($C46="5",$C46="7"),SUMIFS(FY23Rev!$I$2:$I$1996,FY23Rev!$B$2:$B$1996,$A46,FY23Rev!$G$2:$G$1996,$E46),"??") -> 0
A47: =Cover!F6 -> X | B47: R | C47: 5 | D47: GENERAL FUND | E47: 5500 | F47: CAPITAL LEASES | H47: FY24 | J47: =IF(OR($C47="5",$C47="7"),SUMIFS(FY23Rev!$I$2:$I$1996,FY23Rev!$B$2:$B$1996,$A47,FY23Rev!$G$2:$G$1996,$E47),"??") -> 0
A48: =Cover!F6 -> X | B48: R | C48: 5 | D48: GENERAL FUND | E48: 5600 | F48: LEASE PURCHASES | H48: FY24 | J48: =IF(OR($C48="5",$C48="7"),SUMIFS(FY23Rev!$I$2:$I$1996,FY23Rev!$B$2:$B$1996,$A48,FY23Rev!$G$2:$G$1996,$E48),"??") -> 0
A49: =Cover!F6 -> X | B49: R | C49: 5 | D49: GENERAL FUND | E49: 5700 | F49: GRANTS-PRIVATE SOURCES THROUGH THE STATE | H49: FY24 | J49: =IF(OR($C49="5",$C49="7"),SUMIFS(FY23Rev!$I$2:$I$1996,FY23Rev!$B$2:$B$1996,$A49,FY23Rev!$G$2:$G$1996,$E49),"??") -> 0
A50: =Cover!F6 -> X | B50: R | C50: 5 | D50: GENERAL FUND | E50: 5999 | F50: ALL REVENUE 5800 THROUGH 5990 | H50: FY24 | J50: =IF(OR($C50="5",$C50="7"),SUMIFS(FY23Rev!$I$2:$I$1996,FY23Rev!$B$2:$B$1996,$A50,FY23Rev!$G$2:$G$1996,$E50),"??") -> 0
A51: =Cover!F6 -> X | B51: R | C51: 5 | D51: GENERAL FUND | E51: 6999 | F51: CARRY FWD-CUM UNRESERVED SURPLUS | H51: FY24 | J51: =IF(OR($C51="5",$C51="7"),SUMIFS(FY23Rev!$I$2:$I$1996,FY23Rev!$B$2:$B$1996,$A51,FY23Rev!$G$2:$G$1996,$E51),"??") -> 0
A52: =Cover!F6 -> X | B52: R | C52: 6 | D52: CAPITAL PROJECT FUNDS | E52: 6999 | F52: CARRY FWD-CUM UNRESERVED SURPLUS | H52: FY24 | J52: =IF(OR($C52="5",$C52="7"),SUMIFS(FY23Rev!$I$2:$I$1996,FY23Rev!$B$2:$B$1996,$A52,FY23Rev!$G$2:$G$1996,$E52),"??") -> ??
A53: =Cover!F6 -> X | B53: R | C53: 5 | D53: GENERAL FUND | E53: 8830 | F53: PLANNING COSTS FOR SMALL SCHOOLS MERGER | H53: FY24 | J53: =IF(OR($C53="5",$C53="7"),SUMIFS(FY23Rev!$I$2:$I$1996,FY23Rev!$B$2:$B$1996,$A53,FY23Rev!$G$2:$G$1996,$E53),"??") -> 0
A54: =Cover!F6 -> X | B54: R | C54: 5 | D54: GENERAL FUND | E54: 8888 | F54: CAPITAL CONST & DEBT SERVICE OFFSETTING REVENUES | H54: FY24 | J54: =IF(OR($C54="5",$C54="7"),SUMIFS(FY23Rev!$I$2:$I$1996,FY23Rev!$B$2:$B$1996,$A54,FY23Rev!$G$2:$G$1996,$E54),"??") -> 0
A55: =IF(ISERROR(VLOOKUP(Cover!F6,LISTvoc!A2:A12,1,FALSE))=TRUE,"",VLOOKUP(Cover!F6,LISTvoc!A2:A12,1,FALSE)) ->  | B55: =IF(C55="5","R","") ->  | C55: =IF(LEN(A55)>=4,"5","") ->  | D55: =IF(C55="5","GENERAL FUND","") ->  | E55: =IF(C55="5","3113","") ->  | F55: =IF(C55="5","TECHNICAL CENTER SUPPLEMENTAL ASSISTANCE GRANT","") ->  | H55: =IF(C55="5","FY24","") ->  | J55: =IF(OR($C55="5",$C55="7"),SUMIFS(FY23Rev!$I$2:$I$1996,FY23Rev!$B$2:$B$1996,$A55,FY23Rev!$G$2:$G$1996,$E55),"??") -> ??

Sheet Signature Page
F1: 2024 Budget Collection
A3: LEAID: | B3: =Cover!F6 -> X
A4: LEANAME: | B4: =Cover!$U$2 ->  | L4: Amount
A6: a1. Amount to be voted on plus tuition to self-governing technical centers | L6: =SUM('Current Year Report-Expenses'!F50)-'Current Year Report-Expenses'!F37 -> 0
A8: a2. Deficit payment (Function 6999) | L8: =SUM('Current Year Report-Expenses'!F37) -> 0
A10: A. Anticipated budgeted expenditures
B11: General Fund and total Act 144 expenditures. Includes technical center | L11: =L6+L8 -> 0
B12: tuition paid directly from the State on-behalf of the district (F1568).
B13: Includes all money the district will spend, including expenditures paid with federal revenue.
A16: B. Anticipated Revenue | L16: ='Current Year Report - Revenues'!E103 -> 0
A18: C. Less education spending grant revenues | L18: =IF(Cover!F6="U***",SUM(Revenues!G18+Revenues!G17),SUM(Revenues!G18+Revenues!G17)) -> 0
B19: Revenue codes 3110, 3114
A21: D. Anticipated net revenue (line B - line C) | L21: =L16-L18 -> 0
A24: E. Education spending (line A - line D) | L24: =L11-L21 -> 0
A27: F. Sum of ALL net eligible offsets for excess spending calculation
A28: (F8888 - R8888 + F8112 + F8121 + F8125 + F8130 + F8135 + F8140 + F8145) | L28: =SUM(Expenditures!G23:G26,Expenditures!G27:G30)-Revenues!G54 -> 0
B29: Please check the following box:
C31: The effects of all school budget articles approved by district voters are included in this collection.
B34: I attest to the best of my knowledge and belief that the information is accurate and the school district is in compliance with all requirements of state and federal law.
B36: Signature of Superintendent: | K36: Date:
B37: Person to contact concerning questions about this completed report:
B39: Email: | H39: Phone:

Sheet Current Year Report-Expenses
A1: Current Year Report, FY2024 - Expenses
A4: LEAID | B4: =Cover!F$6 -> X | C4: LEANAME | D4: =Cover!$U$2 ->  | F4: FUND 1 | G4: FUND 6
A5: 1000 DIRECT INSTRUCTION
A6: 1000 DIRECT INSTR-EXCEPT TECH CTR TUITION | F6: =Expenditures!G$2 -> 0 | G6: 0
A7: 1568 OBJ 568-TCH CTR TUIT/AMT STATE PAYS FOR DST | F7: =Expenditures!G$3 -> 0 | G7: 0
A8: (87% of the base amount for each FTE)
A9: 1569 OBJ 569-DISTRICT TUITION TO TECH CNTRS | F9: =Expenditures!G$4 -> 0 | G9: 0
C11: A Subtotal: 1000 | F11: =F6+F7+F9 -> 0 | G11: =G6+G7+G9 -> 0
A12: 2396 ADMINISTRATIVE SUPPORT SERVICES - LEA | F12: =Expenditures!G$5 -> 0 | G12: 0
A13: 2397 ADMINISTRATIVE SUPPORT SERV. - ASSESS TO SU | F13: =Expenditures!G$6 -> 0 | G13: 0
A14: 2398 ADMINISTRATIVE SUPPORT SERVICES, TECH CENTER | F14: =Expenditures!G31 -> 0 | G14: 0
A15: 2999 ALL FUNC 2000 SUPPORT SERV. NOT INCL. ABOVE | F15: =Expenditures!G$7 -> 0 | G15: 0
C17: B Subtotal: 2000 | F17: =F12+F13+F15+F14 -> 0 | G17: =G12+G13+G15+G14 -> 0
A18: 3100 FOOD SERVICES | F18: =Expenditures!G$8 -> 0 | G18: 0
A19: 3200 ENTERPRISE OPERATIONS | F19: =Expenditures!G$9 -> 0 | G19: 0
A20: 3300 COMMUNITY SERVICES | F20: =Expenditures!G$10 -> 0 | G20: 0
C21: C Subtotal: 3000 | F21: =F18+F19+F20 -> 0 | G21: =G18+G19+G20 -> 0
A23: D 4000 FACILITY ACQUISITION AND CONSTRUCTION | F23: =Expenditures!G$11 -> 0 | G23: =Expenditures!G12 -> 0
A25: 5000 OTHER EXPENDITURES
A26: 5100 OTHER-DEBT SERVICE | F26: =Expenditures!G$13 -> 0 | G26: =Expenditures!G14 -> 0
A27: 5101 OTHER-DEBT SERVICE - ACT 144 | F27: 0 | G27: 0
A28: 5210 ADJUSTMENTS/REPAYMENTS TO THE STATE | F28: =Expenditures!G$15 -> 0 | G28: 0
A29: 5310 TRANSFERS TO ENTERPRISE FUNDS | F29: =Expenditures!G$16 -> 0 | G29: 0
A30: 5350 CONTRS TO RSRVD ACCTS (INC. FUNC 5352) | F30: =Expenditures!G$17 -> 0 | G30: 0
A31: 5353 TRANSFER TO QSCB DEBT SERVICE FUND | F31: =Expenditures!G$18 -> 0 | G31: 0
A32: 5390 OTHER-FUND TRANSFERS | F32: =Expenditures!G$19 -> 0 | G32: 0
A33: 5500 OTHER-SUBGRANTS | F33: =Expenditures!G$20 -> 0 | G33: 0
A34: E: Subtotal: 5000 | F34: =F26+F28+F29+F30+F31+F32+F33+F27 -> 0 | G34: =G26+G28+G29+G30+G31+G32+G33 -> 0
A35: 6999 DEFICIT
A36: 6999 DEFICIT | F36: =Expenditures!G$21 -> 0 | G36: =Expenditures!G22 -> 0
A37: F. Subtotal: 6999 | F37: =F36 -> 0 | G37: =G36 -> 0
A39: H - 8888 ELIGIBLE CAPITAL CONST & DEBT SERV FOR ALL ELIG PR | F39: =Expenditures!G27 -> 0 | G39: 0
A40: H - 8112 DEFICIT FOR NEW SPED 20 EQPUP OR FEWER | F40: =Expenditures!G23 -> 0 | G40: 0
A41: H - 8121 SPED IN EXCESS OF 50K | F41: =Expenditures!G24 -> 0 | G41: 0
A42: H - 8125 DEFICIT FROM NEW TUITIONS AFTER BUDGET | F42: =Expenditures!G$25 -> 0 | G42: 0
A43: H - 8130 PLANNING COSTS FOR SMALL SCHOOL MERGER | F43: =Expenditures!G$26 -> 0 | G43: 0
A44: H - 8135 ASSESSMENTS TO VERMONT TEACHERS RETIREMENT SYSTEM | F44: =Expenditures!G28 -> 0 | G44: 0
A45: H - 8140 COSTS FOR DUAL ENROLLMENT AND EARLY COLLEGE | F45: =Expenditures!G29 -> 0 | G45: 0
A46: H - 8145 COSTS FOR LEAD SAMPLING, REMEDIATION AND RETESTING | F46: =Expenditures!G30 -> 0 | G46: 0
A48: Subtotal | B48: 8000 | F48: =SUM(F39:F46) -> 0 | G48: =SUM(G39:G46) -> 0
A50: Total Expenditures (Lines A + B + C + D + E + F) General Fund Total on Signature Page Sheet Line A | F50: =F11+F17+F21+F23+F34+F37 -> 0 | G50: =G11+G17+G21+G23+G34+G37 -> 0

Sheet Current Year Report - Revenues
A1: Current Year Report, FY2024 - Revenues
A4: LEAID | B4: =Cover!F$6 -> X | C4: LEANAME | D4: =Cover!$U$2 ->  | E4: Fund 5 | F4: Fund 6
A6: 1100 STATUTORY TAXES
B7: 1110 SPECIAL PROPERTY TAX ASSMT(FOR SOME INCORP. DISTS) | E7: =Revenues!G2 -> 0 | F7: 0
B8: 1115 PROPERTY TAX - ACT 144 | E8: 0 | F8: 0
B9: 1170 NON-PROPERTY TAXES/IMPACT FEES | E9: =Revenues!G3 -> 0 | F9: 0
B10: 1180 DELINQ TAXES/RELATED PENALTIES/INT (INCORP DIST) | E10: =Revenues!G4 -> 0 | F10: 0
A12: 1200 REVENUES FROM LOCAL GOVERNMENT - NOT LEAS
B13: 1200 REVENUES FROM LOCAL GOVERNMENT - NOT LEAS | E13: =Revenues!G5 -> 0 | F13: 0
A15: 1300 TUITION RECEIVED
B16: 1300 TUITION RECEIVED | E16: =Revenues!G6 -> 0 | F16: 0
A18: 1400 TRANSPORTATION FEES RECEIVED
B19: 1400 TRANSPORTATION FEES RECEIVED | E19: =Revenues!G7 -> 0 | F19: 0
A21: 1500 EARNINGS ON INVESTMENTS
B22: 1500 EARNINGS ON INVESTMENTS | E22: =Revenues!G8 -> 0 | F22: =Revenues!G9 -> 0
A23: 1600 FOOD SERVICES
B24: 1600 FOOD SERVICE (IF EXPENDITURES INCLUDED IN BUDGET) | E24: =Revenues!G10 -> 0 | F24: 0
A26: 1700 INCOME FROM STUDENT ACTIVITIES (NOT AGENCY FUNDS)
B27: 1700 INCOME FROM STUDENT ACTIVITIES (NOT AGENCY FUNDS) | E27: =Revenues!G11 -> 0 | F27: 0
A29: 1800 REVENUE FROM COMMUNITY SERVICE ACTIVITIES
B30: 1800 REVENUE FROM COMMUNITY SERVICE ACTIVITIES | E30: =Revenues!G12 -> 0 | F30: 0
A32: 1900 OTHER REVENUE FROM LOCAL SOURCES
B33: (1) 1920 CONTRIBUTIONS AND DONATIONS RAISED BY THE LEA | E33: =Revenues!G13 -> 0
B34: 1999 ALL OTHER 1900 REVENUES (EXCEPT ACT 144 REVENUES) | E34: =Revenues!G14 -> 0
A36: 2900 INTERMEDIATE REVENUES - SUBGRANTS FROM THE SU
B37: 2000 INTRMED. REVS - SUBGRANTS FROM SU-ALL EXC. ARRA FUNDS | E37: =Revenues!G15 -> 0 | F37: 0
B39: 2950 INTRMED.REVS - SUBGRANTS FROM SU-ALL ARRA FUNDS | E39: =Revenues!G16 -> 0 | F39: 0
A41: 3100 UNRESTRICTED GRANTS IN AID
B42: 3110 EDUCATION SPENDING GRANT | E42: =Revenues!G17 -> 0
B43: 3113 TECHNICAL CENTER SUPPLEMENTAL ASSISTANCE GRANT | E43: =+Revenues!G55 -> 0
B44: 3114 SUP TUITION GRANT FOR TECH CTRS DISTRIB BY STATE | E44: =Revenues!G18 -> 0
B45: 3130 CONSTRUCTION AID--INCLUDES REVCODES 3130 AND 3135 | E45: =Revenues!G19 -> 0 | F45: =Revenues!G20 -> 0
B46: 3145 SMALL SCHOOLS GRANT | E46: =Revenues!G21 -> 0
B47: 3146 SMALL SCHOOLS FINANCIAL STABILITY GRANT | E47: =Revenues!G22 -> 0
B48: 3150 STATE AID TRANSPORTATION | E48: =Revenues!G23 -> 0
B49: 3152 STATE AID TRANSPORTATION - EXTRAORDINARY | E49: =Revenues!G24 -> 0
B50: 3170 ACT 153 REVENUE | E50: =Revenues!G25 -> 0
B51: 3199 ALL OTHER 3100 REVENUE | E51: =Revenues!G26 -> 0
A53: 3200 RESTRICTED REVENUE (3200-3799)
B54: 3200 RESTRICTED REVENUE (3200-3799) | E54: =Revenues!G27 -> 0 | F54: =Revenues!G28 -> 0
A56: 3999 ALL 3800 AND 3900 REVENUES
B57: 3999 ALL 3800 AND 3900 REVENUES | E57: =Revenues!G29 -> 0
A58: 4100 | B58: UNRESTRICTED GRANTS
B59: 4100 UNRESTRICTED GRANTS | E59: =Revenues!G30 -> 0
B60: 4120 EDUCATION JOBS FUND | E60: =Revenues!G31 -> 0
A62: 4200 | C62: RESTRICTED REVENUE (4200-4799)
B63: 4200 | D63: RESTRICTED REVENUE (4200-4799) | E63: =Revenues!G32 -> 0 | F63: =Revenues!G33 -> 0
A65: 4800 | C65: FEDERAL OFFSET PAYMENTS
B66: 4800 | D66: FEDERAL OFFSET PAYMENTS | E66: =Revenues!G34 -> 0
A68: 4900 | C68: REVENUE FOR/ON BEHALF OF THE LEA
B69: 4900 REVENUE FOR/ON BEHALF OF THE LEA | E69: =Revenues!G35 -> 0
B70: 4950 | D70: RESTRICTED FEDERAL REVENUE, ARRA | E70: =Revenues!G36 -> 0
A72: 5100 | C72: PROCEEDS FROM BONDS
B73: 5100 | D73: PROCEEDS FROM BONDS/OTHER LONGTERM BORROWING | E73: =Revenues!G37 -> 0 | F73: =Revenues!G38 -> 0
A75: 5200 | C75: TRANSFERS
B76: 5230 | D76: TRANSFERS FROM RESERVED ACCOUNTS INCL 5232 | E76: =Revenues!G39 -> 0 | F76: =Revenues!G40 -> 0
B77: 5233 | D77: TRANSFER FROM QSCB DEBT SERVICE FUND | E77: =Revenues!G41 -> 0
B78: 5299 | D78: OTHER TRANSFERS | E78: =Revenues!G42 -> 0 | F78: =Revenues!G43 -> 0
A80: 5300 | D80: SALE OR COMPENSATION FOR LOSS OF FIXED ASSETS
B81: 5300 | D81: SALE OR COMPENSATION FOR LOSS OF FIXED ASSETS | E81: =Revenues!G44 -> 0
A83: 5400 | C83: ADJUSTMENTS FOR PRIOR YEAR EXPENDITURES
B84: 5400 | D84: ADJUSTMENTS FOR PRIOR YEAR EXPENDITURES | E84: =Revenues!G45 -> 0
B85: 5480 | D85: MEDICAID-INCLUDES REVENUE CODES 5481-5483 | E85: =Revenues!G46 -> 0
A87: 5500 | C87: CAPITAL LEASES
B88: 5500 | D88: CAPITAL LEASES | E88: =Revenues!G47 -> 0
A90: 5600 | C90: LEASE PURCHASES
B91: 5600 | D91: LEASE PURCHASES | E91: =Revenues!G48 -> 0
A93: 5700 | C93: GRANTS-PRIVATE SOURCES THROUGH THE STATE
B94: 5700 | D94: GRANTS-PRIVATE SOURCES THROUGH THE STATE 0 | E94: =Revenues!G49 -> 0
B95: Include ALL 5700 Revenue Codes
A97: 5999 | C97: ALL REVENUE 5800 THROUGH 5990
B98: 5999 | D98: ALL REVENUE 5800 THROUGH 5990 | E98: =Revenues!G50 -> 0
A100: 6999 | C100: CARRY FWD-CUM UNRESERVED SURPLUS
B101: 6999 | D101: CARRY FWD-CUM UNRESERVED SURPLUS | E101: =Revenues!G51 -> 0 | F101: =Revenues!G52 -> 0
C103: TOTAL REVENUES + SURPLUS CARRIED FORWARD | E103: =SUM(E7:E10)+E13+E16+E19+E22+E24+E27+E30+E33+E34+E37+E39+SUM(E42:E51)+E54+E57+E59+E60+E63+E66+E69+E70+E73+SUM(E76:E78)+E81+E84+E85+E88+E91+E94+E98+E101 -> 0 | F103: =SUM(F7:F10)+F13+F16+F19+F22+F24+F27+F30+F37+F39+F45+F54+F59+F60+F63+F66+F69+F70+F73+F76+F78+F101 -> 0
E104: General Fund Total for Cover Sheet
E105: Line D
A108: 8800 | C108: SMALL SCHOOL MERGERS
B109: 8830 | D109: PLANNING COSTS FOR SMALL SCHOOLS MERGER | E109: =+Revenues!G53 -> 0
A110: 8000 CAPITAL CONST/& DEBT SERVICE
B111: R- 8888 CAPITAL CONST & DEBT SERVICE OFFSETTING REVENUES | E111: =Revenues!G54 -> 0
B112: Revenues offsetting Capital costs & Debt Service expendictures, F8888.

Sheet Comparison Report
S1: =IF($B$6="U061","Lincoln included in prior year data.","")&IF($B$6="T112","No prior year data for Lincoln.","")&IF($B$6="U090","Stowe included in prior year data.","")&IF($B$6="T198","No prior year data for Stowe.","") -> 
B2: Comparison of FY2024 Actual, FY2024 Preliminary and FY2023 Budgets
C4: Education Expenditures | G4: Offsetting Revenues | K4: Initial Education Spending
C5: 2024 Actual | D5: 2024 Prelim | E5: 2023 Expenditures | G5: 2024 Actual | H5: 2024 Prelim | I5: 2023 Revenues | K5: 2024 Actual | L5: 2024 Prelim | M5: 2023 Ed Spending
A6: LEAID | B6: =Cover!$F$6 -> X | C6: ='Signature Page'!L11 -> 0 | D6: =SUMIF(PreDATAFY24!$A$2:$A$151,$B$6,PreDATAFY24!$B$2:$B$151) -> 0 | E6: =SUMIF(FY23BUD!$A$2:$A$130,$B6,FY23BUD!$B$2:$B$130) -> 0 | G6: ='Signature Page'!L21 -> 0 | H6: =SUMIF(PreDATAFY24!$A$2:$A$151,$B$6,PreDATAFY24!$C$2:$C$151) -> 0 | I6: =SUMIF(FY23BUD!$A$2:$A$130,$B6,FY23BUD!$C$2:$C$130) -> 0 | K6: =C6-G6 -> 0 | L6: =SUMIF(PreDATAFY24!$A$2:$A$151,$B$6,PreDATAFY24!$G$2:$G$151) -> 0 | M6: =IF(E6="NA","NA",E6-I6) -> 0
B7: Percent Change | D7: =IF(D6>0,((C6-D6)/D6),0) -> 0 | E7: =IF(E6>0,((D6-E6)/E6),0) -> 0 | H7: =IF(H6>0,((G6-H6)/H6),0) -> 0 | I7: =IF(I6>0,((H6-I6)/I6),0) -> 0 | L7: =IF(L6>0,((K6-L6)/L6),0) -> 0 | M7: =IF(M6>0,((L6-M6)/M6),0) -> 0
B10: LEA | C10: =VLOOKUP($B$6,PreDATAFY24!$A$2:$H$151,8,FALSE) -> 
A26: (1) Anticipated Act 68 Education Expenditures = General Fund Total + Deficit
A27: (2) Anticipated (Local) Net Revenues = (Total Revenues and Surplus Carried Forward)- (Education Spending Grants)
A28: (3) Initial Education Spending = Anticipated Act 68 Education Expenditures - Anticipated (Local) Net Revenues

Sheet NEW CODES
A1: LEAID | B1: ** SELECT DISTRICT ** | C1: LEAID | D1: LEAName | F1: SU id | L1: Color Codes
A2: U061 | B2: S001 MT. ABRAHAM USD | C2: U061 | D2: MT. ABRAHAM USD | F2: 1 | L2: Town school district
A3: U054 | B3: S002 ADDISON NORTHWEST UUSD | C3: U054 | D3: ADDISON NORTHWEST UUSD | F3: 2 | L3: Union elementary school district
A4: U055 | B4: S003 ADDISON CENTRAL UUSD | C4: U055 | D4: ADDISON CENTRAL UUSD | F4: 3 | L4: Modified union school district
A5: U062 | B5: S004 SLATE VALLEY UUSD | C5: U062 | D5: SLATE VALLEY UUSD | F5: 4 | L5: Union high school district
A6: T005 | B6: S005 ARLINGTON | C6: T005 | D6: ARLINGTON | F6: 5 | L6: Unified union school district
A7: T141 | B7: S005 NORTH BENNINGTON ID | C7: T141 | D7: NORTH BENNINGTON ID | F7: 5
A8: T181 | B8: S005 SANDGATE | C8: T181 | D8: SANDGATE | F8: 5
A9: T259 | B9: S005 Glastenbury | C9: T259 | D9: Glastenbury | F9: 5 | L9: Districts that may or may not submit budgets
A10: U014 | B10: S005 MT. ANTHONY UHSD | C10: U014 | D10: MT. ANTHONY UHSD | F10: 5 | L10: are in lower-case font and yellow cells.
A11: U087 | B11: S005 SOUTHWEST VERMONT UESD | C11: U087 | D11: SOUTHWEST VERMONT UESD | F11: 5 | L11: T255, Buels Gore, and T258, Ferdinand,
A12: T248 | B12: S006 WINHALL | C12: T248 | D12: WINHALL | F12: 6 | L12: usually have budgets.
A13: U063 | B13: S006 TACONIC AND GREEN REGIONAL SD | C13: U063 | D13: TACONIC AND GREEN REGIONAL SD | F13: 6
A14: U084 | B14: S006 METTAWEE SD | C14: U084 | D14: METTAWEE SD | F14: 6
A15: T050 | B15: S007 COLCHESTER | C15: T050 | D15: COLCHESTER | F15: 7
A16: T038 | B16: S009 CABOT | C16: T038 | D16: CABOT | F16: 9
A17: T057 | B17: S009 DANVILLE | C17: T057 | D17: DANVILLE | F17: 9
A18: T151 | B18: S009 PEACHAM | C18: T151 | D18: PEACHAM | F18: 9
A19: U033 | B19: S009 TWINFIELD USD | C19: U033 | D19: TWINFIELD USD | F19: 9
A20: U078 | B20: S009 CALEDONIA COOPERATIVE USD | C20: U078 | D20: CALEDONIA COOPERATIVE USD | F20: 9
A21: T126 | B21: S010 MILTON | C21: T126 | D21: MILTON | F21: 10
A22: T179 | B22: S011 ST. JOHNSBURY | C22: T179 | D22: ST. JOHNSBURY | F22: 11
A23: T255 | B23: S012 BUELS GORE | C23: T255 | D23: BUELS GORE | F23: 12
A24: U401 | B24: S012 MT. MANSFIELD UUSD | C24: U401 | D24: MT. MANSFIELD UUSD | F24: 12
A25: U056 | B25: S014 CHAMPLAIN VALLEY UUSD | C25: U056 | D25: CHAMPLAIN VALLEY UUSD | F25: 14
A26: T037 | B26: S015 BURLINGTON | C26: T037 | D26: BURLINGTON | F26: 15
A27: T191 | B27: S016 SOUTH BURLINGTON | C27: T191 | D27: SOUTH BURLINGTON | F27: 16
A28: T249 | B28: S017 WINOOSKI ID | C28: T249 | D28: WINOOSKI ID | F28: 17
A29: T041 | B29: S019 CANAAN | C29: T041 | D29: CANAAN | F29: 19
A30: T256 | B30: S019 Averill | C30: T256 | D30: Averill | F30: 19
A31: T257 | B31: S019 Avery's Gore | C31: T257 | D31: Avery's Gore | F31: 19
A32: T258 | B32: S019 Ferdinand | C32: T258 | D32: Ferdinand | F32: 19
A33: T260 | B33: S019 Lewis | C33: T260 | D33: Lewis | F33: 19
A34: T262 | B34: S019 Warner's Grant | C34: T262 | D34: Warner's Grant | F34: 19
A35: T263 | B35: S019 Warrens Gore | C35: T263 | D35: Warrens Gore | F35: 19
A36: U065 | B36: S019 NORTHEAST KINGDOM CHOICE SD | C36: U065 | D36: NORTHEAST KINGDOM CHOICE SD | F36: 19
A37: U085 | B37: S020 NORTHERN MOUNTAIN VALLEY UUSD | C37: U085 | D37: NORTHERN MOUNTAIN VALLEY UUSD | F37: 20
A38: U088 | B38: S020 ENOSBURGH-RICHFORD UUSD | C38: U088 | D38: ENOSBURGH-RICHFORD UUSD | F38: 20
A39: U089 | B39: S021 MISSISQUOI VALLEY | C39: U089 | D39: MISSISQUOI VALLEY | F39: 21
A40: T071 | B40: S022 FAIRFAX | C40: T071 | D40: FAIRFAX | F40: 22
A41: T077 | B41: S022 FLETCHER | C41: T077 | D41: FLETCHER | F41: 22
A42: T079 | B42: S022 GEORGIA | C42: T079 | D42: GEORGIA | F42: 22
A43: U057 | B43: S023 MAPLE RUN USD | C43: U057 | D43: MAPLE RUN USD | F43: 23
A44: T003 | B44: S024 ALBURGH | C44: T003 | D44: ALBURGH | F44: 24
A45: T192 | B45: S024 SOUTH HERO | C45: T192 | D45: SOUTH HERO | F45: 24
A46: U066 | B46: S024 CHAMPLAIN ISLANDS UUSD | C46: U066 | D46: CHAMPLAIN ISLANDS UUSD | F46: 24
A47: T040 | B47: S025 CAMBRIDGE | C47: T040 | D47: CAMBRIDGE | F47: 25
A48: U058A | B48: S025 LAMOILLE NORTH MUSD A | C48: U058A | D48: LAMOILLE NORTH MUSD A | F48: 25
A49: U058B | B49: S025 LAMOILLE NORTH MUSD B | C49: U058B | D49: LAMOILLE NORTH MUSD B | F49: 25
A50: T198 | B50: S026 STOWE | C50: T198 | D50: STOWE | F50: 26 | H50: New for FY2024 - out of U090
A51: U090 | B51: S026 LAMOILLE SOUTH UUSD | C51: U090 | D51: LAMOILLE SOUTH UUSD | F51: 26
A52: T205 | B52: S027 THETFORD | C52: T205 | D52: THETFORD | F52: 27
A53: U021 | B53: S027 BLUE MOUNTAIN USD | C53: U021 | D53: BLUE MOUNTAIN USD | F53: 27
A54: U036 | B54: S027 WAITS RIVER VALLEY USD | C54: U036 | D54: WAITS RIVER VALLEY USD | F54: 27
A55: U091 | B55: S027 OXBOW UUSD | C55: U091 | D55: OXBOW UUSD | F55: 27
A56: U059 | B56: S028 ORANGE SOUTHWEST USD | C56: U059 | D56: ORANGE SOUTHWEST USD | F56: 28
A57: T184 | B57: S030 SHARON | C57: T184 | D57: SHARON | F57: 30
A58: T199 | B58: S030 STRAFFORD | C58: T199 | D58: STRAFFORD | F58: 30
A59: U079 | B59: S030 WHITE RIVER USD | C59: U079 | D59: WHITE RIVER USD | F59: 30
A60: U080 | B60: S030 GRANVILLE HANCOCK USD | C60: U080 | D60: GRANVILLE HANCOCK USD | F60: 30
A61: U081 | B61: S030 ROCHESTER STOCKBRIDGE USD | C61: U081 | D61: ROCHESTER STOCKBRIDGE USD | F61: 30
A62: U082 | B62: S030 FIRST BRANCH USD | C62: U082 | D62: FIRST BRANCH USD | F62: 30
A63: T030 | B63: S031 BRIGHTON | C63: T030 | D63: BRIGHTON | F63: 31
A64: T044 | B64: S031 CHARLESTON | C64: T044 | D64: CHARLESTON | F64: 31
A65: T054 | B65: S031 COVENTRY | C65: T054 | D65: COVENTRY | F65: 31
A66: T058 | B66: S031 DERBY | C66: T058 | D66: DERBY | F66: 31
A67: T097 | B67: S031 HOLLAND | C67: T097 | D67: HOLLAND | F67: 31
A68: T105 | B68: S031 JAY | C68: T105 | D68: JAY | F68: 31
A69: T114 | B69: S031 LOWELL | C69: T114 | D69: LOWELL | F69: 31
A70: T131 | B70: S031 MORGAN | C70: T131 | D70: MORGAN | F70: 31
A71: T139 | B71: S031 NEWPORT CITY | C71: T139 | D71: NEWPORT CITY | F71: 31
A72: T140 | B72: S031 NEWPORT TOWN | C72: T140 | D72: NEWPORT TOWN | F72: 31
A73: T209 | B73: S031 TROY | C73: T209 | D73: TROY | F73: 31
A74: T231 | B74: S031 WESTFIELD | C74: T231 | D74: WESTFIELD | F74: 31
A75: U022A | B75: S031 NORTH COUNTRY JR UHSD | C75: U022A | D75: NORTH COUNTRY JR UHSD | F75: 31
A76: U022B | B76: S031 NORTH COUNTRY SR UHSD | C76: U022B | D76: NORTH COUNTRY SR UHSD | F76: 31
A77: U092 | B77: S032 WASHINGTON CENTRAL UUSD | C77: U092 | D77: WASHINGTON CENTRAL UUSD | F77: 32
A78: U052 | B78: S033 MILL RIVER UUSD | C78: U052 | D78: MILL RIVER UUSD | F78: 33
A79: U024 | B79: S034 LAKE REGION UHSD | C79: U024 | D79: LAKE REGION UHSD | F79: 34
A80: U093 | B80: S034 LAKE REGION UEMSD | C80: U093 | D80: LAKE REGION UEMSD | F80: 34
A81: T055 | B81: S035 CRAFTSBURY | C81: T055 | D81: CRAFTSBURY | F81: 35
A82: T195 | B82: S035 STANNARD | C82: T195 | D82: STANNARD | F82: 35
A83: T250 | B83: S035 WOLCOTT | C83: T250 | D83: WOLCOTT | F83: 35
A84: U026 | B84: S035 HAZEN UHSD | C84: U026 | D84: HAZEN UHSD | F84: 35
A85: U094 | B85: S035 ORLEANS SOUTHWEST UESD | C85: U094 | D85: ORLEANS SOUTHWEST UESD | F85: 35
A86: U049 | B86: S036 BARSTOW UUSD | C86: U049 | D86: BARSTOW UUSD | F86: 36
A87: U053 | B87: S036 OTTER VALLEY UUSD | C87: U053 | D87: OTTER VALLEY UUSD | F87: 36
A88: T173 | B88: S040 RUTLAND CITY | C88: T173 | D88: RUTLAND CITY | F88: 40
A89: U060 | B89: S042 HARWOOD UUSD | C89: U060 | D89: HARWOOD UUSD | F89: 42
A90: T120 | B90: S046 MARLBORO | C90: T120 | D90: MARLBORO | F90: 46
A91: T200 | B91: S046 STRATTON | C91: T200 | D91: STRATTON | F91: 46
A92: T246 | B92: S046 WINDHAM | C92: T246 | D92: WINDHAM | F92: 46
A93: U072A | B93: S046 WEST RIVER VALLEY MODIFIED UED A | C93: U072A | D93: WEST RIVER VALLEY MODIFIED UED A | F93: 46
A94: U072B | B94: S046 WEST RIVER VALLEY MODIFIED UED B | C94: U072B | D94: WEST RIVER VALLEY MODIFIED UED B | F94: 46
A95: U073 | B95: S046 RIVER VALLEYS USD | C95: U073 | D95: RIVER VALLEYS USD | F95: 46
A96: T169 | B96: S047 ROCKINGHAM | C96: T169 | D96: ROCKINGHAM | F96: 47
A97: T234 | B97: S047 WESTMINSTER | C97: T234 | D97: WESTMINSTER | F97: 47
A98: U027 | B98: S047 BELLOWS FALLS UHSD | C98: U027 | D98: BELLOWS FALLS UHSD | F98: 47
A99: U095 | B99: S047 WINDHAM NORTHEAST UESD | C99: U095 | D99: WINDHAM NORTHEAST UESD | F99: 47
A100: T214 | B100: S048 VERNON | C100: T214 | D100: VERNON | F100: 48
A101: U096 | B101: S048 WINDHAM SOUTHEAST UUSD | C101: U096 | D101: WINDHAM SOUTHEAST UUSD | F101: 48
A102: T090 | B102: S049 HALIFAX | C102: T090 | D102: HALIFAX | F102: 49
A103: T164 | B103: S049 READSBORO | C103: T164 | D103: READSBORO | F103: 49
A104: T182 | B104: S049 SEARSBURG | C104: T182 | D104: SEARSBURG | F104: 49
A105: T194 | B105: S049 STAMFORD | C105: T194 | D105: STAMFORD | F105: 49
A106: T261 | B106: S049 Somerset | C106: T261 | D106: Somerset | F106: 49
A107: U075 | B107: S049 TWIN VALLEY USD | C107: U075 | D107: TWIN VALLEY USD | F107: 49
A108: T009 | B108: S051 BARNARD | C108: T153 | D108: BARNARD | F108: 51
A109: T153 | B109: S051 PITTSFIELD | C109: T153 | D109: PITTSFIELD | F109: 51
A110: U076 | B110: S051 WINDSOR CENTRAL UUSD | C110: U076 | D110: WINDSOR CENTRAL UUSD | F110: 51
A111: T094 | B111: S052 HARTLAND | C111: T094 | D111: HARTLAND | F111: 52
A112: T227 | B112: S052 WEATHERSFIELD | C112: T227 | D112: WEATHERSFIELD | F112: 52
A113: U086 | B113: S052 MT. ASCUTNEY SD | C113: U086 | D113: MT. ASCUTNEY SD | F113: 52
A114: T093 | B114: S054 HARTFORD | C114: T093 | D114: HARTFORD | F114: 54
A115: T145 | B115: S055 NORWICH | C115: T145 | D115: NORWICH | F115: 55
A116: T193 | B116: S056 SPRINGFIELD | C116: T193 | D116: SPRINGFIELD | F116: 56
A117: U097 | B117: S061 BARRE UUSD | C117: U097 | D117: BARRE UUSD | F117: 61
A118: U077 | B118: S063 GREEN MOUNTAIN USD | C118: U077 | D118: GREEN MOUNTAIN USD | F118: 63
A119: U083 | B119: S063 LUDLOW MT. HOLLY UUSD | C119: U083 | D119: LUDLOW MT. HOLLY UUSD | F119: 63
A120: U146 | B120: S064 RIVENDELL INTERSTATE USD | C120: U146 | D120: RIVENDELL INTERSTATE USD | F120: 64
A121: U051 | B121: S065 ESSEX WESTFORD ED COMMUNITY UUSD | C121: U051 | D121: ESSEX WESTFORD ED COMMUNITY UUSD | F121: 65
A122: T101 | B122: S066 IRA | C122: T101 | D122: IRA | F122: 66
A123: T174 | B123: S066 RUTLAND TOWN | C123: T174 | D123: RUTLAND TOWN | F123: 66
A124: U069 | B124: S066 WELLS SPRING UUSD | C124: U069 | D124: WELLS SPRING UUSD | F124: 66
A125: U070 | B125: S066 QUARRY VALLEY UUSD | C125: U070 | D125: QUARRY VALLEY UUSD | F125: 66
A126: U064 | B126: S067 KINGDOM EAST UUSD | C126: U064 | D126: KINGDOM EAST UUSD | F126: 67
A127: U067 | B127: S068 ECHO VALLEY COMMUNITY USD | C127: U067 | D127: ECHO VALLEY COMMUNITY USD | F127: 68
A128: U068 | B128: S068 PAINE MOUNTAIN USD | C128: U068 | D128: PAINE MOUNTAIN USD | F128: 68
A129: U071 | B129: S069 MONTPELIER ROXBURY UUSD | C129: U071 | D129: MONTPELIER ROXBURY UUSD | F129: 69
A130: T112 | B130: S070 LINCOLN | C130: T112 | D130: LINCOLN | F130: 70 | H130: New for FY2024 - out of U061 and S001

Sheet PreDATAFY24
A1: Source.Name | B1: TotExp | C1: OffRev | D1: Elig CD | E1: EligCD revs | F1: Other Excess Exc | G1: EDSPENDING | M1: Updated: | N1: 2023-05-01 | O1: FY23 prel | Q1: Col I | R1: Col J | S1: Col K | T1: Col L | U1: Col M | V1: Col O
A2: T003 | B2: 7280057 | C2: 622900 | D2: 0 | E2: 0 | F2: 0 | G2: 6657157 | H2: =VLOOKUP($A2,FY23prefillData!$A$3:$B$320,2,FALSE) -> Alburgh | N2: =SUM(B2:B131) -> 2039227385 | Q2: TotExp | R2: OffRev | S2: Elig CD | T2: EligCD revs | U2: Other Excess Exc | V2: EDSPENDING
A3: T005 | B3: 8142943 | C3: 915982 | D3: 0 | E3: 0 | F3: 0 | G3: 7226961 | H3: =VLOOKUP($A3,FY23prefillData!$A$3:$B$320,2,FALSE) -> Arlington | P3: Cut & Paste | Q3: 2039227385 | R3: 369422835 | S3: 22876742 | T3: 215692 | U3: 3136863 | V3: 1669804550
A4: T030 | B4: 2732008 | C4: 365378 | D4: 0 | E4: 0 | F4: 11000 | G4: 2366630 | H4: =VLOOKUP($A4,FY23prefillData!$A$3:$B$320,2,FALSE) -> Brighton | P4: Sums | Q4: =SUM(B2:B129) -> 2039227385 | R4: 369422835 | S4: 22876742 | T4: 215692 | U4: 3136863 | V4: 1669804550
A5: T037 | B5: 104144584 | C5: 25180146 | D5: 0 | E5: 0 | F5: 0 | G5: 78964438 | H5: =VLOOKUP($A5,FY23prefillData!$A$3:$B$320,2,FALSE) -> Burlington | P5: Check | Q5: =Q3-Q4 -> 0 | R5: =R3-R4 -> 0 | S5: 0 | T5: 0 | U5: 0 | V5: 0
A6: T038 | B6: 3620061 | C6: 209645 | D6: 12083 | E6: 0 | F6: 1950 | G6: 3410416 | H6: =VLOOKUP($A6,FY23prefillData!$A$3:$B$320,2,FALSE) -> Cabot
A7: T040 | B7: 6709501 | C7: 837665 | D7: 355000 | E7: 0 | F7: 0 | G7: 5871836 | H7: =VLOOKUP($A7,FY23prefillData!$A$3:$B$320,2,FALSE) -> Cambridge
A8: T041 | B8: 0 | C8: 0 | D8: 0 | E8: 0 | F8: 0 | G8: 0 | H8: =VLOOKUP($A8,FY23prefillData!$A$3:$B$320,2,FALSE) -> Canaan
A9: T044 | B9: 2664868 | C9: 397026 | D9: 4971 | E9: 0 | F9: 16599 | G9: 2267842 | H9: =VLOOKUP($A9,FY23prefillData!$A$3:$B$320,2,FALSE) -> Charleston
A10: T050 | B10: 52401407 | C10: 11451259 | D10: 0 | E10: 0 | F10: 0 | G10: 40950148 | H10: =VLOOKUP($A10,FY23prefillData!$A$3:$B$320,2,FALSE) -> Colchester
A11: T054 | B11: 4438600 | C11: 532669 | D11: 0 | E11: 0 | F11: 10515 | G11: 3905931 | H11: =VLOOKUP($A11,FY23prefillData!$A$3:$B$320,2,FALSE) -> Coventry
A12: T055 | B12: 4403546 | C12: 767642 | D12: 317500 | E12: 0 | F12: 21126 | G12: 3635904 | H12: =VLOOKUP($A12,FY23prefillData!$A$3:$B$320,2,FALSE) -> Craftsbury
A13: T057 | B13: 7609397 | C13: 1013500 | D13: 0 | E13: 0 | F13: 5850 | G13: 6595897 | H13: =VLOOKUP($A13,FY23prefillData!$A$3:$B$320,2,FALSE) -> Danville
A14: T058 | B14: 7471330 | C14: 1923439 | D14: 0 | E14: 0 | F14: 45000 | G14: 5547891 | H14: =VLOOKUP($A14,FY23prefillData!$A$3:$B$320,2,FALSE) -> Derby
A15: T071 | B15: 17647833 | C15: 2021628 | D15: 0 | E15: 0 | F15: 0 | G15: 15626205 | H15: =VLOOKUP($A15,FY23prefillData!$A$3:$B$320,2,FALSE) -> Fairfax
A16: T077 | B16: 4138083 | C16: 399778 | D16: 0 | E16: 0 | F16: 0 | G16: 3738305 | H16: =VLOOKUP($A16,FY23prefillData!$A$3:$B$320,2,FALSE) -> Fletcher
A17: T079 | B17: 15930943 | C17: 712772 | D17: 135433 | E17: 0 | F17: 0 | G17: 15218171 | H17: =VLOOKUP($A17,FY23prefillData!$A$3:$B$320,2,FALSE) -> Georgia
A18: T090 | B18: 2084485 | C18: 179764 | D18: 0 | E18: 0 | F18: 13555 | G18: 1904721 | H18: =VLOOKUP($A18,FY23prefillData!$A$3:$B$320,2,FALSE) -> Halifax
A19: T093 | B19: 47607131 | C19: 19753874 | D19: 1273915 | E19: 0 | F19: 20022 | G19: 27853257 | H19: =VLOOKUP($A19,FY23prefillData!$A$3:$B$320,2,FALSE) -> Hartford
A20: T094 | B20: 9991128 | C20: 429319 | D20: 0 | E20: 0 | F20: 50572 | G20: 9561809 | H20: =VLOOKUP($A20,FY23prefillData!$A$3:$B$320,2,FALSE) -> Hartland
A21: T097 | B21: 907563 | C21: 16900 | D21: 0 | E21: 0 | F21: 0 | G21: 890663 | H21: =VLOOKUP($A21,FY23prefillData!$A$3:$B$320,2,FALSE) -> Holland
A22: T101 | B22: 790356 | C22: 3215 | D22: 0 | E22: 0 | F22: 0 | G22: 787141 | H22: =VLOOKUP($A22,FY23prefillData!$A$3:$B$320,2,FALSE) -> Ira
A23: T105 | B23: 1159217 | C23: 58276 | D23: 0 | E23: 0 | F23: 0 | G23: 1100941 | H23: =VLOOKUP($A23,FY23prefillData!$A$3:$B$320,2,FALSE) -> Jay
A24: T112 | B24: 0 | C24: 0 | D24: 0 | E24: 0 | F24: 0 | G24: 0 | H24: Lincoln
A25: T114 | B25: 2186336 | C25: 412277 | D25: 0 | E25: 0 | F25: 5436 | G25: 1774059 | H25: =VLOOKUP($A25,FY23prefillData!$A$3:$B$320,2,FALSE) -> Lowell
A26: T120 | B26: 3920171 | C26: 217629 | D26: 0 | E26: 0 | F26: 0 | G26: 3702542 | H26: =VLOOKUP($A26,FY23prefillData!$A$3:$B$320,2,FALSE) -> Marlboro
A27: T126 | B27: 37358494 | C27: 8673223 | D27: 0 | E27: 0 | F27: 173321 | G27: 28685271 | H27: =VLOOKUP($A27,FY23prefillData!$A$3:$B$320,2,FALSE) -> Milton
A28: T131 | B28: 679622 | C28: 87800 | D28: 0 | E28: 0 | F28: 0 | G28: 591822 | H28: =VLOOKUP($A28,FY23prefillData!$A$3:$B$320,2,FALSE) -> Morgan
A29: T139 | B29: 7760702 | C29: 814100 | D29: 0 | E29: 0 | F29: 22879 | G29: 6946602 | H29: =VLOOKUP($A29,FY23prefillData!$A$3:$B$320,2,FALSE) -> Newport City
A30: T140 | B30: 3396454 | C30: 366495 | D30: 0 | E30: 0 | F30: 7545 | G30: 3029959 | H30: =VLOOKUP($A30,FY23prefillData!$A$3:$B$320,2,FALSE) -> Newport Town
A31: T141 | B31: 3176603 | C31: 199913 | D31: 53600 | E31: 0 | F31: 0 | G31: 2976690 | H31: =VLOOKUP($A31,FY23prefillData!$A$3:$B$320,2,FALSE) -> North Bennington ID
A32: T145 | B32: 15474293 | C32: 1816653 | D32: 1100947 | E32: 149496 | F32: 67 | G32: 13657640 | H32: =VLOOKUP($A32,FY23prefillData!$A$3:$B$320,2,FALSE) -> Norwich
A33: T151 | B33: 2292405 | C33: 89741 | D33: 0 | E33: 0 | F33: 0 | G33: 2202664 | H33: =VLOOKUP($A33,FY23prefillData!$A$3:$B$320,2,FALSE) -> Peacham
A34: T153 | B34: 994945 | C34: 162200 | D34: 0 | E34: 0 | F34: 0 | G34: 832745 | H34: Pittsfield
A35: T164 | B35: 1615745 | C35: 263617 | D35: 0 | E35: 0 | F35: 15189 | G35: 1352128 | H35: =VLOOKUP($A35,FY23prefillData!$A$3:$B$320,2,FALSE) -> Readsboro
A36: T169 | B36: 10246454 | C36: 1734000 | D36: 0 | E36: 0 | F36: 0 | G36: 8512454 | H36: =VLOOKUP($A36,FY23prefillData!$A$3:$B$320,2,FALSE) -> Rockingham
A37: T173 | B37: 74103000 | C37: 35433000 | D37: 1433000 | E37: 0 | F37: 157000 | G37: 38670000 | H37: =VLOOKUP($A37,FY23prefillData!$A$3:$B$320,2,FALSE) -> Rutland City
A38: T174 | B38: 9939560 | C38: 336434 | D38: 58399 | E38: 0 | F38: 0 | G38: 9603126 | H38: =VLOOKUP($A38,FY23prefillData!$A$3:$B$320,2,FALSE) -> Rutland Town
A39: T179 | B39: 26141467 | C39: 5200685 | D39: 0 | E39: 0 | F39: 0 | G39: 20940782 | H39: =VLOOKUP($A39,FY23prefillData!$A$3:$B$320,2,FALSE) -> St. Johnsbury
A40: T181 | B40: 1301140 | C40: 800 | D40: 0 | E40: 0 | F40: 0 | G40: 1300340 | H40: =VLOOKUP($A40,FY23prefillData!$A$3:$B$320,2,FALSE) -> Sandgate
A41: T182 | B41: 529252 | C41: 0 | D41: 0 | E41: 0 | F41: 4741 | G41: 529252 | H41: =VLOOKUP($A41,FY23prefillData!$A$3:$B$320,2,FALSE) -> Searsburg
A42: T184 | B42: 5882956 | C42: 286523 | D42: 48124 | E42: 0 | F42: 17559 | G42: 5596433 | H42: =VLOOKUP($A42,FY23prefillData!$A$3:$B$320,2,FALSE) -> Sharon
A43: T191 | B43: 62528029 | C43: 12911955 | D43: 998046 | E43: 0 | F43: 0 | G43: 49616074 | H43: =VLOOKUP($A43,FY23prefillData!$A$3:$B$320,2,FALSE) -> South Burlington
A44: T192 | B44: 4573464 | C44: 370735 | D44: 0 | E44: 0 | F44: 0 | G44: 4202729 | H44: =VLOOKUP($A44,FY23prefillData!$A$3:$B$320,2,FALSE) -> South Hero
A45: T193 | B45: 36575247 | C45: 9356500 | D45: 569344 | E45: 0 | F45: 192448 | G45: 27218747 | H45: =VLOOKUP($A45,FY23prefillData!$A$3:$B$320,2,FALSE) -> Springfield
A46: T194 | B46: 2064520 | C46: 377719 | D46: 0 | E46: 0 | F46: 10060 | G46: 1686801 | H46: =VLOOKUP($A46,FY23prefillData!$A$3:$B$320,2,FALSE) -> Stamford
A47: T195 | B47: 272048 | C47: 100 | D47: 0 | E47: 0 | F47: 2588 | G47: 271948 | H47: =VLOOKUP($A47,FY23prefillData!$A$3:$B$320,2,FALSE) -> Stannard
A48: T198 | B48: 15669500 | C48: 630000 | D48: 147250 | E48: 800 | F48: 0 | G48: 15039500 | H48: Stowe
A49: T199 | B49: 3728296 | C49: 257956 | D49: 0 | E49: 0 | F49: 13386 | G49: 3470340 | H49: =VLOOKUP($A49,FY23prefillData!$A$3:$B$320,2,FALSE) -> Strafford
A50: T200 | B50: 1382620 | C50: 182000 | D50: 0 | E50: 0 | F50: 0 | G50: 1200620 | H50: =VLOOKUP($A50,FY23prefillData!$A$3:$B$320,2,FALSE) -> Stratton
A51: T205 | B51: 9337750 | C51: 177634 | D51: 0 | E51: 0 | F51: 0 | G51: 9160116 | H51: =VLOOKUP($A51,FY23prefillData!$A$3:$B$320,2,FALSE) -> Thetford
A52: T209 | B52: 4135362 | C52: 605345 | D52: 0 | E52: 0 | F52: 14375 | G52: 3530017 | H52: =VLOOKUP($A52,FY23prefillData!$A$3:$B$320,2,FALSE) -> Troy
A53: T214 | B53: 7650043 | C53: 651889 | D53: 0 | E53: 0 | F53: 10000 | G53: 6998154 | H53: =VLOOKUP($A53,FY23prefillData!$A$3:$B$320,2,FALSE) -> Vernon
A54: T227 | B54: 7487050 | C54: 98294 | D54: 281410 | E54: 0 | F54: 42988 | G54: 7388756 | H54: =VLOOKUP($A54,FY23prefillData!$A$3:$B$320,2,FALSE) -> Weathersfield
A55: T231 | B55: 664688 | C55: 34208 | D55: 0 | E55: 0 | F55: 0 | G55: 630480 | H55: =VLOOKUP($A55,FY23prefillData!$A$3:$B$320,2,FALSE) -> Westfield
A56: T234 | B56: 5149731 | C56: 305000 | D56: 0 | E56: 0 | F56: 0 | G56: 4844731 | H56: =VLOOKUP($A56,FY23prefillData!$A$3:$B$320,2,FALSE) -> Westminster
A57: T246 | B57: 453369 | C57: 90800 | D57: 0 | E57: 0 | F57: 0 | G57: 362569 | H57: =VLOOKUP($A57,FY23prefillData!$A$3:$B$320,2,FALSE) -> Windham
A58: T248 | B58: 4543694 | C58: 156333 | D58: 0 | E58: 0 | F58: 5358 | G58: 4387361 | H58: =VLOOKUP($A58,FY23prefillData!$A$3:$B$320,2,FALSE) -> Winhall
A59: T249 | B59: 29583899 | C59: 8843884 | D59: 0 | E59: 0 | F59: 0 | G59: 20740015 | H59: =VLOOKUP($A59,FY23prefillData!$A$3:$B$320,2,FALSE) -> Winooski ID
A60: T250 | B60: 5272189 | C60: 107819 | D60: 0 | E60: 0 | F60: 1509 | G60: 5164370 | H60: =VLOOKUP($A60,FY23prefillData!$A$3:$B$320,2,FALSE) -> Wolcott
A61: T255 | B61: 0 | C61: 0 | D61: 0 | E61: 0 | F61: 0 | G61: 0 | H61: Buels Gore
A62: T256 | B62: 0 | C62: 0 | D62: 0 | E62: 0 | F62: 0 | G62: 0 | H62: Averill
A63: T257 | B63: 0 | C63: 0 | D63: 0 | E63: 0 | F63: 0 | G63: 0 | H63: Avery's Gore
A64: T258 | B64: 0 | C64: 0 | D64: 0 | E64: 0 | F64: 0 | G64: 0 | H64: Ferdinand
A65: T259 | B65: 0 | C65: 0 | D65: 0 | E65: 0 | F65: 0 | G65: 0 | H65: Glastenbury
A66: T260 | B66: 0 | C66: 0 | D66: 0 | E66: 0 | F66: 0 | G66: 0 | H66: Lewis
A67: T261 | B67: 34000 | C67: 0 | D67: 0 | E67: 0 | F67: 0 | G67: 34000 | H67: Somerset
A68: T262 | B68: 0 | C68: 0 | D68: 0 | E68: 0 | F68: 0 | G68: 0 | H68: Warner's Grant
A69: T263 | B69: 0 | C69: 0 | D69: 0 | E69: 0 | F69: 0 | G69: 0 | H69: Warrens Gore
A70: U014 | B70: 28629524 | C70: 3341300 | D70: 277258 | E70: 0 | F70: 72013 | G70: 25288224 | H70: =VLOOKUP($A70,FY23prefillData!$A$3:$B$320,2,FALSE) -> Mt. Anthony UHSD
A71: U021 | B71: 9664585 | C71: 1533349 | D71: 0 | E71: 0 | F71: 0 | G71: 8131236 | H71: =VLOOKUP($A71,FY23prefillData!$A$3:$B$320,2,FALSE) -> Blue Mountain USD
A72: U022A | B72: 6211900 | C72: 816037 | D72: 0 | E72: 0 | F72: 10500 | G72: 5395863 | H72: =VLOOKUP($A72,FY23prefillData!$A$3:$B$320,2,FALSE) -> North Country Jr UHSD
A73: U022B | B73: 15933400 | C73: 1506600 | D73: 0 | E73: 0 | F73: 37000 | G73: 14426800 | H73: =VLOOKUP($A73,FY23prefillData!$A$3:$B$320,2,FALSE) -> North Country Sr UHSD
A74: U024 | B74: 7881247 | C74: 1680571 | D74: 0 | E74: 0 | F74: 0 | G74: 6200676 | H74: =VLOOKUP($A74,FY23prefillData!$A$3:$B$320,2,FALSE) -> Lake Region UHSD
A75: U026 | B75: 7356102 | C75: 532554 | D75: 0 | E75: 0 | F75: 21401 | G75: 6823548 | H75: =VLOOKUP($A75,FY23prefillData!$A$3:$B$320,2,FALSE) -> Hazen UHSD
A76: U027 | B76: 7672000 | C76: 307356 | D76: 0 | E76: 0 | F76: 0 | G76: 7364644 | H76: =VLOOKUP($A76,FY23prefillData!$A$3:$B$320,2,FALSE) -> Bellows Falls UHSD
A77: U033 | B77: 7470638 | C77: 17500 | D77: 0 | E77: 0 | F77: 7800 | G77: 7453138 | H77: =VLOOKUP($A77,FY23prefillData!$A$3:$B$320,2,FALSE) -> Twinfield USD
A78: U036 | B78: 7339958 | C78: 719128 | D78: 0 | E78: 0 | F78: 0 | G78: 6620830 | H78: =VLOOKUP($A78,FY23prefillData!$A$3:$B$320,2,FALSE) -> Waits River Valley UESD
A79: U049 | B79: 5596599 | C79: 184747 | D79: 0 | E79: 0 | F79: 2 | G79: 5411852 | H79: =VLOOKUP($A79,FY23prefillData!$A$3:$B$320,2,FALSE) -> Barstow USD
A80: U051 | B80: 99694125 | C80: 26063475 | D80: 0 | E80: 0 | F80: 0 | G80: 73630650 | H80: =VLOOKUP($A80,FY23prefillData!$A$3:$B$320,2,FALSE) -> Essex-Westford EC USD
A81: U052 | B81: 19826555 | C81: 4698521 | D81: 586854 | E81: 54177 | F81: 0 | G81: 15128034 | H81: =VLOOKUP($A81,FY23prefillData!$A$3:$B$320,2,FALSE) -> Mill River UHSD
A82: U053 | B82: 24174395 | C82: 734198 | D82: 566402 | E82: 0 | F82: 3 | G82: 23440197 | H82: =VLOOKUP($A82,FY23prefillData!$A$3:$B$320,2,FALSE) -> Otter Valley UHSD
A83: U054 | B83: 25312768 | C83: 3724463 | D83: 1027167 | E83: 0 | F83: 23601 | G83: 21588305 | H83: =VLOOKUP($A83,FY23prefillData!$A$3:$B$320,2,FALSE) -> Addison NW USD
A84: U055 | B84: 45421671 | C84: 9239721 | D84: 172073 | E84: 0 | F84: 254104 | G84: 36181950 | H84: =VLOOKUP($A84,FY23prefillData!$A$3:$B$320,2,FALSE) -> Addison Central USD
A85: U056 | B85: 96119804 | C85: 14699925 | D85: 3771837 | E85: 0 | F85: 181903 | G85: 81419879 | H85: =VLOOKUP($A85,FY23prefillData!$A$3:$B$320,2,FALSE) -> Champlain Valley USD
A86: U057 | B86: 69422742 | C86: 18317511 | D86: 1222240 | E86: 3000 | F86: 28861 | G86: 51105231 | H86: =VLOOKUP($A86,FY23prefillData!$A$3:$B$320,2,FALSE) -> Maple Run USD
A87: U058A | B87: 15877742 | C87: 2217599 | D87: 882640 | E87: 0 | F87: 0 | G87: 13660143 | H87: =VLOOKUP($A87,FY23prefillData!$A$3:$B$320,2,FALSE) -> Lamoille North MUSD
A88: U058B | B88: 16767640 | C88: 1325191 | D88: 151372 | E88: 0 | F88: 0 | G88: 15442449 | H88: =VLOOKUP($A88,FY23prefillData!$A$3:$B$320,2,FALSE) -> Lamoille North MUSD
A89: U059 | B89: 24717628 | C89: 6258620 | D89: 0 | E89: 0 | F89: 136606 | G89: 18459008 | H89: =VLOOKUP($A89,FY23prefillData!$A$3:$B$320,2,FALSE) -> Orange Southwest USD
A90: U060 | B90: 45422241 | C90: 6910579 | D90: 573186 | E90: 0 | F90: 0 | G90: 38511662 | H90: =VLOOKUP($A90,FY23prefillData!$A$3:$B$320,2,FALSE) -> Harwood USD
A91: U061 | B91: 33868900 | C91: 5426959 | D91: 67525 | E91: 0 | F91: 177750 | G91: 28441941 | H91: =VLOOKUP($A91,FY23prefillData!$A$3:$B$320,2,FALSE) -> Mt. Abraham USD
A92: U062 | B92: 28056400 | C92: 4781475 | D92: 73152 | E92: 0 | F92: 107020 | G92: 23274925 | H92: =VLOOKUP($A92,FY23prefillData!$A$3:$B$320,2,FALSE) -> Slate Valley USD
A93: U063 | B93: 37254647 | C93: 2576618 | D93: 167605 | E93: 8219 | F93: 251841 | G93: 34678029 | H93: =VLOOKUP($A93,FY23prefillData!$A$3:$B$320,2,FALSE) -> Taconic & Green Regional USD
A94: U064 | B94: 41069545 | C94: 5588910 | D94: 0 | E94: 0 | F94: 0 | G94: 35480635 | H94: =VLOOKUP($A94,FY23prefillData!$A$3:$B$320,2,FALSE) -> Kingdom East USD
A95: U065 | B95: 0 | C95: 0 | D95: 0 | E95: 0 | F95: 0 | G95: 0 | H95: =VLOOKUP($A95,FY23prefillData!$A$3:$B$320,2,FALSE) -> Northeast Kingdom Choice USD
A96: U066 | B96: 8679312 | C96: 253400 | D96: 0 | E96: 0 | F96: 0 | G96: 8425912 | H96: =VLOOKUP($A96,FY23prefillData!$A$3:$B$320,2,FALSE) -> Champlain Islands UUSD
A97: U067 | B97: 5924139 | C97: 583799 | D97: 0 | E97: 0 | F97: 0 | G97: 5340340 | H97: =VLOOKUP($A97,FY23prefillData!$A$3:$B$320,2,FALSE) -> Echo Valley Community School District
A98: U068 | B98: 20385954 | C98: 1685716 | D98: 0 | E98: 0 | F98: 0 | G98: 18700238 | H98: =VLOOKUP($A98,FY23prefillData!$A$3:$B$320,2,FALSE) -> Paine Mountain School District
A99: U069 | B99: 5782862 | C99: 283678 | D99: 0 | E99: 0 | F99: 0 | G99: 5499184 | H99: =VLOOKUP($A99,FY23prefillData!$A$3:$B$320,2,FALSE) -> Wells Spring USD
A100: U070 | B100: 19887185 | C100: 1872259 | D100: 246180 | E100: 0 | F100: 0 | G100: 18014926 | H100: =VLOOKUP($A100,FY23prefillData!$A$3:$B$320,2,FALSE) -> Quarry Valley USD
A101: U071 | B101: 28878500 | C101: 4870347 | D101: 249153 | E101: 0 | F101: 0 | G101: 24008153 | H101: =VLOOKUP($A101,FY23prefillData!$A$3:$B$320,2,FALSE) -> Montpelier Roxbury School District
A102: U072A | B102: 5937046 | C102: 313595 | D102: 122636 | E102: 0 | F102: 0 | G102: 5623451 | H102: =VLOOKUP($A102,FY23prefillData!$A$3:$B$320,2,FALSE) -> West River Modified Union Education District A
A103: U072B | B103: 7606564 | C103: 525327 | D103: 122635 | E103: 0 | F103: 0 | G103: 7081237 | H103: =VLOOKUP($A103,FY23prefillData!$A$3:$B$320,2,FALSE) -> West River MUED B
A104: U073 | B104: 6286114 | C104: 387388 | D104: 0 | E104: 0 | F104: 0 | G104: 5898726 | H104: River Valleys USD
A105: U075 | B105: 9974757 | C105: 932165 | D105: 0 | E105: 0 | F105: 42868 | G105: 9042592 | H105: =VLOOKUP($A105,FY23prefillData!$A$3:$B$320,2,FALSE) -> Twin Valley USD
A106: U076 | B106: 26865144 | C106: 5373875 | D106: 0 | E106: 0 | F106: 0 | G106: 21491269 | H106: =VLOOKUP($A106,FY23prefillData!$A$3:$B$320,2,FALSE) -> Windsor Central UUSD
A107: U077 | B107: 15837173 | C107: 1977595 | D107: 139645 | E107: 0 | F107: 54121 | G107: 13859578 | H107: =VLOOKUP($A107,FY23prefillData!$A$3:$B$320,2,FALSE) -> Green Mountain USD
A108: U078 | B108: 13843459 | C108: 731780 | D108: 0 | E108: 0 | F108: 3900 | G108: 13111679 | H108: =VLOOKUP($A108,FY23prefillData!$A$3:$B$320,2,FALSE) -> Caledonia Cooperative USD
A109: U079 | B109: 12968515 | C109: 1300516 | D109: 339424 | E109: 0 | F109: 64767 | G109: 11667999 | H109: =VLOOKUP($A109,FY23prefillData!$A$3:$B$320,2,FALSE) -> White River USD
A110: U080 | B110: 0 | C110: 0 | D110: 0 | E110: 0 | F110: 0 | G110: 0 | H110: =VLOOKUP($A110,FY23prefillData!$A$3:$B$320,2,FALSE) -> Granville-Hancock USD
A111: U081 | B111: 0 | C111: 0 | D111: 0 | E111: 0 | F111: 0 | G111: 0 | H111: Rochester-Stockbridge USD
A112: U082 | B112: 7663387 | C112: 669509 | D112: 51500 | E112: 0 | F112: 7279 | G112: 6993878 | H112: =VLOOKUP($A112,FY23prefillData!$A$3:$B$320,2,FALSE) -> First Branch USD
A113: U083 | B113: 7668103 | C113: 378602 | D113: 22062 | E113: 0 | F113: 30859 | G113: 7289501 | H113: =VLOOKUP($A113,FY23prefillData!$A$3:$B$320,2,FALSE) -> Ludlow-Mt. Holly UUSD
A114: U084 | B114: 6482338 | C114: 308571 | D114: 0 | E114: 0 | F114: 12568 | G114: 6173767 | H114: =VLOOKUP($A114,FY23prefillData!$A$3:$B$320,2,FALSE) -> Mettawee School District
A115: U085 | B115: 19481245 | C115: 482099 | D115: 407635 | E115: 0 | F115: 68563 | G115: 18999146 | H115: =VLOOKUP($A115,FY23prefillData!$A$3:$B$320,2,FALSE) -> Northern Mountain Valley UUSD
A116: U086 | B116: 13716349 | C116: 1643835 | D116: 0 | E116: 0 | F116: 78683 | G116: 12072514 | H116: =VLOOKUP($A116,FY23prefillData!$A$3:$B$320,2,FALSE) -> Mount Ascutney USD
A117: U087 | B117: 27167856 | C117: 3456361 | D117: 388185 | E117: 0 | F117: 0 | G117: 23711495 | H117: =VLOOKUP($A117,FY23prefillData!$A$3:$B$320,2,FALSE) -> Southwest Vermont UESD
A118: U088 | B118: 21423069 | C118: 4674124 | D118: 400000 | E118: 0 | F118: 84506 | G118: 16748945 | H118: =VLOOKUP($A118,FY23prefillData!$A$3:$B$320,2,FALSE) -> Enosburgh-Richford USD
A119: U089 | B119: 44983567 | C119: 11002484 | D119: 379141 | E119: 0 | F119: 0 | G119: 33981083 | H119: =VLOOKUP($A119,FY23prefillData!$A$3:$B$320,2,FALSE) -> Missisquois Valley School District
A120: U090 | B120: 16231675 | C120: 1330000 | D120: 0 | E120: 0 | F120: 0 | G120: 14901675 | H120: =VLOOKUP($A120,FY23prefillData!$A$3:$B$320,2,FALSE) -> Lamoille South USD
A121: U091 | B121: 0 | C121: 0 | D121: 0 | E121: 0 | F121: 0 | G121: 0 | H121: =VLOOKUP($A121,FY23prefillData!$A$3:$B$320,2,FALSE) -> Oxbow UHSD
A122: U092 | B122: 38921331 | C122: 7224092 | D122: 935522 | E122: 0 | F122: 129319 | G122: 31697239 | H122: =VLOOKUP($A122,FY23prefillData!$A$3:$B$320,2,FALSE) -> Washington Central USD
A123: U093 | B123: 14334284 | C123: 1966098 | D123: 0 | E123: 0 | F123: 0 | G123: 12368186 | H123: =VLOOKUP($A123,FY23prefillData!$A$3:$B$320,2,FALSE) -> Lake Region Union Elementary-Middle School district
A124: U094 | B124: 7415157 | C124: 562779 | D124: 0 | E124: 0 | F124: 30014 | G124: 6852378 | H124: =VLOOKUP($A124,FY23prefillData!$A$3:$B$320,2,FALSE) -> Orleans Southwest UESD
A125: U095 | B125: 1756793 | C125: 181005 | D125: 0 | E125: 0 | F125: 0 | G125: 1575788 | H125: =VLOOKUP($A125,FY23prefillData!$A$3:$B$320,2,FALSE) -> Windham Northeast UESD
A126: U096 | B126: 62704054 | C126: 11026518 | D126: 1707325 | E126: 0 | F126: 180000 | G126: 51677536 | H126: =VLOOKUP($A126,FY23prefillData!$A$3:$B$320,2,FALSE) -> Windham Southeast USD
A127: U097 | B127: 47963133 | C127: 9970237 | D127: 0 | E127: 0 | F127: 0 | G127: 37992896 | H127: =VLOOKUP($A127,FY23prefillData!$A$3:$B$320,2,FALSE) -> Barre USD
A128: U146 | B128: 10441313 | C128: 2226693 | D128: 315416 | E128: 0 | F128: 0 | G128: 8214620 | H128: =VLOOKUP($A128,FY23prefillData!$A$3:$B$320,2,FALSE) -> Rivendell Interstate USD
A129: U401 | B129: 55274112 | C129: 8979443 | D129: 721950 | E129: 0 | F129: 146373 | G129: 46294669 | H129: =VLOOKUP($A129,FY23prefillData!$A$3:$B$320,2,FALSE) -> Mt. Mansfield USD

Sheet BUDDATAFY24
A1: DISTID | B1: TYP | C1: FUND | D1: FUNC | E1: AMOUNT | F1: FY
A2: =Expenditures!A2 -> X | B2: =Expenditures!B2 -> E | C2: =Expenditures!C2 -> 1 | D2: =Expenditures!E2 -> 1000 | E2: =Expenditures!G2 -> 0 | F2: =Expenditures!H2 -> FY24
A3: =Expenditures!A3 -> X | B3: =Expenditures!B3 -> E | C3: =Expenditures!C3 -> 1 | D3: =Expenditures!E3 -> 1568 | E3: =Expenditures!G3 -> 0 | F3: =Expenditures!H3 -> FY24
A4: =Expenditures!A4 -> X | B4: =Expenditures!B4 -> E | C4: =Expenditures!C4 -> 1 | D4: =Expenditures!E4 -> 1569 | E4: =Expenditures!G4 -> 0 | F4: =Expenditures!H4 -> FY24
A5: =Expenditures!A5 -> X | B5: =Expenditures!B5 -> E | C5: =Expenditures!C5 -> 1 | D5: =Expenditures!E5 -> 2396 | E5: =Expenditures!G5 -> 0 | F5: =Expenditures!H5 -> FY24
A6: =Expenditures!A6 -> X | B6: =Expenditures!B6 -> E | C6: =Expenditures!C6 -> 1 | D6: =Expenditures!E6 -> 2397 | E6: =Expenditures!G6 -> 0 | F6: =Expenditures!H6 -> FY24
A7: =Expenditures!A7 -> X | B7: =Expenditures!B7 -> E | C7: =Expenditures!C7 -> 1 | D7: =Expenditures!E7 -> 2999 | E7: =Expenditures!G7 -> 0 | F7: =Expenditures!H7 -> FY24
A8: =Expenditures!A8 -> X | B8: =Expenditures!B8 -> E | C8: =Expenditures!C8 -> 1 | D8: =Expenditures!E8 -> 3100 | E8: =Expenditures!G8 -> 0 | F8: =Expenditures!H8 -> FY24
A9: =Expenditures!A9 -> X | B9: =Expenditures!B9 -> E | C9: =Expenditures!C9 -> 1 | D9: =Expenditures!E9 -> 3200 | E9: =Expenditures!G9 -> 0 | F9: =Expenditures!H9 -> FY24
A10: =Expenditures!A10 -> X | B10: =Expenditures!B10 -> E | C10: =Expenditures!C10 -> 1 | D10: =Expenditures!E10 -> 3300 | E10: =Expenditures!G10 -> 0 | F10: =Expenditures!H10 -> FY24
A11: =Expenditures!A11 -> X | B11: =Expenditures!B11 -> E | C11: =Expenditures!C11 -> 1 | D11: =Expenditures!E11 -> 4000 | E11: =Expenditures!G11 -> 0 | F11: =Expenditures!H11 -> FY24
A12: =Expenditures!A12 -> X | B12: =Expenditures!B12 -> E | C12: =Expenditures!C12 -> 6 | D12: =Expenditures!E12 -> 4000 | E12: =Expenditures!G12 -> 0 | F12: =Expenditures!H12 -> FY24
A13: =Expenditures!A13 -> X | B13: =Expenditures!B13 -> E | C13: =Expenditures!C13 -> 1 | D13: =Expenditures!E13 -> 5100 | E13: =Expenditures!G13 -> 0 | F13: =Expenditures!H13 -> FY24
A14: =Expenditures!A14 -> X | B14: =Expenditures!B14 -> E | C14: =Expenditures!C14 -> 6 | D14: =Expenditures!E14 -> 5100 | E14: =Expenditures!G14 -> 0 | F14: =Expenditures!H14 -> FY24
A15: =Expenditures!A15 -> X | B15: =Expenditures!B15 -> E | C15: =Expenditures!C15 -> 1 | D15: =Expenditures!E15 -> 5210 | E15: =Expenditures!G15 -> 0 | F15: =Expenditures!H15 -> FY24
A16: =Expenditures!A16 -> X | B16: =Expenditures!B16 -> E | C16: =Expenditures!C16 -> 1 | D16: =Expenditures!E16 -> 5310 | E16: =Expenditures!G16 -> 0 | F16: =Expenditures!H16 -> FY24
A17: =Expenditures!A17 -> X | B17: =Expenditures!B17 -> E | C17: =Expenditures!C17 -> 1 | D17: =Expenditures!E17 -> 5350 | E17: =Expenditures!G17 -> 0 | F17: =Expenditures!H17 -> FY24
A18: =Expenditures!A18 -> X | B18: =Expenditures!B18 -> E | C18: =Expenditures!C18 -> 1 | D18: =Expenditures!E18 -> 5353 | E18: =Expenditures!G18 -> 0 | F18: =Expenditures!H18 -> FY24
A19: =Expenditures!A19 -> X | B19: =Expenditures!B19 -> E | C19: =Expenditures!C19 -> 1 | D19: =Expenditures!E19 -> 5390 | E19: =Expenditures!G19 -> 0 | F19: =Expenditures!H19 -> FY24
A20: =Expenditures!A20 -> X | B20: =Expenditures!B20 -> E | C20: =Expenditures!C20 -> 1 | D20: =Expenditures!E20 -> 5500 | E20: =Expenditures!G20 -> 0 | F20: =Expenditures!H20 -> FY24
A21: =Expenditures!A21 -> X | B21: =Expenditures!B21 -> E | C21: =Expenditures!C21 -> 1 | D21: =Expenditures!E21 -> 6999 | E21: =Expenditures!G21 -> 0 | F21: =Expenditures!H21 -> FY24
A22: =Expenditures!A22 -> X | B22: =Expenditures!B22 -> E | C22: =Expenditures!C22 -> 6 | D22: =Expenditures!E22 -> 6999 | E22: =Expenditures!G22 -> 0 | F22: =Expenditures!H22 -> FY24
A23: =Expenditures!A23 -> X | B23: =Expenditures!B23 -> E | C23: =Expenditures!C23 -> 1 | D23: =Expenditures!E23 -> 8112 | E23: =Expenditures!G23 -> 0 | F23: =Expenditures!H23 -> FY24
A24: =Expenditures!A24 -> X | B24: =Expenditures!B24 -> E | C24: =Expenditures!C24 -> 1 | D24: =Expenditures!E24 -> 8121 | E24: =Expenditures!G24 -> 0 | F24: =Expenditures!H24 -> FY24
A25: =Expenditures!A25 -> X | B25: =Expenditures!B25 -> E | C25: =Expenditures!C25 -> 1 | D25: =Expenditures!E25 -> 8125 | E25: =Expenditures!G25 -> 0 | F25: =Expenditures!H25 -> FY24
A26: =Expenditures!A26 -> X | B26: =Expenditures!B26 -> E | C26: =Expenditures!C26 -> 1 | D26: =Expenditures!E26 -> 8130 | E26: =Expenditures!G26 -> 0 | F26: =Expenditures!H26 -> FY24
A27: =Expenditures!A27 -> X | B27: =Expenditures!B27 -> E | C27: =Expenditures!C27 -> 1 | D27: =Expenditures!E27 -> 8888 | E27: =Expenditures!G27 -> 0 | F27: =Expenditures!H27 -> FY24
A28: =Expenditures!A28 -> X | B28: =Expenditures!B28 -> E | C28: =Expenditures!C28 -> 1 | D28: =Expenditures!E28 -> 8135 | E28: =Expenditures!G28 -> 0 | F28: =Expenditures!H28 -> FY24
A29: =Expenditures!A29 -> X | B29: =Expenditures!B29 -> E | C29: =Expenditures!C29 -> 1 | D29: =Expenditures!E29 -> 8140 | E29: =Expenditures!G29 -> 0 | F29: =Expenditures!H29 -> FY24
A30: =Expenditures!A30 -> X | B30: =Expenditures!B30 -> E | C30: =Expenditures!C30 -> 1 | D30: =Expenditures!E30 -> 8145 | E30: =Expenditures!G30 -> 0 | F30: =Expenditures!H30 -> FY24
A31: =Revenues!A2 -> X | B31: =Revenues!B2 -> R | C31: =Revenues!C2 -> 5 | D31: =Revenues!E2 -> 1110 | E31: =Revenues!G2 -> 0 | F31: =Revenues!H2 -> FY24
A32: =Revenues!A3 -> X | B32: =Revenues!B3 -> R | C32: =Revenues!C3 -> 5 | D32: =Revenues!E3 -> 1170 | E32: =Revenues!G3 -> 0 | F32: =Revenues!H3 -> FY24
A33: =Revenues!A4 -> X | B33: =Revenues!B4 -> R | C33: =Revenues!C4 -> 5 | D33: =Revenues!E4 -> 1180 | E33: =Revenues!G4 -> 0 | F33: =Revenues!H4 -> FY24
A34: =Revenues!A5 -> X | B34: =Revenues!B5 -> R | C34: =Revenues!C5 -> 5 | D34: =Revenues!E5 -> 1200 | E34: =Revenues!G5 -> 0 | F34: =Revenues!H5 -> FY24
A35: =Revenues!A6 -> X | B35: =Revenues!B6 -> R | C35: =Revenues!C6 -> 5 | D35: =Revenues!E6 -> 1300 | E35: =Revenues!G6 -> 0 | F35: =Revenues!H6 -> FY24
A36: =Revenues!A7 -> X | B36: =Revenues!B7 -> R | C36: =Revenues!C7 -> 5 | D36: =Revenues!E7 -> 1400 | E36: =Revenues!G7 -> 0 | F36: =Revenues!H7 -> FY24
A37: =Revenues!A8 -> X | B37: =Revenues!B8 -> R | C37: =Revenues!C8 -> 5 | D37: =Revenues!E8 -> 1500 | E37: =Revenues!G8 -> 0 | F37: =Revenues!H8 -> FY24
A38: =Revenues!A9 -> X | B38: =Revenues!B9 -> R | C38: =Revenues!C9 -> 6 | D38: =Revenues!E9 -> 1500 | E38: =Revenues!G9 -> 0 | F38: =Revenues!H9 -> FY24
A39: =Revenues!A10 -> X | B39: =Revenues!B10 -> R | C39: =Revenues!C10 -> 5 | D39: =Revenues!E10 -> 1600 | E39: =Revenues!G10 -> 0 | F39: =Revenues!H10 -> FY24
A40: =Revenues!A11 -> X | B40: =Revenues!B11 -> R | C40: =Revenues!C11 -> 5 | D40: =Revenues!E11 -> 1700 | E40: =Revenues!G11 -> 0 | F40: =Revenues!H11 -> FY24
A41: =Revenues!A12 -> X | B41: =Revenues!B12 -> R | C41: =Revenues!C12 -> 5 | D41: =Revenues!E12 -> 1800 | E41: =Revenues!G12 -> 0 | F41: =Revenues!H12 -> FY24
A42: =Revenues!A13 -> X | B42: =Revenues!B13 -> R | C42: =Revenues!C13 -> 5 | D42: =Revenues!E13 -> 1920 | E42: =Revenues!G13 -> 0 | F42: =Revenues!H13 -> FY24
A43: =Revenues!A14 -> X | B43: =Revenues!B14 -> R | C43: =Revenues!C14 -> 5 | D43: =Revenues!E14 -> 1999 | E43: =Revenues!G14 -> 0 | F43: =Revenues!H14 -> FY24
A44: =Revenues!A15 -> X | B44: =Revenues!B15 -> R | C44: =Revenues!C15 -> 5 | D44: =Revenues!E15 -> 2000 | E44: =Revenues!G15 -> 0 | F44: =Revenues!H15 -> FY24
A45: =Revenues!A16 -> X | B45: =Revenues!B16 -> R | C45: =Revenues!C16 -> 5 | D45: =Revenues!E16 -> 2950 | E45: =Revenues!G16 -> 0 | F45: =Revenues!H16 -> FY24
A46: =Revenues!A17 -> X | B46: =Revenues!B17 -> R | C46: =Revenues!C17 -> 5 | D46: =Revenues!E17 -> 3110 | E46: =Revenues!G17 -> 0 | F46: =Revenues!H17 -> FY24
A47: =Revenues!A18 -> X | B47: =Revenues!B18 -> R | C47: =Revenues!C18 -> 5 | D47: =Revenues!E18 -> 3114 | E47: =Revenues!G18 -> 0 | F47: =Revenues!H18 -> FY24
A48: =Revenues!A19 -> X | B48: =Revenues!B19 -> R | C48: =Revenues!C19 -> 5 | D48: =Revenues!E19 -> 3130 | E48: =Revenues!G19 -> 0 | F48: =Revenues!H19 -> FY24
A49: =Revenues!A20 -> X | B49: =Revenues!B20 -> R | C49: =Revenues!C20 -> 6 | D49: =Revenues!E20 -> 3130 | E49: =Revenues!G20 -> 0 | F49: =Revenues!H20 -> FY24
A50: =Revenues!A21 -> X | B50: =Revenues!B21 -> R | C50: =Revenues!C21 -> 5 | D50: =Revenues!E21 -> 3145 | E50: =Revenues!G21 -> 0 | F50: =Revenues!H21 -> FY24
A51: =Revenues!A22 -> X | B51: =Revenues!B22 -> R | C51: =Revenues!C22 -> 5 | D51: =Revenues!E22 -> 3146 | E51: =Revenues!G22 -> 0 | F51: =Revenues!H22 -> FY24
A52: =Revenues!A23 -> X | B52: =Revenues!B23 -> R | C52: =Revenues!C23 -> 5 | D52: =Revenues!E23 -> 3150 | E52: =Revenues!G23 -> 0 | F52: =Revenues!H23 -> FY24
A53: =Revenues!A24 -> X | B53: =Revenues!B24 -> R | C53: =Revenues!C24 -> 5 | D53: =Revenues!E24 -> 3152 | E53: =Revenues!G24 -> 0 | F53: =Revenues!H24 -> FY24
A54: =Revenues!A25 -> X | B54: =Revenues!B25 -> R | C54: =Revenues!C25 -> 5 | D54: =Revenues!E25 -> 3170 | E54: =Revenues!G25 -> 0 | F54: =Revenues!H25 -> FY24
A55: =Revenues!A26 -> X | B55: =Revenues!B26 -> R | C55: =Revenues!C26 -> 5 | D55: =Revenues!E26 -> 3199 | E55: =Revenues!G26 -> 0 | F55: =Revenues!H26 -> FY24
A56: =Revenues!A27 -> X | B56: =Revenues!B27 -> R | C56: =Revenues!C27 -> 5 | D56: =Revenues!E27 -> 3200 | E56: =Revenues!G27 -> 0 | F56: =Revenues!H27 -> FY24
A57: =Revenues!A28 -> X | B57: =Revenues!B28 -> R | C57: =Revenues!C28 -> 6 | D57: =Revenues!E28 -> 3200 | E57: =Revenues!G28 -> 0 | F57: =Revenues!H28 -> FY24
A58: =Revenues!A29 -> X | B58: =Revenues!B29 -> R | C58: =Revenues!C29 -> 5 | D58: =Revenues!E29 -> 3999 | E58: =Revenues!G29 -> 0 | F58: =Revenues!H29 -> FY24
A59: =Revenues!A30 -> X | B59: =Revenues!B30 -> R | C59: =Revenues!C30 -> 5 | D59: =Revenues!E30 -> 4100 | E59: =Revenues!G30 -> 0 | F59: =Revenues!H30 -> FY24
A60: =Revenues!A31 -> X | B60: =Revenues!B31 -> R | C60: =Revenues!C31 -> 5 | D60: =Revenues!E31 -> 4120 | E60: =Revenues!G31 -> 0 | F60: =Revenues!H31 -> FY24
A61: =Revenues!A32 -> X | B61: =Revenues!B32 -> R | C61: =Revenues!C32 -> 5 | D61: =Revenues!E32 -> 4200 | E61: =Revenues!G32 -> 0 | F61: =Revenues!H32 -> FY24
A62: =Revenues!A33 -> X | B62: =Revenues!B33 -> R | C62: =Revenues!C33 -> 6 | D62: =Revenues!E33 -> 4200 | E62: =Revenues!G33 -> 0 | F62: =Revenues!H33 -> FY24
A63: =Revenues!A34 -> X | B63: =Revenues!B34 -> R | C63: =Revenues!C34 -> 5 | D63: =Revenues!E34 -> 4800 | E63: =Revenues!G34 -> 0 | F63: =Revenues!H34 -> FY24
A64: =Revenues!A35 -> X | B64: =Revenues!B35 -> R | C64: =Revenues!C35 -> 5 | D64: =Revenues!E35 -> 4900 | E64: =Revenues!G35 -> 0 | F64: =Revenues!H35 -> FY24
A65: =Revenues!A36 -> X | B65: =Revenues!B36 -> R | C65: =Revenues!C36 -> 5 | D65: =Revenues!E36 -> 4950 | E65: =Revenues!G36 -> 0 | F65: =Revenues!H36 -> FY24
A66: =Revenues!A37 -> X | B66: =Revenues!B37 -> R | C66: =Revenues!C37 -> 5 | D66: =Revenues!E37 -> 5100 | E66: =Revenues!G37 -> 0 | F66: =Revenues!H37 -> FY24
A67: =Revenues!A38 -> X | B67: =Revenues!B38 -> R | C67: =Revenues!C38 -> 6 | D67: =Revenues!E38 -> 5100 | E67: =Revenues!G38 -> 0 | F67: =Revenues!H38 -> FY24
A68: =Revenues!A39 -> X | B68: =Revenues!B39 -> R | C68: =Revenues!C39 -> 5 | D68: =Revenues!E39 -> 5230 | E68: =Revenues!G39 -> 0 | F68: =Revenues!H39 -> FY24
A69: =Revenues!A40 -> X | B69: =Revenues!B40 -> R | C69: =Revenues!C40 -> 6 | D69: =Revenues!E40 -> 5230 | E69: =Revenues!G40 -> 0 | F69: =Revenues!H40 -> FY24
A70: =Revenues!A41 -> X | B70: =Revenues!B41 -> R | C70: =Revenues!C41 -> 5 | D70: =Revenues!E41 -> 5233 | E70: =Revenues!G41 -> 0 | F70: =Revenues!H41 -> FY24
A71: =Revenues!A42 -> X | B71: =Revenues!B42 -> R | C71: =Revenues!C42 -> 5 | D71: =Revenues!E42 -> 5299 | E71: =Revenues!G42 -> 0 | F71: =Revenues!H42 -> FY24
A72: =Revenues!A43 -> X | B72: =Revenues!B43 -> R | C72: =Revenues!C43 -> 6 | D72: =Revenues!E43 -> 5299 | E72: =Revenues!G43 -> 0 | F72: =Revenues!H43 -> FY24
A73: =Revenues!A44 -> X | B73: =Revenues!B44 -> R | C73: =Revenues!C44 -> 5 | D73: =Revenues!E44 -> 5300 | E73: =Revenues!G44 -> 0 | F73: =Revenues!H44 -> FY24
A74: =Revenues!A45 -> X | B74: =Revenues!B45 -> R | C74: =Revenues!C45 -> 5 | D74: =Revenues!E45 -> 5400 | E74: =Revenues!G45 -> 0 | F74: =Revenues!H45 -> FY24
A75: =Revenues!A46 -> X | B75: =Revenues!B46 -> R | C75: =Revenues!C46 -> 5 | D75: =Revenues!E46 -> 5480 | E75: =Revenues!G46 -> 0 | F75: =Revenues!H46 -> FY24
A76: =Revenues!A47 -> X | B76: =Revenues!B47 -> R | C76: =Revenues!C47 -> 5 | D76: =Revenues!E47 -> 5500 | E76: =Revenues!G47 -> 0 | F76: =Revenues!H47 -> FY24
A77: =Revenues!A48 -> X | B77: =Revenues!B48 -> R | C77: =Revenues!C48 -> 5 | D77: =Revenues!E48 -> 5600 | E77: =Revenues!G48 -> 0 | F77: =Revenues!H48 -> FY24
A78: =Revenues!A49 -> X | B78: =Revenues!B49 -> R | C78: =Revenues!C49 -> 5 | D78: =Revenues!E49 -> 5700 | E78: =Revenues!G49 -> 0 | F78: =Revenues!H49 -> FY24
A79: =Revenues!A50 -> X | B79: =Revenues!B50 -> R | C79: =Revenues!C50 -> 5 | D79: =Revenues!E50 -> 5999 | E79: =Revenues!G50 -> 0 | F79: =Revenues!H50 -> FY24
A80: =Revenues!A51 -> X | B80: =Revenues!B51 -> R | C80: =Revenues!C51 -> 5 | D80: =Revenues!E51 -> 6999 | E80: =Revenues!G51 -> 0 | F80: =Revenues!H51 -> FY24
A81: =Revenues!A52 -> X | B81: =Revenues!B52 -> R | C81: =Revenues!C52 -> 6 | D81: =Revenues!E52 -> 6999 | E81: =Revenues!G52 -> 0 | F81: =Revenues!H52 -> FY24
A82: =Revenues!A53 -> X | B82: =Revenues!B53 -> R | C82: =Revenues!C53 -> 5 | D82: =Revenues!E53 -> 8830 | E82: =Revenues!G53 -> 0 | F82: =Revenues!H53 -> FY24
A83: =Revenues!A54 -> X | B83: =Revenues!B54 -> R | C83: =Revenues!C54 -> 5 | D83: =Revenues!E54 -> 8888 | E83: =Revenues!G54 -> 0 | F83: =Revenues!H54 -> FY24
A84: =IF(OR(Cover!$F$6="T119",Cover!$F$6="T238"),Revenues!#REF!,Revenues!A55) ->  | B84: =IF(OR(Cover!$F$6="T119",Cover!$F$6="T238"),Revenues!#REF!,Revenues!B55) ->  | C84: =IF(OR(Cover!$F$6="T119",Cover!$F$6="T238"),Revenues!#REF!,Revenues!C55) ->  | D84: =IF(OR(Cover!$F$6="T119",Cover!$F$6="T238"),Revenues!#REF!,Revenues!E55) ->  | E84: =IF(AND(ISERROR(VLOOKUP(Cover!F6,LISTvoc!A1:A12,1,FALSE)),ISERROR(VLOOKUP(Cover!F6,LISTvoc!H1:H1,1,FALSE)))=TRUE,"",IF(OR(Cover!$F$6="T119",Cover!$F$6="T238"),Revenues!#REF!,Revenues!G55)) ->  | F84: =IF(OR(Cover!$F$6="T119",Cover!$F$6="T238"),Revenues!#REF!,Revenues!H55) -> 
A85: =IF(OR(Cover!$F$6="T119",Cover!$F$6="T238"),Expenditures!#REF!,Expenditures!A31) ->  | B85: =IF(OR(Cover!$F$6="T119",Cover!$F$6="T238"),Expenditures!#REF!,Expenditures!B31) ->  | C85: =IF(OR(Cover!$F$6="T119",Cover!$F$6="T238"),Expenditures!#REF!,Expenditures!C31) ->  | D85: =IF(OR(Cover!$F$6="T119",Cover!$F$6="T238"),Expenditures!#REF!,Expenditures!E31) ->  | E85: =IF(AND(ISERROR(VLOOKUP(Cover!F6,LISTvoc!A1:A12,1,FALSE)),ISERROR(VLOOKUP(Cover!F6,LISTvoc!H1:H1,1,FALSE)))=TRUE,"",IF(OR(Cover!$F$6="T119",Cover!$F$6="T238"),Expenditures!#REF!,Expenditures!G31)) ->  | F85: =IF(OR(Cover!$F$6="T119",Cover!$F$6="T238"),Expenditures!#REF!,Expenditures!H31) -> 

Sheet LISTvoc
A2: T037 | B2: 2398 | C2: 3113 | D2: Burlington
A3: U051 | B3: 2398 | C3: 3113 | D3: Essex-Westford EC USD
A4: U088 | B4: 2398 | C4: 3113 | D4: Enosburgh-Richford UUSD
A5: U058B | B5: 2398 | C5: 3113 | D5: Lamoille North MUSD
A6: T093 | B6: 2398 | C6: 3113 | D6: Hartford | H6: E | I6: 1 | J6: LOCAL EDUCATION | K6: 1000 | L6: DIRECT INSTR-EXCEPT TECH CTR TUITION | M6: FY18
A7: U022B | B7: 2398 | C7: 3113 | D7: North Country Sr UHSD | H7: E | I7: 1 | J7: LOCAL EDUCATION | K7: 1568 | L7: OBJ 568-TCH CTR TUIT/AMT STATE PAYS FOR DST | M7: FY18
A8: U057 | B8: 2398 | C8: 3113 | D8: Maple Run USD | H8: E | I8: 1 | J8: LOCAL EDUCATION | K8: 1569 | L8: OBJ 569-DISTRICT TUITION TO TECH CNTRS | M8: FY18
A9: U059 | B9: 2398 | C9: 3113 | D9: Orange Southwest USD | H9: E | I9: 1 | J9: LOCAL EDUCATION | K9: 2396 | L9: ADMINISTRATIVE SUPPORT SERVICES - LEA | M9: FY18
A10: U091 | B10: 2398 | C10: 3113 | D10: Oxbow UHSD | H10: E | I10: 1 | J10: LOCAL EDUCATION | K10: 2397 | L10: ADMINISTRATIVE SUPPORT SERV. - ASSESS TO SU | M10: FY18
A11: T173 | B11: 2398 | C11: 3113 | D11: Rutland City | H11: E | I11: 1 | J11: LOCAL EDUCATION | K11: 2999 | L11: ALL FUNC 2000 SUPPORT SERV. NOT INCL. ABOVE | M11: FY18
A12: U096 | B12: 2398 | C12: 3113 | D12: Windham Southeast USD | H12: E | I12: 1 | J12: LOCAL EDUCATION | K12: 3100 | L12: FOOD SERVICES | M12: FY18
H13: E | I13: 1 | J13: LOCAL EDUCATION | K13: 3200 | L13: ENTERPRISE OPERATIONS | M13: FY18
H14: E | I14: 1 | J14: LOCAL EDUCATION | K14: 3300 | L14: COMMUNITY SERVICES | M14: FY18
H15: E | I15: 1 | J15: LOCAL EDUCATION | K15: 4000 | L15: FACILITY ACQUISITION AND CONSTRUCTION | M15: FY18
H16: E | I16: 6 | J16: CAPITAL PROJECT FUNDS | K16: 4000 | L16: FACILITY ACQUISITION AND CONSTRUCTION | M16: FY18
H17: E | I17: 1 | J17: LOCAL EDUCATION | K17: 5100 | L17: OTHER-DEBT SERVICE | M17: FY18
H18: E | I18: 6 | J18: CAPITAL PROJECT FUNDS | K18: 5100 | L18: OTHER-DEBT SERVICE | M18: FY18
H19: E | I19: 1 | J19: LOCAL EDUCATION | K19: 5210 | L19: ADJUSTMENTS/REPAYMENTS TO THE STATE | M19: FY18
H20: E | I20: 1 | J20: LOCAL EDUCATION | K20: 5310 | L20: TRANSFERS TO ENTERPRISE FUNDS | M20: FY18
H21: E | I21: 1 | J21: LOCAL EDUCATION | K21: 5350 | L21: CONTRS TO RSRVD ACCTS (INC. FUNC 5352) | M21: FY18
H22: E | I22: 1 | J22: LOCAL EDUCATION | K22: 5353 | L22: TRANSFER TO QSCB DEBT SERVICE FUND | M22: FY18
H23: E | I23: 1 | J23: LOCAL EDUCATION | K23: 5390 | L23: OTHER-FUND TRANSFERS | M23: FY18
H24: E | I24: 1 | J24: LOCAL EDUCATION | K24: 5500 | L24: OTHER-SUBGRANTS | M24: FY18
H25: E | I25: 1 | J25: LOCAL EDUCATION | K25: 6999 | L25: DEFICIT | M25: FY18
H26: E | I26: 6 | J26: CAPITAL PROJECT FUNDS | K26: 6999 | L26: DEFICIT | M26: FY18
H27: E | I27: 1 | J27: LOCAL EDUCATION | K27: 8112 | L27: DEFICIT FOR NEW SPED 20 | M27: FY18
H28: E | I28: 1 | J28: LOCAL EDUCATION | K28: 8121 | L28: SPED IN EXCESS OF 50K | M28: FY18
H29: E | I29: 1 | J29: LOCAL EDUCATION | K29: 8125 | L29: DEFICIT FROM NEW TUITION | M29: FY18
H30: E | I30: 1 | J30: LOCAL EDUCATION | K30: 8130 | L30: PLANNING COSTS FOR SMALL SCHOOLS MERGER | M30: FY18
H31: E | I31: 1 | J31: LOCAL EDUCATION | K31: 8888 | L31: ELIGIBLE CAP CONST/DEBT SERVICE FOR ALL ELIG.PROJS | M31: FY18
H32: E | I32: 1 | J32: LOCAL EDUCATION | K32: 8135 | L32: ASSESSMENTS TO VERMONT TEACHERS RETIRMENT SYSTEM | M32: FY18

Sheet FY23Exp
A1: DSTNAME | B1: SUID | C1: DSTID | D1: MFUNC | E1: MFUNCDESC | F1: FUND | G1: FUNC | H1: DESCRIPTION | I1: AMOUNT | J1: TYP | L1: Updated: | M1: 2023-05-01
A2: Mt. Mansfield UUSD | B2: SU012 | C2: U401 | D2: 1000 | E2: DIRECT INSTRUCTION | F2: 1 | G2: 1000 | H2: DIRECT INSTR-EXCEPT TECH CTR TUITION | I2: 33543731 | J2: E | L2: Denotes Fund 6
A3: Mt. Mansfield UUSD | B3: SU012 | C3: U401 | D3: 1000 | E3: DIRECT INSTRUCTION | F3: 1 | G3: 1568 | H3: OBJ 568-TCH CTR TUIT/AMT STATE PAYS FOR DST | I3: 637199 | J3: E | K3: Data come from: | M3: J:\FY2023\Base23\Budget23
A4: Mt. Mansfield UUSD | B4: SU012 | C4: U401 | D4: 1000 | E4: DIRECT INSTRUCTION | F4: 1 | G4: 1569 | H4: OBJ 569-DISTRICT TUITION TO TECH CNTRS | I4: 521833 | J4: E | K4: prior year budgets | M4: Budget Data Convert FY23 v01.xlsm
A5: Mt. Mansfield UUSD | B5: SU012 | C5: U401 | D5: 2000 | E5: SUPPORTING SERVICES | F5: 1 | G5: 2396 | H5: ADMINISTRATIVE SUPPORT SERVICES - LEA | I5: 9452578 | J5: E
A6: Mt. Mansfield UUSD | B6: SU012 | C6: U401 | D6: 2000 | E6: SUPPORTING SERVICES | F6: 1 | G6: 2999 | H6: ALL FUNC 2000 SUPPORT SERV. NOT INCL. ABOVE | I6: 6883845 | J6: E
A7: Mt. Mansfield UUSD | B7: SU012 | C7: U401 | D7: 4000 | E7: FACILITY ACQUISITION AND CONSTRUCTION | F7: 1 | G7: 4000 | H7: FACILITY ACQUISITION AND CONSTRUCTION | I7: 325000 | J7: E
A8: Mt. Mansfield UUSD | B8: SU012 | C8: U401 | D8: 5000 | E8: OTHER EXPENDITURES | F8: 1 | G8: 5100 | H8: OTHER-DEBT SERVICE | I8: 724709 | J8: E
A9: Mt. Mansfield UUSD | B9: SU012 | C9: U401 | D9: 5000 | E9: OTHER EXPENDITURES | F9: 1 | G9: 5310 | H9: TRANSFERS TO ENTERPRISE FUNDS | I9: 82000 | J9: E
A10: Mt. Mansfield UUSD | B10: SU012 | C10: U401 | D10: 5000 | E10: OTHER EXPENDITURES | F10: 1 | G10: 5350 | H10: CONTRS TO RSRVD ACCTS (INC. FUNC 5352) | I10: 100000 | J10: E
A11: Mt. Mansfield UUSD | B11: SU012 | C11: U401 | D11: 5000 | E11: OTHER EXPENDITURES | F11: 1 | G11: 5353 | H11: TRANSFER TO QSCB DEBT SERVICE FUND | I11: 140000 | J11: E
A12: Mt. Mansfield UUSD | B12: SU012 | C12: U401 | D12: 8100 | E12: ADDITIONAL EXCESS OFFSETS | F12: 1 | G12: 8121 | H12: SPED IN EXCESS OF 50K | I12: 27892 | J12: E
A13: Mt. Mansfield UUSD | B13: SU012 | C13: U401 | D13: 8100 | E13: ADDITIONAL EXCESS OFFSETS | F13: 1 | G13: 8135 | H13: ASSESSMENTS TO VERMONT TEACHERS RETIREMENT SYSTEM | I13: 96148 | J13: E
A14: Mt. Mansfield UUSD | B14: SU012 | C14: U401 | D14: 8000 | E14: CAPITAL CONST/DEBT SRVC FOR ELIGIBLE PROJECTS | F14: 1 | G14: 8888 | H14: ELIGIBLE CAP CONST/DEBT SERVICE FOR ALL ELIG.PROJS | I14: 702779 | J14: E
A15: Rivendell Interstate USD | B15: SU064 | C15: U146 | D15: 1000 | E15: DIRECT INSTRUCTION | F15: 1 | G15: 1000 | H15: DIRECT INSTR-EXCEPT TECH CTR TUITION | I15: 5177775 | J15: E
A16: Rivendell Interstate USD | B16: SU064 | C16: U146 | D16: 1000 | E16: DIRECT INSTRUCTION | F16: 1 | G16: 1568 | H16: OBJ 568-TCH CTR TUIT/AMT STATE PAYS FOR DST | I16: 86597 | J16: E
A17: Rivendell Interstate USD | B17: SU064 | C17: U146 | D17: 1000 | E17: DIRECT INSTRUCTION | F17: 1 | G17: 1569 | H17: OBJ 569-DISTRICT TUITION TO TECH CNTRS | I17: 34634 | J17: E
A18: Rivendell Interstate USD | B18: SU064 | C18: U146 | D18: 2000 | E18: SUPPORTING SERVICES | F18: 1 | G18: 2396 | H18: ADMINISTRATIVE SUPPORT SERVICES - LEA | I18: 1216538 | J18: E
A19: Rivendell Interstate USD | B19: SU064 | C19: U146 | D19: 2000 | E19: SUPPORTING SERVICES | F19: 1 | G19: 2999 | H19: ALL FUNC 2000 SUPPORT SERV. NOT INCL. ABOVE | I19: 2102006 | J19: E
A20: Rivendell Interstate USD | B20: SU064 | C20: U146 | D20: 3000 | E20: NON-INSTRUCTIONAL SERVICES | F20: 1 | G20: 3100 | H20: FOOD SERVICES | I20: 225490 | J20: E
A21: Rivendell Interstate USD | B21: SU064 | C21: U146 | D21: 3000 | E21: NON-INSTRUCTIONAL SERVICES | F21: 1 | G21: 3300 | H21: COMMUNITY SERVICES | I21: 98237 | J21: E
A22: Rivendell Interstate USD | B22: SU064 | C22: U146 | D22: 5000 | E22: OTHER EXPENDITURES | F22: 1 | G22: 5100 | H22: OTHER-DEBT SERVICE | I22: 305430 | J22: E
A23: Rivendell Interstate USD | B23: SU064 | C23: U146 | D23: 5000 | E23: OTHER EXPENDITURES | F23: 1 | G23: 5350 | H23: CONTRS TO RSRVD ACCTS (INC. FUNC 5352) | I23: 150682 | J23: E
A24: Rivendell Interstate USD | B24: SU064 | C24: U146 | D24: 5000 | E24: OTHER EXPENDITURES | F24: 1 | G24: 5390 | H24: OTHER-FUND TRANSFERS | I24: 47876 | J24: E
A25: Rivendell Interstate USD | B25: SU064 | C25: U146 | D25: 8100 | E25: ADDITIONAL EXCESS OFFSETS | F25: 1 | G25: 8121 | H25: SPED IN EXCESS OF 50K | I25: 3654 | J25: E
A26: Rivendell Interstate USD | B26: SU064 | C26: U146 | D26: 8000 | E26: CAPITAL CONST/DEBT SRVC FOR ELIGIBLE PROJECTS | F26: 1 | G26: 8888 | H26: ELIGIBLE CAP CONST/DEBT SERVICE FOR ALL ELIG.PROJS | I26: 305430 | J26: E
A27: Barre UUSD | B27: SU061 | C27: U097 | D27: 1000 | E27: DIRECT INSTRUCTION | F27: 1 | G27: 1000 | H27: DIRECT INSTR-EXCEPT TECH CTR TUITION | I27: 42295617 | J27: E
A28: Barre UUSD | B28: SU061 | C28: U097 | D28: 1000 | E28: DIRECT INSTRUCTION | F28: 1 | G28: 1568 | H28: OBJ 568-TCH CTR TUIT/AMT STATE PAYS FOR DST | I28: 571346 | J28: E
A29: Barre UUSD | B29: SU061 | C29: U097 | D29: 1000 | E29: DIRECT INSTRUCTION | F29: 1 | G29: 1569 | H29: OBJ 569-DISTRICT TUITION TO TECH CNTRS | I29: 388654 | J29: E
A30: Barre UUSD | B30: SU061 | C30: U097 | D30: 2000 | E30: SUPPORTING SERVICES | F30: 1 | G30: 2396 | H30: ADMINISTRATIVE SUPPORT SERVICES - LEA | I30: 3475705 | J30: E
A31: Barre UUSD | B31: SU061 | C31: U097 | D31: 5000 | E31: OTHER EXPENDITURES | F31: 1 | G31: 5100 | H31: OTHER-DEBT SERVICE | I31: 522997 | J31: E
A32: Barre UUSD | B32: SU061 | C32: U097 | D32: 8100 | E32: ADDITIONAL EXCESS OFFSETS | F32: 1 | G32: 8121 | H32: SPED IN EXCESS OF 50K | I32: 52985 | J32: E
A33: Windham Southeast UUSD | B33: SU048 | C33: U096 | D33: 1000 | E33: DIRECT INSTRUCTION | F33: 1 | G33: 1000 | H33: DIRECT INSTR-EXCEPT TECH CTR TUITION | I33: 28356329 | J33: E
A34: Windham Southeast UUSD | B34: SU048 | C34: U096 | D34: 1000 | E34: DIRECT INSTRUCTION | F34: 1 | G34: 1568 | H34: OBJ 568-TCH CTR TUIT/AMT STATE PAYS FOR DST | I34: 632992 | J34: E
A35: Windham Southeast UUSD | B35: SU048 | C35: U096 | D35: 1000 | E35: DIRECT INSTRUCTION | F35: 1 | G35: 1569 | H35: OBJ 569-DISTRICT TUITION TO TECH CNTRS | I35: 463504 | J35: E
A36: Windham Southeast UUSD | B36: SU048 | C36: U096 | D36: 2000 | E36: SUPPORTING SERVICES | F36: 1 | G36: 2396 | H36: ADMINISTRATIVE SUPPORT SERVICES - LEA | I36: 12404510 | J36: E
A37: Windham Southeast UUSD | B37: SU048 | C37: U096 | D37: 2000 | E37: SUPPORTING SERVICES | F37: 1 | G37: 2397 | H37: ADMINISTRATIVE SUPPORT SERV. - ASSESS TO SU | I37: 2450150 | J37: E
A38: Windham Southeast UUSD | B38: SU048 | C38: U096 | D38: 2000 | E38: SUPPORTING SERVICES | F38: 1 | G38: 2999 | H38: ALL FUNC 2000 SUPPORT SERV. NOT INCL. ABOVE | I38: 14031115 | J38: E
A39: Windham Southeast UUSD | B39: SU048 | C39: U096 | D39: 3000 | E39: NON-INSTRUCTIONAL SERVICES | F39: 1 | G39: 3100 | H39: FOOD SERVICES | I39: 108160 | J39: E
A40: Windham Southeast UUSD | B40: SU048 | C40: U096 | D40: 5000 | E40: OTHER EXPENDITURES | F40: 1 | G40: 5100 | H40: OTHER-DEBT SERVICE | I40: 1817074 | J40: E
A41: Windham Southeast UUSD | B41: SU048 | C41: U096 | D41: 5000 | E41: OTHER EXPENDITURES | F41: 1 | G41: 5350 | H41: CONTRS TO RSRVD ACCTS (INC. FUNC 5352) | I41: 30000 | J41: E
A42: Windham Southeast UUSD | B42: SU048 | C42: U096 | D42: 8100 | E42: ADDITIONAL EXCESS OFFSETS | F42: 1 | G42: 8121 | H42: SPED IN EXCESS OF 50K | I42: 22813 | J42: E
A43: Windham Southeast UUSD | B43: SU048 | C43: U096 | D43: 8100 | E43: ADDITIONAL EXCESS OFFSETS | F43: 1 | G43: 8135 | H43: ASSESSMENTS TO VERMONT TEACHERS RETIREMENT SYSTEM | I43: 151420 | J43: E
A44: Windham Southeast UUSD | B44: SU048 | C44: U096 | D44: 8100 | E44: ADDITIONAL EXCESS OFFSETS | F44: 1 | G44: 8140 | H44: COSTS FOR DUAL ENROLLMENT AND EARLY COLLEGE | I44: 12000 | J44: E
A45: Windham Southeast UUSD | B45: SU048 | C45: U096 | D45: 8100 | E45: ADDITIONAL EXCESS OFFSETS | F45: 1 | G45: 8145 | H45: COSTS FOR LEAD SAMPLING, REMEDIATION AND RETESTING | I45: 10000 | J45: E
A46: Windham Southeast UUSD | B46: SU048 | C46: U096 | D46: 8000 | E46: CAPITAL CONST/DEBT SRVC FOR ELIGIBLE PROJECTS | F46: 1 | G46: 8888 | H46: ELIGIBLE CAP CONST/DEBT SERVICE FOR ALL ELIG.PROJS | I46: 1817074 | J46: E
A47: Windham Northeast UESD | B47: SU047 | C47: U095 | D47: 1000 | E47: DIRECT INSTRUCTION | F47: 1 | G47: 1000 | H47: DIRECT INSTR-EXCEPT TECH CTR TUITION | I47: 1075498 | J47: E
A48: Windham Northeast UESD | B48: SU047 | C48: U095 | D48: 2000 | E48: SUPPORTING SERVICES | F48: 1 | G48: 2396 | H48: ADMINISTRATIVE SUPPORT SERVICES - LEA | I48: 150598 | J48: E
A49: Windham Northeast UESD | B49: SU047 | C49: U095 | D49: 2000 | E49: SUPPORTING SERVICES | F49: 1 | G49: 2397 | H49: ADMINISTRATIVE SUPPORT SERV. - ASSESS TO SU | I49: 45626 | J49: E
A50: Windham Northeast UESD | B50: SU047 | C50: U095 | D50: 2000 | E50: SUPPORTING SERVICES | F50: 1 | G50: 2999 | H50: ALL FUNC 2000 SUPPORT SERV. NOT INCL. ABOVE | I50: 496172 | J50: E
A51: Windham Northeast UESD | B51: SU047 | C51: U095 | D51: 3000 | E51: NON-INSTRUCTIONAL SERVICES | F51: 1 | G51: 3100 | H51: FOOD SERVICES | I51: 9090 | J51: E
A52: Orleans Southwest UESD | B52: SU035 | C52: U094 | D52: 1000 | E52: DIRECT INSTRUCTION | F52: 1 | G52: 1000 | H52: DIRECT INSTR-EXCEPT TECH CTR TUITION | I52: 3346787 | J52: E
A53: Orleans Southwest UESD | B53: SU035 | C53: U094 | D53: 2000 | E53: SUPPORTING SERVICES | F53: 1 | G53: 2396 | H53: ADMINISTRATIVE SUPPORT SERVICES - LEA | I53: 566017 | J53: E
A54: Orleans Southwest UESD | B54: SU035 | C54: U094 | D54: 2000 | E54: SUPPORTING SERVICES | F54: 1 | G54: 2397 | H54: ADMINISTRATIVE SUPPORT SERV. - ASSESS TO SU | I54: 1541210 | J54: E
A55: Orleans Southwest UESD | B55: SU035 | C55: U094 | D55: 2000 | E55: SUPPORTING SERVICES | F55: 1 | G55: 2999 | H55: ALL FUNC 2000 SUPPORT SERV. NOT INCL. ABOVE | I55: 1473812 | J55: E
A56: Orleans Southwest UESD | B56: SU035 | C56: U094 | D56: 3000 | E56: NON-INSTRUCTIONAL SERVICES | F56: 1 | G56: 3100 | H56: FOOD SERVICES | I56: 172725 | J56: E
A57: Orleans Southwest UESD | B57: SU035 | C57: U094 | D57: 5000 | E57: OTHER EXPENDITURES | F57: 1 | G57: 5100 | H57: OTHER-DEBT SERVICE | I57: 35614 | J57: E
A58: Orleans Southwest UESD | B58: SU035 | C58: U094 | D58: 8100 | E58: ADDITIONAL EXCESS OFFSETS | F58: 1 | G58: 8121 | H58: SPED IN EXCESS OF 50K | I58: 496 | J58: E
A59: Orleans Southwest UESD | B59: SU035 | C59: U094 | D59: 8100 | E59: ADDITIONAL EXCESS OFFSETS | F59: 1 | G59: 8135 | H59: ASSESSMENTS TO VERMONT TEACHERS RETIREMENT SYSTEM | I59: 19628 | J59: E
A60: Lake Region Union Elementary-Middle School district | B60: SU034 | C60: U093 | D60: 1000 | E60: DIRECT INSTRUCTION | F60: 1 | G60: 1000 | H60: DIRECT INSTR-EXCEPT TECH CTR TUITION | I60: 8294745 | J60: E
A61: Lake Region Union Elementary-Middle School district | B61: SU034 | C61: U093 | D61: 2000 | E61: SUPPORTING SERVICES | F61: 1 | G61: 2396 | H61: ADMINISTRATIVE SUPPORT SERVICES - LEA | I61: 1158247 | J61: E
A62: Lake Region Union Elementary-Middle School district | B62: SU034 | C62: U093 | D62: 2000 | E62: SUPPORTING SERVICES | F62: 1 | G62: 2397 | H62: ADMINISTRATIVE SUPPORT SERV. - ASSESS TO SU | I62: 171214 | J62: E
A63: Lake Region Union Elementary-Middle School district | B63: SU034 | C63: U093 | D63: 2000 | E63: SUPPORTING SERVICES | F63: 1 | G63: 2999 | H63: ALL FUNC 2000 SUPPORT SERV. NOT INCL. ABOVE | I63: 2947057 | J63: E
A64: Lake Region Union Elementary-Middle School district | B64: SU034 | C64: U093 | D64: 5000 | E64: OTHER EXPENDITURES | F64: 1 | G64: 5100 | H64: OTHER-DEBT SERVICE | I64: 10000 | J64: E
A65: Lake Region Union Elementary-Middle School district | B65: SU034 | C65: U093 | D65: 5000 | E65: OTHER EXPENDITURES | F65: 1 | G65: 5310 | H65: TRANSFERS TO ENTERPRISE FUNDS | I65: 202472 | J65: E
A66: Lake Region Union Elementary-Middle School district | B66: SU034 | C66: U093 | D66: 5000 | E66: OTHER EXPENDITURES | F66: 1 | G66: 5353 | H66: TRANSFER TO QSCB DEBT SERVICE FUND | I66: 58000 | J66: E
A67: Washington Central UUSD | B67: SU032 | C67: U092 | D67: 1000 | E67: DIRECT INSTRUCTION | F67: 1 | G67: 1000 | H67: DIRECT INSTR-EXCEPT TECH CTR TUITION | I67: 19742859 | J67: E
A68: Washington Central UUSD | B68: SU032 | C68: U092 | D68: 1000 | E68: DIRECT INSTRUCTION | F68: 1 | G68: 1568 | H68: OBJ 568-TCH CTR TUIT/AMT STATE PAYS FOR DST | I68: 310967 | J68: E
A69: Washington Central UUSD | B69: SU032 | C69: U092 | D69: 1000 | E69: DIRECT INSTRUCTION | F69: 1 | G69: 1569 | H69: OBJ 569-DISTRICT TUITION TO TECH CNTRS | I69: 240879 | J69: E
A70: Washington Central UUSD | B70: SU032 | C70: U092 | D70: 2000 | E70: SUPPORTING SERVICES | F70: 1 | G70: 2396 | H70: ADMINISTRATIVE SUPPORT SERVICES - LEA | I70: 6882632 | J70: E
A71: Washington Central UUSD | B71: SU032 | C71: U092 | D71: 2000 | E71: SUPPORTING SERVICES | F71: 1 | G71: 2999 | H71: ALL FUNC 2000 SUPPORT SERV. NOT INCL. ABOVE | I71: 6880383 | J71: E
A72: Washington Central UUSD | B72: SU032 | C72: U092 | D72: 5000 | E72: OTHER EXPENDITURES | F72: 1 | G72: 5100 | H72: OTHER-DEBT SERVICE | I72: 1011432 | J72: E
A73: Washington Central UUSD | B73: SU032 | C73: U092 | D73: 5000 | E73: OTHER EXPENDITURES | F73: 1 | G73: 5310 | H73: TRANSFERS TO ENTERPRISE FUNDS | I73: 189115 | J73: E
A74: Washington Central UUSD | B74: SU032 | C74: U092 | D74: 5000 | E74: OTHER EXPENDITURES | F74: 1 | G74: 5350 | H74: CONTRS TO RSRVD ACCTS (INC. FUNC 5352) | I74: 880000 | J74: E
A75: Washington Central UUSD | B75: SU032 | C75: U092 | D75: 5000 | E75: OTHER EXPENDITURES | F75: 1 | G75: 5353 | H75: TRANSFER TO QSCB DEBT SERVICE FUND | I75: 31000 | J75: E
A76: Washington Central UUSD | B76: SU032 | C76: U092 | D76: 8100 | E76: ADDITIONAL EXCESS OFFSETS | F76: 1 | G76: 8121 | H76: SPED IN EXCESS OF 50K | I76: 21650 | J76: E
A77: Washington Central UUSD | B77: SU032 | C77: U092 | D77: 8100 | E77: ADDITIONAL EXCESS OFFSETS | F77: 1 | G77: 8135 | H77: ASSESSMENTS TO VERMONT TEACHERS RETIREMENT SYSTEM | I77: 107669 | J77: E
A78: Washington Central UUSD | B78: SU032 | C78: U092 | D78: 8000 | E78: CAPITAL CONST/DEBT SRVC FOR ELIGIBLE PROJECTS | F78: 1 | G78: 8888 | H78: ELIGIBLE CAP CONST/DEBT SERVICE FOR ALL ELIG.PROJS | I78: 935522 | J78: E
A79: Oxbow UUSD | B79: SU027 | C79: U091 | D79: 1000 | E79: DIRECT INSTRUCTION | F79: 1 | G79: 1000 | H79: DIRECT INSTR-EXCEPT TECH CTR TUITION | I79: 9360426 | J79: E
A80: Oxbow UUSD | B80: SU027 | C80: U091 | D80: 1000 | E80: DIRECT INSTRUCTION | F80: 1 | G80: 1568 | H80: OBJ 568-TCH CTR TUIT/AMT STATE PAYS FOR DST | I80: 317034 | J80: E
A81: Oxbow UUSD | B81: SU027 | C81: U091 | D81: 1000 | E81: DIRECT INSTRUCTION | F81: 1 | G81: 1569 | H81: OBJ 569-DISTRICT TUITION TO TECH CNTRS | I81: 200000 | J81: E
A82: Oxbow UUSD | B82: SU027 | C82: U091 | D82: 2000 | E82: SUPPORTING SERVICES | F82: 1 | G82: 2396 | H82: ADMINISTRATIVE SUPPORT SERVICES - LEA | I82: 2880864 | J82: E
A83: Oxbow UUSD | B83: SU027 | C83: U091 | D83: 2000 | E83: SUPPORTING SERVICES | F83: 1 | G83: 2397 | H83: ADMINISTRATIVE SUPPORT SERV. - ASSESS TO SU | I83: 792066 | J83: E
A84: Oxbow UUSD | B84: SU027 | C84: U091 | D84: 2000 | E84: SUPPORTING SERVICES | F84: 1 | G84: 2999 | H84: ALL FUNC 2000 SUPPORT SERV. NOT INCL. ABOVE | I84: 3656614 | J84: E
A85: Oxbow UUSD | B85: SU027 | C85: U091 | D85: 5000 | E85: OTHER EXPENDITURES | F85: 1 | G85: 5100 | H85: OTHER-DEBT SERVICE | I85: 229848 | J85: E
A86: Oxbow UUSD | B86: SU027 | C86: U091 | D86: 5000 | E86: OTHER EXPENDITURES | F86: 1 | G86: 5310 | H86: TRANSFERS TO ENTERPRISE FUNDS | I86: 124783 | J86: E
A87: Lamoille South UUSD | B87: SU026 | C87: U090 | D87: 1000 | E87: DIRECT INSTRUCTION | F87: 1 | G87: 1000 | H87: DIRECT INSTR-EXCEPT TECH CTR TUITION | I87: 20948000 | J87: E
A88: Lamoille South UUSD | B88: SU026 | C88: U090 | D88: 1000 | E88: DIRECT INSTRUCTION | F88: 1 | G88: 1568 | H88: OBJ 568-TCH CTR TUIT/AMT STATE PAYS FOR DST | I88: 277307 | J88: E
A89: Lamoille South UUSD | B89: SU026 | C89: U090 | D89: 1000 | E89: DIRECT INSTRUCTION | F89: 1 | G89: 1569 | H89: OBJ 569-DISTRICT TUITION TO TECH CNTRS | I89: 241093 | J89: E
A90: Lamoille South UUSD | B90: SU026 | C90: U090 | D90: 2000 | E90: SUPPORTING SERVICES | F90: 1 | G90: 2396 | H90: ADMINISTRATIVE SUPPORT SERVICES - LEA | I90: 1761425 | J90: E
A91: Lamoille South UUSD | B91: SU026 | C91: U090 | D91: 2000 | E91: SUPPORTING SERVICES | F91: 1 | G91: 2397 | H91: ADMINISTRATIVE SUPPORT SERV. - ASSESS TO SU | I91: 506700 | J91: E
A92: Lamoille South UUSD | B92: SU026 | C92: U090 | D92: 2000 | E92: SUPPORTING SERVICES | F92: 1 | G92: 2999 | H92: ALL FUNC 2000 SUPPORT SERV. NOT INCL. ABOVE | I92: 9590600 | J92: E
A93: Lamoille South UUSD | B93: SU026 | C93: U090 | D93: 5000 | E93: OTHER EXPENDITURES | F93: 1 | G93: 5100 | H93: OTHER-DEBT SERVICE | I93: 152400 | J93: E
A94: Lamoille South UUSD | B94: SU026 | C94: U090 | D94: 5000 | E94: OTHER EXPENDITURES | F94: 1 | G94: 5310 | H94: TRANSFERS TO ENTERPRISE FUNDS | I94: 333500 | J94: E
A95: Lamoille South UUSD | B95: SU026 | C95: U090 | D95: 5000 | E95: OTHER EXPENDITURES | F95: 1 | G95: 5350 | H95: CONTRS TO RSRVD ACCTS (INC. FUNC 5352) | I95: 250000 | J95: E
A96: Lamoille South UUSD | B96: SU026 | C96: U090 | D96: 8100 | E96: ADDITIONAL EXCESS OFFSETS | F96: 1 | G96: 8121 | H96: SPED IN EXCESS OF 50K | I96: 4058 | J96: E
A97: Lamoille South UUSD | B97: SU026 | C97: U090 | D97: 8100 | E97: ADDITIONAL EXCESS OFFSETS | F97: 1 | G97: 8135 | H97: ASSESSMENTS TO VERMONT TEACHERS RETIREMENT SYSTEM | I97: 75000 | J97: E
A98: Lamoille South UUSD | B98: SU026 | C98: U090 | D98: 8000 | E98: CAPITAL CONST/DEBT SRVC FOR ELIGIBLE PROJECTS | F98: 1 | G98: 8888 | H98: ELIGIBLE CAP CONST/DEBT SERVICE FOR ALL ELIG.PROJS | I98: 152400 | J98: E
A99: Missisquois Valley School District | B99: SU021 | C99: U089 | D99: 1000 | E99: DIRECT INSTRUCTION | F99: 1 | G99: 1000 | H99: DIRECT INSTR-EXCEPT TECH CTR TUITION | I99: 23882483 | J99: E
A100: Missisquois Valley School District | B100: SU021 | C100: U089 | D100: 1000 | E100: DIRECT INSTRUCTION | F100: 1 | G100: 1568 | H100: OBJ 568-TCH CTR TUIT/AMT STATE PAYS FOR DST | I100: 190514 | J100: E
A101: Missisquois Valley School District | B101: SU021 | C101: U089 | D101: 1000 | E101: DIRECT INSTRUCTION | F101: 1 | G101: 1569 | H101: OBJ 569-DISTRICT TUITION TO TECH CNTRS | I101: 131885 | J101: E
A102: Missisquois Valley School District | B102: SU021 | C102: U089 | D102: 2000 | E102: SUPPORTING SERVICES | F102: 1 | G102: 2396 | H102: ADMINISTRATIVE SUPPORT SERVICES - LEA | I102: 15690156 | J102: E
A103: Missisquois Valley School District | B103: SU021 | C103: U089 | D103: 3000 | E103: NON-INSTRUCTIONAL SERVICES | F103: 1 | G103: 3100 | H103: FOOD SERVICES | I103: 18204 | J103: E
A104: Missisquois Valley School District | B104: SU021 | C104: U089 | D104: 4000 | E104: FACILITY ACQUISITION AND CONSTRUCTION | F104: 1 | G104: 4000 | H104: FACILITY ACQUISITION AND CONSTRUCTION | I104: 435000 | J104: E
A105: Missisquois Valley School District | B105: SU021 | C105: U089 | D105: 5000 | E105: OTHER EXPENDITURES | F105: 1 | G105: 5100 | H105: OTHER-DEBT SERVICE | I105: 419012 | J105: E
A106: Missisquois Valley School District | B106: SU021 | C106: U089 | D106: 8100 | E106: ADDITIONAL EXCESS OFFSETS | F106: 1 | G106: 8121 | H106: SPED IN EXCESS OF 50K | I106: 22517 | J106: E
A107: Enosburgh-Richford UUSD | B107: SU020 | C107: U088 | D107: 1000 | E107: DIRECT INSTRUCTION | F107: 1 | G107: 1000 | H107: DIRECT INSTR-EXCEPT TECH CTR TUITION | I107: 11218898 | J107: E
A108: Enosburgh-Richford UUSD | B108: SU020 | C108: U088 | D108: 1000 | E108: DIRECT INSTRUCTION | F108: 1 | G108: 1568 | H108: OBJ 568-TCH CTR TUIT/AMT STATE PAYS FOR DST | I108: 364296 | J108: E
A109: Enosburgh-Richford UUSD | B109: SU020 | C109: U088 | D109: 1000 | E109: DIRECT INSTRUCTION | F109: 1 | G109: 1569 | H109: OBJ 569-DISTRICT TUITION TO TECH CNTRS | I109: 175704 | J109: E
A110: Enosburgh-Richford UUSD | B110: SU020 | C110: U088 | D110: 2000 | E110: SUPPORTING SERVICES | F110: 1 | G110: 2396 | H110: ADMINISTRATIVE SUPPORT SERVICES - LEA | I110: 3313425 | J110: E
A111: Enosburgh-Richford UUSD | B111: SU020 | C111: U088 | D111: 2000 | E111: SUPPORTING SERVICES | F111: 1 | G111: 2397 | H111: ADMINISTRATIVE SUPPORT SERV. - ASSESS TO SU | I111: 2149860 | J111: E
A112: Enosburgh-Richford UUSD | B112: SU020 | C112: U088 | D112: 2000 | E112: SUPPORTING SERVICES | F112: 1 | G112: 2999 | H112: ALL FUNC 2000 SUPPORT SERV. NOT INCL. ABOVE | I112: 2490675 | J112: E
A113: Enosburgh-Richford UUSD | B113: SU020 | C113: U088 | D113: 4000 | E113: FACILITY ACQUISITION AND CONSTRUCTION | F113: 6 | G113: 4000 | H113: FACILITY ACQUISITION AND CONSTRUCTION | I113: 275000 | J113: E
A114: Enosburgh-Richford UUSD | B114: SU020 | C114: U088 | D114: 5000 | E114: OTHER EXPENDITURES | F114: 1 | G114: 5100 | H114: OTHER-DEBT SERVICE | I114: 461673 | J114: E
A115: Enosburgh-Richford UUSD | B115: SU020 | C115: U088 | D115: 8100 | E115: ADDITIONAL EXCESS OFFSETS | F115: 1 | G115: 8121 | H115: SPED IN EXCESS OF 50K | I115: 1169 | J115: E
A116: Enosburgh-Richford UUSD | B116: SU020 | C116: U088 | D116: 8100 | E116: ADDITIONAL EXCESS OFFSETS | F116: 1 | G116: 8135 | H116: ASSESSMENTS TO VERMONT TEACHERS RETIREMENT SYSTEM | I116: 63950 | J116: E
A117: Enosburgh-Richford UUSD | B117: SU020 | C117: U088 | D117: 8000 | E117: CAPITAL CONST/DEBT SRVC FOR ELIGIBLE PROJECTS | F117: 1 | G117: 8888 | H117: ELIGIBLE CAP CONST/DEBT SERVICE FOR ALL ELIG.PROJS | I117: 451673 | J117: E
A118: Southwest Vermont UESD | B118: SU005 | C118: U087 | D118: 1000 | E118: DIRECT INSTRUCTION | F118: 1 | G118: 1000 | H118: DIRECT INSTR-EXCEPT TECH CTR TUITION | I118: 15388685 | J118: E
A119: Southwest Vermont UESD | B119: SU005 | C119: U087 | D119: 2000 | E119: SUPPORTING SERVICES | F119: 1 | G119: 2396 | H119: ADMINISTRATIVE SUPPORT SERVICES - LEA | I119: 2610897 | J119: E
A120: Southwest Vermont UESD | B120: SU005 | C120: U087 | D120: 2000 | E120: SUPPORTING SERVICES | F120: 1 | G120: 2397 | H120: ADMINISTRATIVE SUPPORT SERV. - ASSESS TO SU | I120: 1204739 | J120: E
A121: Southwest Vermont UESD | B121: SU005 | C121: U087 | D121: 2000 | E121: SUPPORTING SERVICES | F121: 1 | G121: 2999 | H121: ALL FUNC 2000 SUPPORT SERV. NOT INCL. ABOVE | I121: 6796175 | J121: E
A122: Southwest Vermont UESD | B122: SU005 | C122: U087 | D122: 3000 | E122: NON-INSTRUCTIONAL SERVICES | F122: 1 | G122: 3100 | H122: FOOD SERVICES | I122: 29300 | J122: E
A123: Southwest Vermont UESD | B123: SU005 | C123: U087 | D123: 5000 | E123: OTHER EXPENDITURES | F123: 1 | G123: 5100 | H123: OTHER-DEBT SERVICE | I123: 395469 | J123: E
A124: Southwest Vermont UESD | B124: SU005 | C124: U087 | D124: 8100 | E124: ADDITIONAL EXCESS OFFSETS | F124: 1 | G124: 8121 | H124: SPED IN EXCESS OF 50K | I124: 25017 | J124: E
A125: Southwest Vermont UESD | B125: SU005 | C125: U087 | D125: 8100 | E125: ADDITIONAL EXCESS OFFSETS | F125: 1 | G125: 8135 | H125: ASSESSMENTS TO VERMONT TEACHERS RETIREMENT SYSTEM | I125: 62669 | J125: E
A126: Southwest Vermont UESD | B126: SU005 | C126: U087 | D126: 8000 | E126: CAPITAL CONST/DEBT SRVC FOR ELIGIBLE PROJECTS | F126: 1 | G126: 8888 | H126: ELIGIBLE CAP CONST/DEBT SERVICE FOR ALL ELIG.PROJS | I126: 395469 | J126: E
A127: Mount Ascutney SD | B127: SU052 | C127: U086 | D127: 1000 | E127: DIRECT INSTRUCTION | F127: 1 | G127: 1000 | H127: DIRECT INSTR-EXCEPT TECH CTR TUITION | I127: 5144327 | J127: E
A128: Mount Ascutney SD | B128: SU052 | C128: U086 | D128: 1000 | E128: DIRECT INSTRUCTION | F128: 1 | G128: 1568 | H128: OBJ 568-TCH CTR TUIT/AMT STATE PAYS FOR DST | I128: 172901 | J128: E
A129: Mount Ascutney SD | B129: SU052 | C129: U086 | D129: 1000 | E129: DIRECT INSTRUCTION | F129: 1 | G129: 1569 | H129: OBJ 569-DISTRICT TUITION TO TECH CNTRS | I129: 109333 | J129: E
A130: Mount Ascutney SD | B130: SU052 | C130: U086 | D130: 2000 | E130: SUPPORTING SERVICES | F130: 1 | G130: 2396 | H130: ADMINISTRATIVE SUPPORT SERVICES - LEA | I130: 886408 | J130: E
A131: Mount Ascutney SD | B131: SU052 | C131: U086 | D131: 2000 | E131: SUPPORTING SERVICES | F131: 1 | G131: 2397 | H131: ADMINISTRATIVE SUPPORT SERV. - ASSESS TO SU | I131: 3140194 | J131: E
A132: Mount Ascutney SD | B132: SU052 | C132: U086 | D132: 2000 | E132: SUPPORTING SERVICES | F132: 1 | G132: 2999 | H132: ALL FUNC 2000 SUPPORT SERV. NOT INCL. ABOVE | I132: 3624710 | J132: E
A133: Mount Ascutney SD | B133: SU052 | C133: U086 | D133: 5000 | E133: OTHER EXPENDITURES | F133: 1 | G133: 5100 | H133: OTHER-DEBT SERVICE | I133: 25000 | J133: E
A134: Mount Ascutney SD | B134: SU052 | C134: U086 | D134: 8100 | E134: ADDITIONAL EXCESS OFFSETS | F134: 1 | G134: 8121 | H134: SPED IN EXCESS OF 50K | I134: 19501 | J134: E
A135: Mount Ascutney SD | B135: SU052 | C135: U086 | D135: 8100 | E135: ADDITIONAL EXCESS OFFSETS | F135: 1 | G135: 8135 | H135: ASSESSMENTS TO VERMONT TEACHERS RETIREMENT SYSTEM | I135: 47047 | J135: E
A136: Northern Mountain Valley UUSD | B136: SU020 | C136: U085 | D136: 1000 | E136: DIRECT INSTRUCTION | F136: 1 | G136: 1000 | H136: DIRECT INSTR-EXCEPT TECH CTR TUITION | I136: 12090829 | J136: E
A137: Northern Mountain Valley UUSD | B137: SU020 | C137: U085 | D137: 1000 | E137: DIRECT INSTRUCTION | F137: 1 | G137: 1568 | H137: OBJ 568-TCH CTR TUIT/AMT STATE PAYS FOR DST | I137: 418700 | J137: E
A138: Northern Mountain Valley UUSD | B138: SU020 | C138: U085 | D138: 1000 | E138: DIRECT INSTRUCTION | F138: 1 | G138: 1569 | H138: OBJ 569-DISTRICT TUITION TO TECH CNTRS | I138: 273200 | J138: E
A139: Northern Mountain Valley UUSD | B139: SU020 | C139: U085 | D139: 2000 | E139: SUPPORTING SERVICES | F139: 1 | G139: 2396 | H139: ADMINISTRATIVE SUPPORT SERVICES - LEA | I139: 1846979 | J139: E
A140: Northern Mountain Valley UUSD | B140: SU020 | C140: U085 | D140: 2000 | E140: SUPPORTING SERVICES | F140: 1 | G140: 2397 | H140: ADMINISTRATIVE SUPPORT SERV. - ASSESS TO SU | I140: 1494008 | J140: E
A141: Northern Mountain Valley UUSD | B141: SU020 | C141: U085 | D141: 2000 | E141: SUPPORTING SERVICES | F141: 1 | G141: 2999 | H141: ALL FUNC 2000 SUPPORT SERV. NOT INCL. ABOVE | I141: 1558943 | J141: E
A142: Northern Mountain Valley UUSD | B142: SU020 | C142: U085 | D142: 4000 | E142: FACILITY ACQUISITION AND CONSTRUCTION | F142: 6 | G142: 4000 | H142: FACILITY ACQUISITION AND CONSTRUCTION | I142: 200000 | J142: E
A143: Northern Mountain Valley UUSD | B143: SU020 | C143: U085 | D143: 5000 | E143: OTHER EXPENDITURES | F143: 1 | G143: 5100 | H143: OTHER-DEBT SERVICE | I143: 528240 | J143: E
A144: Northern Mountain Valley UUSD | B144: SU020 | C144: U085 | D144: 8100 | E144: ADDITIONAL EXCESS OFFSETS | F144: 1 | G144: 8121 | H144: SPED IN EXCESS OF 50K | I144: 812 | J144: E
A145: Northern Mountain Valley UUSD | B145: SU020 | C145: U085 | D145: 8100 | E145: ADDITIONAL EXCESS OFFSETS | F145: 1 | G145: 8135 | H145: ASSESSMENTS TO VERMONT TEACHERS RETIREMENT SYSTEM | I145: 65520 | J145: E
A146: Northern Mountain Valley UUSD | B146: SU020 | C146: U085 | D146: 8000 | E146: CAPITAL CONST/DEBT SRVC FOR ELIGIBLE PROJECTS | F146: 1 | G146: 8888 | H146: ELIGIBLE CAP CONST/DEBT SERVICE FOR ALL ELIG.PROJS | I146: 412116 | J146: E
A147: Mettawee School District | B147: SU006 | C147: U084 | D147: 1000 | E147: DIRECT INSTRUCTION | F147: 1 | G147: 1000 | H147: DIRECT INSTR-EXCEPT TECH CTR TUITION | I147: 4039788 | J147: E
A148: Mettawee School District | B148: SU006 | C148: U084 | D148: 1000 | E148: DIRECT INSTRUCTION | F148: 1 | G148: 1568 | H148: OBJ 568-TCH CTR TUIT/AMT STATE PAYS FOR DST | I148: 5480 | J148: E
A149: Mettawee School District | B149: SU006 | C149: U084 | D149: 1000 | E149: DIRECT INSTRUCTION | F149: 1 | G149: 1569 | H149: OBJ 569-DISTRICT TUITION TO TECH CNTRS | I149: 8780 | J149: E
A150: Mettawee School District | B150: SU006 | C150: U084 | D150: 2000 | E150: SUPPORTING SERVICES | F150: 1 | G150: 2396 | H150: ADMINISTRATIVE SUPPORT SERVICES - LEA | I150: 609230 | J150: E
A151: Mettawee School District | B151: SU006 | C151: U084 | D151: 2000 | E151: SUPPORTING SERVICES | F151: 1 | G151: 2397 | H151: ADMINISTRATIVE SUPPORT SERV. - ASSESS TO SU | I151: 173581 | J151: E
A152: Mettawee School District | B152: SU006 | C152: U084 | D152: 2000 | E152: SUPPORTING SERVICES | F152: 1 | G152: 2999 | H152: ALL FUNC 2000 SUPPORT SERV. NOT INCL. ABOVE | I152: 1028329 | J152: E
A153: Mettawee School District | B153: SU006 | C153: U084 | D153: 3000 | E153: NON-INSTRUCTIONAL SERVICES | F153: 1 | G153: 3100 | H153: FOOD SERVICES | I153: 144096 | J153: E
A154: Mettawee School District | B154: SU006 | C154: U084 | D154: 5000 | E154: OTHER EXPENDITURES | F154: 1 | G154: 5350 | H154: CONTRS TO RSRVD ACCTS (INC. FUNC 5352) | I154: 40000 | J154: E
A155: Mettawee School District | B155: SU006 | C155: U084 | D155: 8100 | E155: ADDITIONAL EXCESS OFFSETS | F155: 1 | G155: 8121 | H155: SPED IN EXCESS OF 50K | I155: 10701 | J155: E
A156: Mettawee School District | B156: SU006 | C156: U084 | D156: 8100 | E156: ADDITIONAL EXCESS OFFSETS | F156: 1 | G156: 8135 | H156: ASSESSMENTS TO VERMONT TEACHERS RETIREMENT SYSTEM | I156: 981 | J156: E
A157: Ludlow-Mt. Holly UUSD | B157: SU063 | C157: U083 | D157: 1000 | E157: DIRECT INSTRUCTION | F157: 1 | G157: 1000 | H157: DIRECT INSTR-EXCEPT TECH CTR TUITION | I157: 5002328 | J157: E
A158: Ludlow-Mt. Holly UUSD | B158: SU063 | C158: U083 | D158: 1000 | E158: DIRECT INSTRUCTION | F158: 1 | G158: 1568 | H158: OBJ 568-TCH CTR TUIT/AMT STATE PAYS FOR DST | I158: 89239 | J158: E
A159: Ludlow-Mt. Holly UUSD | B159: SU063 | C159: U083 | D159: 1000 | E159: DIRECT INSTRUCTION | F159: 1 | G159: 1569 | H159: OBJ 569-DISTRICT TUITION TO TECH CNTRS | I159: 59260 | J159: E
A160: Ludlow-Mt. Holly UUSD | B160: SU063 | C160: U083 | D160: 2000 | E160: SUPPORTING SERVICES | F160: 1 | G160: 2396 | H160: ADMINISTRATIVE SUPPORT SERVICES - LEA | I160: 1112448 | J160: E
A161: Ludlow-Mt. Holly UUSD | B161: SU063 | C161: U083 | D161: 2000 | E161: SUPPORTING SERVICES | F161: 1 | G161: 2397 | H161: ADMINISTRATIVE SUPPORT SERV. - ASSESS TO SU | I161: 348422 | J161: E
A162: Ludlow-Mt. Holly UUSD | B162: SU063 | C162: U083 | D162: 2000 | E162: SUPPORTING SERVICES | F162: 1 | G162: 2999 | H162: ALL FUNC 2000 SUPPORT SERV. NOT INCL. ABOVE | I162: 659140 | J162: E
A163: Ludlow-Mt. Holly UUSD | B163: SU063 | C163: U083 | D163: 3000 | E163: NON-INSTRUCTIONAL SERVICES | F163: 1 | G163: 3100 | H163: FOOD SERVICES | I163: 114632 | J163: E
A164: Ludlow-Mt. Holly UUSD | B164: SU063 | C164: U083 | D164: 5000 | E164: OTHER EXPENDITURES | F164: 1 | G164: 5100 | H164: OTHER-DEBT SERVICE | I164: 26678 | J164: E
A165: Ludlow-Mt. Holly UUSD | B165: SU063 | C165: U083 | D165: 8100 | E165: ADDITIONAL EXCESS OFFSETS | F165: 1 | G165: 8121 | H165: SPED IN EXCESS OF 50K | I165: 11869 | J165: E
A166: Ludlow-Mt. Holly UUSD | B166: SU063 | C166: U083 | D166: 8100 | E166: ADDITIONAL EXCESS OFFSETS | F166: 1 | G166: 8135 | H166: ASSESSMENTS TO VERMONT TEACHERS RETIREMENT SYSTEM | I166: 15422 | J166: E
A167: Ludlow-Mt. Holly UUSD | B167: SU063 | C167: U083 | D167: 8000 | E167: CAPITAL CONST/DEBT SRVC FOR ELIGIBLE PROJECTS | F167: 1 | G167: 8888 | H167: ELIGIBLE CAP CONST/DEBT SERVICE FOR ALL ELIG.PROJS | I167: 23178 | J167: E
A168: First Branch USD | B168: SU030 | C168: U082 | D168: 1000 | E168: DIRECT INSTRUCTION | F168: 1 | G168: 1000 | H168: DIRECT INSTR-EXCEPT TECH CTR TUITION | I168: 3774716 | J168: E
A169: First Branch USD | B169: SU030 | C169: U082 | D169: 1000 | E169: DIRECT INSTRUCTION | F169: 1 | G169: 1568 | H169: OBJ 568-TCH CTR TUIT/AMT STATE PAYS FOR DST | I169: 118007 | J169: E
A170: First Branch USD | B170: SU030 | C170: U082 | D170: 1000 | E170: DIRECT INSTRUCTION | F170: 1 | G170: 1569 | H170: OBJ 569-DISTRICT TUITION TO TECH CNTRS | I170: 104166 | J170: E
A171: First Branch USD | B171: SU030 | C171: U082 | D171: 2000 | E171: SUPPORTING SERVICES | F171: 1 | G171: 2396 | H171: ADMINISTRATIVE SUPPORT SERVICES - LEA | I171: 520375 | J171: E
A172: First Branch USD | B172: SU030 | C172: U082 | D172: 2000 | E172: SUPPORTING SERVICES | F172: 1 | G172: 2397 | H172: ADMINISTRATIVE SUPPORT SERV. - ASSESS TO SU | I172: 882152 | J172: E
A173: First Branch USD | B173: SU030 | C173: U082 | D173: 2000 | E173: SUPPORTING SERVICES | F173: 1 | G173: 2999 | H173: ALL FUNC 2000 SUPPORT SERV. NOT INCL. ABOVE | I173: 1553748 | J173: E
A174: First Branch USD | B174: SU030 | C174: U082 | D174: 3000 | E174: NON-INSTRUCTIONAL SERVICES | F174: 1 | G174: 3100 | H174: FOOD SERVICES | I174: 37800 | J174: E
A175: First Branch USD | B175: SU030 | C175: U082 | D175: 8100 | E175: ADDITIONAL EXCESS OFFSETS | F175: 1 | G175: 8121 | H175: SPED IN EXCESS OF 50K | I175: 5001 | J175: E
A176: Rochester-Stockbridge USD | B176: SU030 | C176: U081 | D176: 1000 | E176: DIRECT INSTRUCTION | F176: 1 | G176: 1000 | H176: DIRECT INSTR-EXCEPT TECH CTR TUITION | I176: 2726151 | J176: E
A177: Rochester-Stockbridge USD | B177: SU030 | C177: U081 | D177: 1000 | E177: DIRECT INSTRUCTION | F177: 1 | G177: 1568 | H177: OBJ 568-TCH CTR TUIT/AMT STATE PAYS FOR DST | I177: 36889 | J177: E
A178: Rochester-Stockbridge USD | B178: SU030 | C178: U081 | D178: 1000 | E178: DIRECT INSTRUCTION | F178: 1 | G178: 1569 | H178: OBJ 569-DISTRICT TUITION TO TECH CNTRS | I178: 73247 | J178: E
A179: Rochester-Stockbridge USD | B179: SU030 | C179: U081 | D179: 2000 | E179: SUPPORTING SERVICES | F179: 1 | G179: 2396 | H179: ADMINISTRATIVE SUPPORT SERVICES - LEA | I179: 271560 | J179: E
A180: Rochester-Stockbridge USD | B180: SU030 | C180: U081 | D180: 2000 | E180: SUPPORTING SERVICES | F180: 1 | G180: 2397 | H180: ADMINISTRATIVE SUPPORT SERV. - ASSESS TO SU | I180: 656372 | J180: E
A181: Rochester-Stockbridge USD | B181: SU030 | C181: U081 | D181: 2000 | E181: SUPPORTING SERVICES | F181: 1 | G181: 2999 | H181: ALL FUNC 2000 SUPPORT SERV. NOT INCL. ABOVE | I181: 579959 | J181: E
A182: Rochester-Stockbridge USD | B182: SU030 | C182: U081 | D182: 3000 | E182: NON-INSTRUCTIONAL SERVICES | F182: 1 | G182: 3100 | H182: FOOD SERVICES | I182: 20000 | J182: E
A183: Rochester-Stockbridge USD | B183: SU030 | C183: U081 | D183: 5000 | E183: OTHER EXPENDITURES | F183: 1 | G183: 5100 | H183: OTHER-DEBT SERVICE | I183: 66207 | J183: E
A184: Rochester-Stockbridge USD | B184: SU030 | C184: U081 | D184: 8100 | E184: ADDITIONAL EXCESS OFFSETS | F184: 1 | G184: 8121 | H184: SPED IN EXCESS OF 50K | I184: 2569 | J184: E
A185: Rochester-Stockbridge USD | B185: SU030 | C185: U081 | D185: 8100 | E185: ADDITIONAL EXCESS OFFSETS | F185: 1 | G185: 8135 | H185: ASSESSMENTS TO VERMONT TEACHERS RETIREMENT SYSTEM | I185: 14808 | J185: E
A186: Granville-Hancock UD | B186: SU030 | C186: U080 | D186: 1000 | E186: DIRECT INSTRUCTION | F186: 1 | G186: 1000 | H186: DIRECT INSTR-EXCEPT TECH CTR TUITION | I186: 1514761 | J186: E
A187: Granville-Hancock UD | B187: SU030 | C187: U080 | D187: 1000 | E187: DIRECT INSTRUCTION | F187: 1 | G187: 1568 | H187: OBJ 568-TCH CTR TUIT/AMT STATE PAYS FOR DST | I187: 22506 | J187: E
A188: Granville-Hancock UD | B188: SU030 | C188: U080 | D188: 1000 | E188: DIRECT INSTRUCTION | F188: 1 | G188: 1569 | H188: OBJ 569-DISTRICT TUITION TO TECH CNTRS | I188: 60369 | J188: E
A189: Granville-Hancock UD | B189: SU030 | C189: U080 | D189: 2000 | E189: SUPPORTING SERVICES | F189: 1 | G189: 2397 | H189: ADMINISTRATIVE SUPPORT SERV. - ASSESS TO SU | I189: 190642 | J189: E
A190: Granville-Hancock UD | B190: SU030 | C190: U080 | D190: 2000 | E190: SUPPORTING SERVICES | F190: 1 | G190: 2999 | H190: ALL FUNC 2000 SUPPORT SERV. NOT INCL. ABOVE | I190: 19704 | J190: E
A191: Granville-Hancock UD | B191: SU030 | C191: U080 | D191: 5000 | E191: OTHER EXPENDITURES | F191: 1 | G191: 5100 | H191: OTHER-DEBT SERVICE | I191: 11674 | J191: E
A192: Granville-Hancock UD | B192: SU030 | C192: U080 | D192: 8100 | E192: ADDITIONAL EXCESS OFFSETS | F192: 1 | G192: 8121 | H192: SPED IN EXCESS OF 50K | I192: 1296 | J192: E
A193: White River UD | B193: SU030 | C193: U079 | D193: 1000 | E193: DIRECT INSTRUCTION | F193: 1 | G193: 1000 | H193: DIRECT INSTR-EXCEPT TECH CTR TUITION | I193: 6091832 | J193: E
A194: White River UD | B194: SU030 | C194: U079 | D194: 1000 | E194: DIRECT INSTRUCTION | F194: 1 | G194: 1568 | H194: OBJ 568-TCH CTR TUIT/AMT STATE PAYS FOR DST | I194: 145405 | J194: E
A195: White River UD | B195: SU030 | C195: U079 | D195: 1000 | E195: DIRECT INSTRUCTION | F195: 1 | G195: 1569 | H195: OBJ 569-DISTRICT TUITION TO TECH CNTRS | I195: 159834 | J195: E
A196: White River UD | B196: SU030 | C196: U079 | D196: 2000 | E196: SUPPORTING SERVICES | F196: 1 | G196: 2396 | H196: ADMINISTRATIVE SUPPORT SERVICES - LEA | I196: 844278 | J196: E
A197: White River UD | B197: SU030 | C197: U079 | D197: 2000 | E197: SUPPORTING SERVICES | F197: 1 | G197: 2397 | H197: ADMINISTRATIVE SUPPORT SERV. - ASSESS TO SU | I197: 1909169 | J197: E
A198: White River UD | B198: SU030 | C198: U079 | D198: 2000 | E198: SUPPORTING SERVICES | F198: 1 | G198: 2999 | H198: ALL FUNC 2000 SUPPORT SERV. NOT INCL. ABOVE | I198: 2893663 | J198: E
A199: White River UD | B199: SU030 | C199: U079 | D199: 3000 | E199: NON-INSTRUCTIONAL SERVICES | F199: 1 | G199: 3100 | H199: FOOD SERVICES | I199: 53000 | J199: E
A200: White River UD | B200: SU030 | C200: U079 | D200: 3000 | E200: NON-INSTRUCTIONAL SERVICES | F200: 1 | G200: 3300 | H200: COMMUNITY SERVICES | I200: 43000 | J200: E
... 841 more rows

Sheet FY23Rev
A1: SUID | B1: DSTID | C1: DSTNAME | D1: MFUNC | E1: MFUNCDESC | F1: FUND | G1: FUNC | H1: DESCRIPTION | I1: AMOUNT | J1: TYP | L1: Updated: | M1: 2023-05-01
A2: SU012 | B2: U401 | C2: Mt. Mansfield UUSD | D2: 1300 | E2: TUITION RECEIVED | F2: 5 | G2: 1300 | H2: TUITION RECEIVED | I2: 80000 | J2: R | L2: Denotes Fund 6
A3: SU012 | B3: U401 | C3: Mt. Mansfield UUSD | D3: 1400 | E3: TRANSPORTATION FEES RECEIVED | F3: 5 | G3: 1400 | H3: TRANSPORTATION FEES RECEIVED | I3: 4000 | J3: R | K3: Data come from: | M3: J:\FY2023\Base23\Budget23
A4: SU012 | B4: U401 | C4: Mt. Mansfield UUSD | D4: 1500 | E4: EARNINGS ON INVESTMENTS | F4: 5 | G4: 1500 | H4: EARNINGS ON INVESTMENTS | I4: 110000 | J4: R | K4: prior year budgets | M4: Budget Data Convert FY23 v01.xlsm
A5: SU012 | B5: U401 | C5: Mt. Mansfield UUSD | D5: 1900 | E5: OTHER REVENUE FROM LOCAL SOURCES | F5: 5 | G5: 1920 | H5: CONTRIBUTIONS AND DONATIONS RAISED BY THE LEA | I5: 10000 | J5: R
A6: SU012 | B6: U401 | C6: Mt. Mansfield UUSD | D6: 1900 | E6: OTHER REVENUE FROM LOCAL SOURCES | F6: 5 | G6: 1999 | H6: ALL OTHER 1900 REVENUES (EXCEPT ACT 144 REVENUES) | I6: 58500 | J6: R
A7: SU012 | B7: U401 | C7: Mt. Mansfield UUSD | D7: 3100 | E7: UNRESTRICTED GRANTS IN AID | F7: 5 | G7: 3110 | H7: EDUCATION SPENDING GRANT | I7: 42903553 | J7: R
A8: SU012 | B8: U401 | C8: Mt. Mansfield UUSD | D8: 3100 | E8: UNRESTRICTED GRANTS IN AID | F8: 5 | G8: 3114 | H8: SUP TUITION GRANT FOR TECH CTRS DISTRIB BY STATE | I8: 637199 | J8: R
A9: SU012 | B9: U401 | C9: Mt. Mansfield UUSD | D9: 3100 | E9: UNRESTRICTED GRANTS IN AID | F9: 5 | G9: 3145 | H9: SMALL SCHOOLS GRANT | I9: 42632 | J9: R
A10: SU012 | B10: U401 | C10: Mt. Mansfield UUSD | D10: 3100 | E10: UNRESTRICTED GRANTS IN AID | F10: 5 | G10: 3150 | H10: STATE AID TRANSPORTATION | I10: 905000 | J10: R
A11: SU012 | B11: U401 | C11: Mt. Mansfield UUSD | D11: 3200 | E11: RESTRICTED REVENUE (3200-3799) | F11: 5 | G11: 3200 | H11: RESTRICTED REVENUE (3200-3799) | I11: 5977511 | J11: R
A12: SU012 | B12: U401 | C12: Mt. Mansfield UUSD | D12: 5300 | E12: SALE OR COMPENSATION FOR LOSS OF FIXED ASSETS | F12: 5 | G12: 5300 | H12: SALE OR COMPENSATION FOR LOSS OF FIXED ASSETS | I12: 7500 | J12: R
A13: SU012 | B13: U401 | C13: Mt. Mansfield UUSD | D13: 6999 | E13: CARRY FWD-CUM UNRESERVED SURPLUS | F13: 5 | G13: 6999 | H13: CARRY FWD-CUM UNRESERVED SURPLUS | I13: 1675000 | J13: R
A14: SU012 | B14: U401 | C14: Mt. Mansfield UUSD | D14: 8000 | E14: CAPITAL CONST/& DEBT SERVICE | F14: 5 | G14: 8888 | H14: CAPITAL CONST & DEBT SERVICE OFFSETTING REVENUES | I14: 1490 | J14: R
A15: SU064 | B15: U146 | C15: Rivendell Interstate USD | D15: 1300 | E15: TUITION RECEIVED | F15: 5 | G15: 1300 | H15: TUITION RECEIVED | I15: 273968 | J15: R
A16: SU064 | B16: U146 | C16: Rivendell Interstate USD | D16: 1500 | E16: EARNINGS ON INVESTMENTS | F16: 5 | G16: 1500 | H16: EARNINGS ON INVESTMENTS | I16: 3082 | J16: R
A17: SU064 | B17: U146 | C17: Rivendell Interstate USD | D17: 1700 | E17: INCOME FROM STUDENT ACTIVITIES (NOT AGENCY FUNDS) | F17: 5 | G17: 1700 | H17: INCOME FROM STUDENT ACTIVITIES (NOT AGENCY FUNDS) | I17: 4452 | J17: R
A18: SU064 | B18: U146 | C18: Rivendell Interstate USD | D18: 1800 | E18: REVENUE FROM COMMUNITY SERVICE ACTIVITIES | F18: 5 | G18: 1800 | H18: REVENUE FROM COMMUNITY SERVICE ACTIVITIES | I18: 106163 | J18: R
A19: SU064 | B19: U146 | C19: Rivendell Interstate USD | D19: 3100 | E19: UNRESTRICTED GRANTS IN AID | F19: 5 | G19: 3110 | H19: EDUCATION SPENDING GRANT | I19: 7161504 | J19: R
A20: SU064 | B20: U146 | C20: Rivendell Interstate USD | D20: 3100 | E20: UNRESTRICTED GRANTS IN AID | F20: 5 | G20: 3114 | H20: SUP TUITION GRANT FOR TECH CTRS DISTRIB BY STATE | I20: 86597 | J20: R
A21: SU064 | B21: U146 | C21: Rivendell Interstate USD | D21: 3100 | E21: UNRESTRICTED GRANTS IN AID | F21: 5 | G21: 3150 | H21: STATE AID TRANSPORTATION | I21: 170000 | J21: R
A22: SU064 | B22: U146 | C22: Rivendell Interstate USD | D22: 3100 | E22: UNRESTRICTED GRANTS IN AID | F22: 5 | G22: 3152 | H22: STATE AID TRANSPORTATION - EXTRAORDINARY | I22: 4515 | J22: R
A23: SU064 | B23: U146 | C23: Rivendell Interstate USD | D23: 3200 | E23: RESTRICTED REVENUE (3200-3799) | F23: 5 | G23: 3200 | H23: RESTRICTED REVENUE (3200-3799) | I23: 1106320 | J23: R
A24: SU064 | B24: U146 | C24: Rivendell Interstate USD | D24: 4200 | E24: RESTRICTED REVENUE (4200-4799) | F24: 5 | G24: 4200 | H24: RESTRICTED REVENUE (4200-4799) | I24: 450713 | J24: R
A25: SU064 | B25: U146 | C25: Rivendell Interstate USD | D25: 5400 | E25: ADJUSTMENTS FOR PRIOR YEAR EXPENDITURES | F25: 5 | G25: 5480 | H25: MEDICAID-INCLUDES REVENUE CODES 5481-5483 | I25: 77951 | J25: R
A26: SU061 | B26: U097 | C26: Barre UUSD | D26: 1200 | E26: REVENUES FROM LOCAL GOVERNMENT - NOT LEAS | F26: 5 | G26: 1200 | H26: REVENUES FROM LOCAL GOVERNMENT - NOT LEAS | I26: 10000 | J26: R
A27: SU061 | B27: U097 | C27: Barre UUSD | D27: 1300 | E27: TUITION RECEIVED | F27: 5 | G27: 1300 | H27: TUITION RECEIVED | I27: 200000 | J27: R
A28: SU061 | B28: U097 | C28: Barre UUSD | D28: 1500 | E28: EARNINGS ON INVESTMENTS | F28: 5 | G28: 1500 | H28: EARNINGS ON INVESTMENTS | I28: 125000 | J28: R
A29: SU061 | B29: U097 | C29: Barre UUSD | D29: 1900 | E29: OTHER REVENUE FROM LOCAL SOURCES | F29: 5 | G29: 1999 | H29: ALL OTHER 1900 REVENUES (EXCEPT ACT 144 REVENUES) | I29: 234635 | J29: R
A30: SU061 | B30: U097 | C30: Barre UUSD | D30: 3100 | E30: UNRESTRICTED GRANTS IN AID | F30: 5 | G30: 3110 | H30: EDUCATION SPENDING GRANT | I30: 36920588 | J30: R
A31: SU061 | B31: U097 | C31: Barre UUSD | D31: 3100 | E31: UNRESTRICTED GRANTS IN AID | F31: 5 | G31: 3114 | H31: SUP TUITION GRANT FOR TECH CTRS DISTRIB BY STATE | I31: 571346 | J31: R
A32: SU061 | B32: U097 | C32: Barre UUSD | D32: 3100 | E32: UNRESTRICTED GRANTS IN AID | F32: 5 | G32: 3150 | H32: STATE AID TRANSPORTATION | I32: 567510 | J32: R
A33: SU061 | B33: U097 | C33: Barre UUSD | D33: 3200 | E33: RESTRICTED REVENUE (3200-3799) | F33: 5 | G33: 3200 | H33: RESTRICTED REVENUE (3200-3799) | I33: 7760767 | J33: R
A34: SU061 | B34: U097 | C34: Barre UUSD | D34: 5999 | E34: ALL REVENUE 5800 THROUGH 5990 | F34: 5 | G34: 5999 | H34: ALL REVENUE 5800 THROUGH 5990 | I34: 164473 | J34: R
A35: SU061 | B35: U097 | C35: Barre UUSD | D35: 6999 | E35: CARRY FWD-CUM UNRESERVED SURPLUS | F35: 5 | G35: 6999 | H35: CARRY FWD-CUM UNRESERVED SURPLUS | I35: 700000 | J35: R
A36: SU048 | B36: U096 | C36: Windham Southeast UUSD | D36: 1300 | E36: TUITION RECEIVED | F36: 5 | G36: 1300 | H36: TUITION RECEIVED | I36: 3668133 | J36: R
A37: SU048 | B37: U096 | C37: Windham Southeast UUSD | D37: 1500 | E37: EARNINGS ON INVESTMENTS | F37: 5 | G37: 1500 | H37: EARNINGS ON INVESTMENTS | I37: 40000 | J37: R
A38: SU048 | B38: U096 | C38: Windham Southeast UUSD | D38: 1700 | E38: INCOME FROM STUDENT ACTIVITIES (NOT AGENCY FUNDS) | F38: 5 | G38: 1700 | H38: INCOME FROM STUDENT ACTIVITIES (NOT AGENCY FUNDS) | I38: 44500 | J38: R
A39: SU048 | B39: U096 | C39: Windham Southeast UUSD | D39: 1900 | E39: OTHER REVENUE FROM LOCAL SOURCES | F39: 5 | G39: 1999 | H39: ALL OTHER 1900 REVENUES (EXCEPT ACT 144 REVENUES) | I39: 122302 | J39: R
A40: SU048 | B40: U096 | C40: Windham Southeast UUSD | D40: 2900 | E40: INTERMEDIATE REVENUES - SUBGRANTS FROM THE SU | F40: 5 | G40: 2000 | H40: INTRMED. REVS - SUBGRANTS FROM SU-ALL EXC. ARRA FUNDS | I40: 5841021 | J40: R
A41: SU048 | B41: U096 | C41: Windham Southeast UUSD | D41: 3100 | E41: UNRESTRICTED GRANTS IN AID | F41: 5 | G41: 3110 | H41: EDUCATION SPENDING GRANT | I41: 47071654 | J41: R
A42: SU048 | B42: U096 | C42: Windham Southeast UUSD | D42: 3100 | E42: UNRESTRICTED GRANTS IN AID | F42: 5 | G42: 3114 | H42: SUP TUITION GRANT FOR TECH CTRS DISTRIB BY STATE | I42: 632992 | J42: R
A43: SU048 | B43: U096 | C43: Windham Southeast UUSD | D43: 3100 | E43: UNRESTRICTED GRANTS IN AID | F43: 5 | G43: 3145 | H43: SMALL SCHOOLS GRANT | I43: 200000 | J43: R
A44: SU048 | B44: U096 | C44: Windham Southeast UUSD | D44: 3100 | E44: UNRESTRICTED GRANTS IN AID | F44: 5 | G44: 3199 | H44: ALL OTHER 3100 REVENUE | I44: 946297 | J44: R
A45: SU048 | B45: U096 | C45: Windham Southeast UUSD | D45: 3200 | E45: RESTRICTED REVENUE (3200-3799) | F45: 5 | G45: 3200 | H45: RESTRICTED REVENUE (3200-3799) | I45: 679339 | J45: R
A46: SU048 | B46: U096 | C46: Windham Southeast UUSD | D46: 4200 | E46: RESTRICTED REVENUE (4200-4799) | F46: 5 | G46: 4200 | H46: RESTRICTED REVENUE (4200-4799) | I46: 147596 | J46: R
A47: SU048 | B47: U096 | C47: Windham Southeast UUSD | D47: 6999 | E47: CARRY FWD-CUM UNRESERVED SURPLUS | F47: 5 | G47: 6999 | H47: CARRY FWD-CUM UNRESERVED SURPLUS | I47: 900000 | J47: R
A48: SU047 | B48: U095 | C48: Windham Northeast UESD | D48: 3100 | E48: UNRESTRICTED GRANTS IN AID | F48: 5 | G48: 3110 | H48: EDUCATION SPENDING GRANT | I48: 1776984 | J48: R
A49: SU035 | B49: U094 | C49: Orleans Southwest UESD | D49: 1300 | E49: TUITION RECEIVED | F49: 5 | G49: 1300 | H49: TUITION RECEIVED | I49: 28000 | J49: R
A50: SU035 | B50: U094 | C50: Orleans Southwest UESD | D50: 1500 | E50: EARNINGS ON INVESTMENTS | F50: 5 | G50: 1500 | H50: EARNINGS ON INVESTMENTS | I50: 23500 | J50: R
A51: SU035 | B51: U094 | C51: Orleans Southwest UESD | D51: 1600 | E51: FOOD SERVICES | F51: 5 | G51: 1600 | H51: FOOD SERVICE (IF EXPENDITURES INCLUDED IN BUDGET) | I51: 8200 | J51: R
A52: SU035 | B52: U094 | C52: Orleans Southwest UESD | D52: 1900 | E52: OTHER REVENUE FROM LOCAL SOURCES | F52: 5 | G52: 1999 | H52: ALL OTHER 1900 REVENUES (EXCEPT ACT 144 REVENUES) | I52: 77491 | J52: R
A53: SU035 | B53: U094 | C53: Orleans Southwest UESD | D53: 3100 | E53: UNRESTRICTED GRANTS IN AID | F53: 5 | G53: 3110 | H53: EDUCATION SPENDING GRANT | I53: 6480001 | J53: R
A54: SU035 | B54: U094 | C54: Orleans Southwest UESD | D54: 3100 | E54: UNRESTRICTED GRANTS IN AID | F54: 5 | G54: 3145 | H54: SMALL SCHOOLS GRANT | I54: 168791 | J54: R
A55: SU035 | B55: U094 | C55: Orleans Southwest UESD | D55: 4200 | E55: RESTRICTED REVENUE (4200-4799) | F55: 5 | G55: 4200 | H55: RESTRICTED REVENUE (4200-4799) | I55: 16000 | J55: R
A56: SU035 | B56: U094 | C56: Orleans Southwest UESD | D56: 6999 | E56: CARRY FWD-CUM UNRESERVED SURPLUS | F56: 5 | G56: 6999 | H56: CARRY FWD-CUM UNRESERVED SURPLUS | I56: 334182 | J56: R
A57: SU034 | B57: U093 | C57: Lake Region Union Elementary-Middle School district | D57: 1500 | E57: EARNINGS ON INVESTMENTS | F57: 5 | G57: 1500 | H57: EARNINGS ON INVESTMENTS | I57: 65000 | J57: R
A58: SU034 | B58: U093 | C58: Lake Region Union Elementary-Middle School district | D58: 1900 | E58: OTHER REVENUE FROM LOCAL SOURCES | F58: 5 | G58: 1920 | H58: CONTRIBUTIONS AND DONATIONS RAISED BY THE LEA | I58: 28960 | J58: R
A59: SU034 | B59: U093 | C59: Lake Region Union Elementary-Middle School district | D59: 2900 | E59: INTERMEDIATE REVENUES - SUBGRANTS FROM THE SU | F59: 5 | G59: 2000 | H59: INTRMED. REVS - SUBGRANTS FROM SU-ALL EXC. ARRA FUNDS | I59: 812271 | J59: R
A60: SU034 | B60: U093 | C60: Lake Region Union Elementary-Middle School district | D60: 3100 | E60: UNRESTRICTED GRANTS IN AID | F60: 5 | G60: 3110 | H60: EDUCATION SPENDING GRANT | I60: 10729082 | J60: R
A61: SU034 | B61: U093 | C61: Lake Region Union Elementary-Middle School district | D61: 3100 | E61: UNRESTRICTED GRANTS IN AID | F61: 5 | G61: 3145 | H61: SMALL SCHOOLS GRANT | I61: 650179 | J61: R
A62: SU034 | B62: U093 | C62: Lake Region Union Elementary-Middle School district | D62: 5999 | E62: ALL REVENUE 5800 THROUGH 5990 | F62: 5 | G62: 5999 | H62: ALL REVENUE 5800 THROUGH 5990 | I62: 44000 | J62: R
A63: SU034 | B63: U093 | C63: Lake Region Union Elementary-Middle School district | D63: 6999 | E63: CARRY FWD-CUM UNRESERVED SURPLUS | F63: 5 | G63: 6999 | H63: CARRY FWD-CUM UNRESERVED SURPLUS | I63: 512243 | J63: R
A64: SU032 | B64: U092 | C64: Washington Central UUSD | D64: 1300 | E64: TUITION RECEIVED | F64: 5 | G64: 1300 | H64: TUITION RECEIVED | I64: 976224 | J64: R
A65: SU032 | B65: U092 | C65: Washington Central UUSD | D65: 1500 | E65: EARNINGS ON INVESTMENTS | F65: 5 | G65: 1500 | H65: EARNINGS ON INVESTMENTS | I65: 229238 | J65: R
A66: SU032 | B66: U092 | C66: Washington Central UUSD | D66: 1900 | E66: OTHER REVENUE FROM LOCAL SOURCES | F66: 5 | G66: 1999 | H66: ALL OTHER 1900 REVENUES (EXCEPT ACT 144 REVENUES) | I66: 263440 | J66: R
A67: SU032 | B67: U092 | C67: Washington Central UUSD | D67: 3100 | E67: UNRESTRICTED GRANTS IN AID | F67: 5 | G67: 3110 | H67: EDUCATION SPENDING GRANT | I67: 28510050 | J67: R
A68: SU032 | B68: U092 | C68: Washington Central UUSD | D68: 3100 | E68: UNRESTRICTED GRANTS IN AID | F68: 5 | G68: 3114 | H68: SUP TUITION GRANT FOR TECH CTRS DISTRIB BY STATE | I68: 310967 | J68: R
A69: SU032 | B69: U092 | C69: Washington Central UUSD | D69: 3100 | E69: UNRESTRICTED GRANTS IN AID | F69: 5 | G69: 3145 | H69: SMALL SCHOOLS GRANT | I69: 171302 | J69: R
A70: SU032 | B70: U092 | C70: Washington Central UUSD | D70: 3100 | E70: UNRESTRICTED GRANTS IN AID | F70: 5 | G70: 3150 | H70: STATE AID TRANSPORTATION | I70: 655971 | J70: R
A71: SU032 | B71: U092 | C71: Washington Central UUSD | D71: 3100 | E71: UNRESTRICTED GRANTS IN AID | F71: 5 | G71: 3199 | H71: ALL OTHER 3100 REVENUE | I71: 16000 | J71: R
A72: SU032 | B72: U092 | C72: Washington Central UUSD | D72: 3200 | E72: RESTRICTED REVENUE (3200-3799) | F72: 5 | G72: 3200 | H72: RESTRICTED REVENUE (3200-3799) | I72: 4710607 | J72: R
A73: SU032 | B73: U092 | C73: Washington Central UUSD | D73: 6999 | E73: CARRY FWD-CUM UNRESERVED SURPLUS | F73: 5 | G73: 6999 | H73: CARRY FWD-CUM UNRESERVED SURPLUS | I73: 325468 | J73: R
A74: SU027 | B74: U091 | C74: Oxbow UUSD | D74: 1300 | E74: TUITION RECEIVED | F74: 5 | G74: 1300 | H74: TUITION RECEIVED | I74: 2819906 | J74: R
A75: SU027 | B75: U091 | C75: Oxbow UUSD | D75: 1900 | E75: OTHER REVENUE FROM LOCAL SOURCES | F75: 5 | G75: 1999 | H75: ALL OTHER 1900 REVENUES (EXCEPT ACT 144 REVENUES) | I75: 396789 | J75: R
A76: SU027 | B76: U091 | C76: Oxbow UUSD | D76: 2900 | E76: INTERMEDIATE REVENUES - SUBGRANTS FROM THE SU | F76: 5 | G76: 2000 | H76: INTRMED. REVS - SUBGRANTS FROM SU-ALL EXC. ARRA FUNDS | I76: 1097456 | J76: R
A77: SU027 | B77: U091 | C77: Oxbow UUSD | D77: 3100 | E77: UNRESTRICTED GRANTS IN AID | F77: 5 | G77: 3110 | H77: EDUCATION SPENDING GRANT | I77: 12389450 | J77: R
A78: SU027 | B78: U091 | C78: Oxbow UUSD | D78: 3100 | E78: UNRESTRICTED GRANTS IN AID | F78: 5 | G78: 3114 | H78: SUP TUITION GRANT FOR TECH CTRS DISTRIB BY STATE | I78: 317034 | J78: R
A79: SU027 | B79: U091 | C79: Oxbow UUSD | D79: 3100 | E79: UNRESTRICTED GRANTS IN AID | F79: 5 | G79: 3150 | H79: STATE AID TRANSPORTATION | I79: 191000 | J79: R
A80: SU027 | B80: U091 | C80: Oxbow UUSD | D80: 6999 | E80: CARRY FWD-CUM UNRESERVED SURPLUS | F80: 5 | G80: 6999 | H80: CARRY FWD-CUM UNRESERVED SURPLUS | I80: 350000 | J80: R
A81: SU026 | B81: U090 | C81: Lamoille South UUSD | D81: 1300 | E81: TUITION RECEIVED | F81: 5 | G81: 1300 | H81: TUITION RECEIVED | I81: 830000 | J81: R
A82: SU026 | B82: U090 | C82: Lamoille South UUSD | D82: 1500 | E82: EARNINGS ON INVESTMENTS | F82: 5 | G82: 1500 | H82: EARNINGS ON INVESTMENTS | I82: 60000 | J82: R
A83: SU026 | B83: U090 | C83: Lamoille South UUSD | D83: 1900 | E83: OTHER REVENUE FROM LOCAL SOURCES | F83: 5 | G83: 1999 | H83: ALL OTHER 1900 REVENUES (EXCEPT ACT 144 REVENUES) | I83: 90000 | J83: R
A84: SU026 | B84: U090 | C84: Lamoille South UUSD | D84: 3100 | E84: UNRESTRICTED GRANTS IN AID | F84: 5 | G84: 3110 | H84: EDUCATION SPENDING GRANT | I84: 28188118 | J84: R
A85: SU026 | B85: U090 | C85: Lamoille South UUSD | D85: 3100 | E85: UNRESTRICTED GRANTS IN AID | F85: 5 | G85: 3114 | H85: SUP TUITION GRANT FOR TECH CTRS DISTRIB BY STATE | I85: 277307 | J85: R
A86: SU026 | B86: U090 | C86: Lamoille South UUSD | D86: 3100 | E86: UNRESTRICTED GRANTS IN AID | F86: 5 | G86: 3145 | H86: SMALL SCHOOLS GRANT | I86: 13100 | J86: R
A87: SU026 | B87: U090 | C87: Lamoille South UUSD | D87: 3100 | E87: UNRESTRICTED GRANTS IN AID | F87: 5 | G87: 3150 | H87: STATE AID TRANSPORTATION | I87: 276000 | J87: R
A88: SU026 | B88: U090 | C88: Lamoille South UUSD | D88: 3200 | E88: RESTRICTED REVENUE (3200-3799) | F88: 5 | G88: 3200 | H88: RESTRICTED REVENUE (3200-3799) | I88: 3226500 | J88: R
A89: SU026 | B89: U090 | C89: Lamoille South UUSD | D89: 6999 | E89: CARRY FWD-CUM UNRESERVED SURPLUS | F89: 5 | G89: 6999 | H89: CARRY FWD-CUM UNRESERVED SURPLUS | I89: 1100000 | J89: R
A90: SU026 | B90: U090 | C90: Lamoille South UUSD | D90: 8000 | E90: CAPITAL CONST/& DEBT SERVICE | F90: 5 | G90: 8888 | H90: CAPITAL CONST & DEBT SERVICE OFFSETTING REVENUES | I90: 8500 | J90: R
A91: SU021 | B91: U089 | C91: Missisquois Valley School District | D91: 1300 | E91: TUITION RECEIVED | F91: 5 | G91: 1300 | H91: TUITION RECEIVED | I91: 796740 | J91: R
A92: SU021 | B92: U089 | C92: Missisquois Valley School District | D92: 1500 | E92: EARNINGS ON INVESTMENTS | F92: 5 | G92: 1500 | H92: EARNINGS ON INVESTMENTS | I92: 20000 | J92: R
A93: SU021 | B93: U089 | C93: Missisquois Valley School District | D93: 1900 | E93: OTHER REVENUE FROM LOCAL SOURCES | F93: 5 | G93: 1999 | H93: ALL OTHER 1900 REVENUES (EXCEPT ACT 144 REVENUES) | I93: 5500 | J93: R
A94: SU021 | B94: U089 | C94: Missisquois Valley School District | D94: 3100 | E94: UNRESTRICTED GRANTS IN AID | F94: 5 | G94: 3110 | H94: EDUCATION SPENDING GRANT | I94: 29238583 | J94: R
A95: SU021 | B95: U089 | C95: Missisquois Valley School District | D95: 3100 | E95: UNRESTRICTED GRANTS IN AID | F95: 5 | G95: 3114 | H95: SUP TUITION GRANT FOR TECH CTRS DISTRIB BY STATE | I95: 190514 | J95: R
A96: SU021 | B96: U089 | C96: Missisquois Valley School District | D96: 3100 | E96: UNRESTRICTED GRANTS IN AID | F96: 5 | G96: 3145 | H96: SMALL SCHOOLS GRANT | I96: 68169 | J96: R
A97: SU021 | B97: U089 | C97: Missisquois Valley School District | D97: 3100 | E97: UNRESTRICTED GRANTS IN AID | F97: 5 | G97: 3150 | H97: STATE AID TRANSPORTATION | I97: 548250 | J97: R
A98: SU021 | B98: U089 | C98: Missisquois Valley School District | D98: 3100 | E98: UNRESTRICTED GRANTS IN AID | F98: 5 | G98: 3199 | H98: ALL OTHER 3100 REVENUE | I98: 129132 | J98: R
A99: SU021 | B99: U089 | C99: Missisquois Valley School District | D99: 3200 | E99: RESTRICTED REVENUE (3200-3799) | F99: 5 | G99: 3200 | H99: RESTRICTED REVENUE (3200-3799) | I99: 4274350 | J99: R
A100: SU021 | B100: U089 | C100: Missisquois Valley School District | D100: 4200 | E100: RESTRICTED REVENUE (4200-4799) | F100: 5 | G100: 4200 | H100: RESTRICTED REVENUE (4200-4799) | I100: 2855800 | J100: R
A101: SU021 | B101: U089 | C101: Missisquois Valley School District | D101: 5400 | E101: ADJUSTMENTS FOR PRIOR YEAR EXPENDITURES | F101: 5 | G101: 5480 | H101: MEDICAID-INCLUDES REVENUE CODES 5481-5483 | I101: 272994 | J101: R
A102: SU021 | B102: U089 | C102: Missisquois Valley School District | D102: 6999 | E102: CARRY FWD-CUM UNRESERVED SURPLUS | F102: 5 | G102: 6999 | H102: CARRY FWD-CUM UNRESERVED SURPLUS | I102: 2367222 | J102: R
A103: SU020 | B103: U088 | C103: Enosburgh-Richford UUSD | D103: 1300 | E103: TUITION RECEIVED | F103: 5 | G103: 1300 | H103: TUITION RECEIVED | I103: 3968440 | J103: R
A104: SU020 | B104: U088 | C104: Enosburgh-Richford UUSD | D104: 1500 | E104: EARNINGS ON INVESTMENTS | F104: 5 | G104: 1500 | H104: EARNINGS ON INVESTMENTS | I104: 1000 | J104: R
A105: SU020 | B105: U088 | C105: Enosburgh-Richford UUSD | D105: 1900 | E105: OTHER REVENUE FROM LOCAL SOURCES | F105: 5 | G105: 1999 | H105: ALL OTHER 1900 REVENUES (EXCEPT ACT 144 REVENUES) | I105: 16000 | J105: R
A106: SU020 | B106: U088 | C106: Enosburgh-Richford UUSD | D106: 2900 | E106: INTERMEDIATE REVENUES - SUBGRANTS FROM THE SU | F106: 5 | G106: 2000 | H106: INTRMED. REVS - SUBGRANTS FROM SU-ALL EXC. ARRA FUNDS | I106: 45000 | J106: R
A107: SU020 | B107: U088 | C107: Enosburgh-Richford UUSD | D107: 3100 | E107: UNRESTRICTED GRANTS IN AID | F107: 5 | G107: 3110 | H107: EDUCATION SPENDING GRANT | I107: 15281289 | J107: R
A108: SU020 | B108: U088 | C108: Enosburgh-Richford UUSD | D108: 3100 | E108: UNRESTRICTED GRANTS IN AID | F108: 5 | G108: 3114 | H108: SUP TUITION GRANT FOR TECH CTRS DISTRIB BY STATE | I108: 364296 | J108: R
A109: SU020 | B109: U088 | C109: Enosburgh-Richford UUSD | D109: 3200 | E109: RESTRICTED REVENUE (3200-3799) | F109: 5 | G109: 3200 | H109: RESTRICTED REVENUE (3200-3799) | I109: 389040 | J109: R
A110: SU020 | B110: U088 | C110: Enosburgh-Richford UUSD | D110: 4200 | E110: RESTRICTED REVENUE (4200-4799) | F110: 5 | G110: 4200 | H110: RESTRICTED REVENUE (4200-4799) | I110: 79100 | J110: R
A111: SU020 | B111: U088 | C111: Enosburgh-Richford UUSD | D111: 6999 | E111: CARRY FWD-CUM UNRESERVED SURPLUS | F111: 5 | G111: 6999 | H111: CARRY FWD-CUM UNRESERVED SURPLUS | I111: 30366 | J111: R
A112: SU005 | B112: U087 | C112: Southwest Vermont UESD | D112: 1300 | E112: TUITION RECEIVED | F112: 5 | G112: 1300 | H112: TUITION RECEIVED | I112: 143000 | J112: R
A113: SU005 | B113: U087 | C113: Southwest Vermont UESD | D113: 1500 | E113: EARNINGS ON INVESTMENTS | F113: 5 | G113: 1500 | H113: EARNINGS ON INVESTMENTS | I113: 22800 | J113: R
A114: SU005 | B114: U087 | C114: Southwest Vermont UESD | D114: 1600 | E114: FOOD SERVICES | F114: 5 | G114: 1600 | H114: FOOD SERVICE (IF EXPENDITURES INCLUDED IN BUDGET) | I114: 4750 | J114: R
A115: SU005 | B115: U087 | C115: Southwest Vermont UESD | D115: 2900 | E115: INTERMEDIATE REVENUES - SUBGRANTS FROM THE SU | F115: 5 | G115: 2000 | H115: INTRMED. REVS - SUBGRANTS FROM SU-ALL EXC. ARRA FUNDS | I115: 17000 | J115: R
A116: SU005 | B116: U087 | C116: Southwest Vermont UESD | D116: 3100 | E116: UNRESTRICTED GRANTS IN AID | F116: 5 | G116: 3110 | H116: EDUCATION SPENDING GRANT | I116: 24073170 | J116: R
A117: SU005 | B117: U087 | C117: Southwest Vermont UESD | D117: 3100 | E117: UNRESTRICTED GRANTS IN AID | F117: 5 | G117: 3145 | H117: SMALL SCHOOLS GRANT | I117: 39000 | J117: R
A118: SU005 | B118: U087 | C118: Southwest Vermont UESD | D118: 4800 | E118: FEDERAL OFFSET PAYMENTS | F118: 5 | G118: 4800 | H118: FEDERAL OFFSET PAYMENTS | I118: 125000 | J118: R
A119: SU005 | B119: U087 | C119: Southwest Vermont UESD | D119: 5100 | E119: PROCEEDS FROM BONDS | F119: 5 | G119: 5100 | H119: PROCEEDS FROM BONDS/OTHER LONGTERM BORROWING | I119: 545 | J119: R
A120: SU005 | B120: U087 | C120: Southwest Vermont UESD | D120: 6999 | E120: CARRY FWD-CUM UNRESERVED SURPLUS | F120: 5 | G120: 6999 | H120: CARRY FWD-CUM UNRESERVED SURPLUS | I120: 2000000 | J120: R
A121: SU052 | B121: U086 | C121: Mount Ascutney SD | D121: 1300 | E121: TUITION RECEIVED | F121: 5 | G121: 1300 | H121: TUITION RECEIVED | I121: 1537500 | J121: R
A122: SU052 | B122: U086 | C122: Mount Ascutney SD | D122: 1500 | E122: EARNINGS ON INVESTMENTS | F122: 5 | G122: 1500 | H122: EARNINGS ON INVESTMENTS | I122: 5750 | J122: R
A123: SU052 | B123: U086 | C123: Mount Ascutney SD | D123: 1900 | E123: OTHER REVENUE FROM LOCAL SOURCES | F123: 5 | G123: 1999 | H123: ALL OTHER 1900 REVENUES (EXCEPT ACT 144 REVENUES) | I123: 110776 | J123: R
A124: SU052 | B124: U086 | C124: Mount Ascutney SD | D124: 3100 | E124: UNRESTRICTED GRANTS IN AID | F124: 5 | G124: 3110 | H124: EDUCATION SPENDING GRANT | I124: 10567374 | J124: R
A125: SU052 | B125: U086 | C125: Mount Ascutney SD | D125: 3100 | E125: UNRESTRICTED GRANTS IN AID | F125: 5 | G125: 3114 | H125: SUP TUITION GRANT FOR TECH CTRS DISTRIB BY STATE | I125: 172901 | J125: R
A126: SU052 | B126: U086 | C126: Mount Ascutney SD | D126: 3100 | E126: UNRESTRICTED GRANTS IN AID | F126: 5 | G126: 3145 | H126: SMALL SCHOOLS GRANT | I126: 84046 | J126: R
A127: SU052 | B127: U086 | C127: Mount Ascutney SD | D127: 6999 | E127: CARRY FWD-CUM UNRESERVED SURPLUS | F127: 5 | G127: 6999 | H127: CARRY FWD-CUM UNRESERVED SURPLUS | I127: 624526 | J127: R
A128: SU020 | B128: U085 | C128: Northern Mountain Valley UUSD | D128: 1500 | E128: EARNINGS ON INVESTMENTS | F128: 5 | G128: 1500 | H128: EARNINGS ON INVESTMENTS | I128: 5000 | J128: R
A129: SU020 | B129: U085 | C129: Northern Mountain Valley UUSD | D129: 1900 | E129: OTHER REVENUE FROM LOCAL SOURCES | F129: 5 | G129: 1999 | H129: ALL OTHER 1900 REVENUES (EXCEPT ACT 144 REVENUES) | I129: 20000 | J129: R
A130: SU020 | B130: U085 | C130: Northern Mountain Valley UUSD | D130: 3100 | E130: UNRESTRICTED GRANTS IN AID | F130: 5 | G130: 3110 | H130: EDUCATION SPENDING GRANT | I130: 16948924 | J130: R
A131: SU020 | B131: U085 | C131: Northern Mountain Valley UUSD | D131: 3100 | E131: UNRESTRICTED GRANTS IN AID | F131: 5 | G131: 3114 | H131: SUP TUITION GRANT FOR TECH CTRS DISTRIB BY STATE | I131: 418700 | J131: R
A132: SU020 | B132: U085 | C132: Northern Mountain Valley UUSD | D132: 3100 | E132: UNRESTRICTED GRANTS IN AID | F132: 5 | G132: 3145 | H132: SMALL SCHOOLS GRANT | I132: 213275 | J132: R
A133: SU020 | B133: U085 | C133: Northern Mountain Valley UUSD | D133: 6999 | E133: CARRY FWD-CUM UNRESERVED SURPLUS | F133: 5 | G133: 6999 | H133: CARRY FWD-CUM UNRESERVED SURPLUS | I133: 605000 | J133: R
A134: SU006 | B134: U084 | C134: Mettawee School District | D134: 1300 | E134: TUITION RECEIVED | F134: 5 | G134: 1300 | H134: TUITION RECEIVED | I134: 24600 | J134: R
A135: SU006 | B135: U084 | C135: Mettawee School District | D135: 1500 | E135: EARNINGS ON INVESTMENTS | F135: 5 | G135: 1500 | H135: EARNINGS ON INVESTMENTS | I135: 1000 | J135: R
A136: SU006 | B136: U084 | C136: Mettawee School District | D136: 1600 | E136: FOOD SERVICES | F136: 5 | G136: 1600 | H136: FOOD SERVICE (IF EXPENDITURES INCLUDED IN BUDGET) | I136: 35000 | J136: R
A137: SU006 | B137: U084 | C137: Mettawee School District | D137: 1900 | E137: OTHER REVENUE FROM LOCAL SOURCES | F137: 5 | G137: 1999 | H137: ALL OTHER 1900 REVENUES (EXCEPT ACT 144 REVENUES) | I137: 57813 | J137: R
A138: SU006 | B138: U084 | C138: Mettawee School District | D138: 2900 | E138: INTERMEDIATE REVENUES - SUBGRANTS FROM THE SU | F138: 5 | G138: 2000 | H138: INTRMED. REVS - SUBGRANTS FROM SU-ALL EXC. ARRA FUNDS | I138: 210662 | J138: R
A139: SU006 | B139: U084 | C139: Mettawee School District | D139: 3100 | E139: UNRESTRICTED GRANTS IN AID | F139: 5 | G139: 3110 | H139: EDUCATION SPENDING GRANT | I139: 5518165 | J139: R
A140: SU006 | B140: U084 | C140: Mettawee School District | D140: 3100 | E140: UNRESTRICTED GRANTS IN AID | F140: 5 | G140: 3114 | H140: SUP TUITION GRANT FOR TECH CTRS DISTRIB BY STATE | I140: 5480 | J140: R
A141: SU006 | B141: U084 | C141: Mettawee School District | D141: 5200 | E141: TRANSFERS | F141: 5 | G141: 5230 | H141: TRANSFERS FROM RESERVED ACCOUNTS INCL 5232 | I141: 190000 | J141: R
A142: SU006 | B142: U084 | C142: Mettawee School District | D142: 6999 | E142: CARRY FWD-CUM UNRESERVED SURPLUS | F142: 5 | G142: 6999 | H142: CARRY FWD-CUM UNRESERVED SURPLUS | I142: 6564 | J142: R
A143: SU063 | B143: U083 | C143: Ludlow-Mt. Holly UUSD | D143: 1100 | E143: STATUTORY TAXES | F143: 5 | G143: 1170 | H143: NON-PROPERTY TAXES/IMPACT FEES | I143: 284702 | J143: R
A144: SU063 | B144: U083 | C144: Ludlow-Mt. Holly UUSD | D144: 1300 | E144: TUITION RECEIVED | F144: 5 | G144: 1300 | H144: TUITION RECEIVED | I144: 37607 | J144: R
A145: SU063 | B145: U083 | C145: Ludlow-Mt. Holly UUSD | D145: 1500 | E145: EARNINGS ON INVESTMENTS | F145: 5 | G145: 1500 | H145: EARNINGS ON INVESTMENTS | I145: 500 | J145: R
A146: SU063 | B146: U083 | C146: Ludlow-Mt. Holly UUSD | D146: 1600 | E146: FOOD SERVICES | F146: 5 | G146: 1600 | H146: FOOD SERVICE (IF EXPENDITURES INCLUDED IN BUDGET) | I146: 20897 | J146: R
A147: SU063 | B147: U083 | C147: Ludlow-Mt. Holly UUSD | D147: 1900 | E147: OTHER REVENUE FROM LOCAL SOURCES | F147: 5 | G147: 1920 | H147: CONTRIBUTIONS AND DONATIONS RAISED BY THE LEA | I147: 500 | J147: R
A148: SU063 | B148: U083 | C148: Ludlow-Mt. Holly UUSD | D148: 1900 | E148: OTHER REVENUE FROM LOCAL SOURCES | F148: 5 | G148: 1999 | H148: ALL OTHER 1900 REVENUES (EXCEPT ACT 144 REVENUES) | I148: 37500 | J148: R
A149: SU063 | B149: U083 | C149: Ludlow-Mt. Holly UUSD | D149: 2900 | E149: INTERMEDIATE REVENUES - SUBGRANTS FROM THE SU | F149: 5 | G149: 2000 | H149: INTRMED. REVS - SUBGRANTS FROM SU-ALL EXC. ARRA FUNDS | I149: 68559 | J149: R
A150: SU063 | B150: U083 | C150: Ludlow-Mt. Holly UUSD | D150: 3100 | E150: UNRESTRICTED GRANTS IN AID | F150: 5 | G150: 3110 | H150: EDUCATION SPENDING GRANT | I150: 6670589 | J150: R
A151: SU063 | B151: U083 | C151: Ludlow-Mt. Holly UUSD | D151: 3100 | E151: UNRESTRICTED GRANTS IN AID | F151: 5 | G151: 3114 | H151: SUP TUITION GRANT FOR TECH CTRS DISTRIB BY STATE | I151: 89239 | J151: R
A152: SU063 | B152: U083 | C152: Ludlow-Mt. Holly UUSD | D152: 3100 | E152: UNRESTRICTED GRANTS IN AID | F152: 5 | G152: 3145 | H152: SMALL SCHOOLS GRANT | I152: 131426 | J152: R
A153: SU063 | B153: U083 | C153: Ludlow-Mt. Holly UUSD | D153: 5200 | E153: TRANSFERS | F153: 5 | G153: 5299 | H153: OTHER TRANSFERS | I153: 23178 | J153: R
A154: SU063 | B154: U083 | C154: Ludlow-Mt. Holly UUSD | D154: 5400 | E154: ADJUSTMENTS FOR PRIOR YEAR EXPENDITURES | F154: 5 | G154: 5480 | H154: MEDICAID-INCLUDES REVENUE CODES 5481-5483 | I154: 47450 | J154: R
A155: SU030 | B155: U082 | C155: First Branch USD | D155: 1500 | E155: EARNINGS ON INVESTMENTS | F155: 5 | G155: 1500 | H155: EARNINGS ON INVESTMENTS | I155: 5000 | J155: R
A156: SU030 | B156: U082 | C156: First Branch USD | D156: 1900 | E156: OTHER REVENUE FROM LOCAL SOURCES | F156: 5 | G156: 1920 | H156: CONTRIBUTIONS AND DONATIONS RAISED BY THE LEA | I156: 1000 | J156: R
A157: SU030 | B157: U082 | C157: First Branch USD | D157: 1900 | E157: OTHER REVENUE FROM LOCAL SOURCES | F157: 5 | G157: 1999 | H157: ALL OTHER 1900 REVENUES (EXCEPT ACT 144 REVENUES) | I157: 2959 | J157: R
A158: SU030 | B158: U082 | C158: First Branch USD | D158: 2900 | E158: INTERMEDIATE REVENUES - SUBGRANTS FROM THE SU | F158: 5 | G158: 2000 | H158: INTRMED. REVS - SUBGRANTS FROM SU-ALL EXC. ARRA FUNDS | I158: 97430 | J158: R
A159: SU030 | B159: U082 | C159: First Branch USD | D159: 3100 | E159: UNRESTRICTED GRANTS IN AID | F159: 5 | G159: 3110 | H159: EDUCATION SPENDING GRANT | I159: 6389448 | J159: R
A160: SU030 | B160: U082 | C160: First Branch USD | D160: 3100 | E160: UNRESTRICTED GRANTS IN AID | F160: 5 | G160: 3114 | H160: SUP TUITION GRANT FOR TECH CTRS DISTRIB BY STATE | I160: 118007 | J160: R
A161: SU030 | B161: U082 | C161: First Branch USD | D161: 3100 | E161: UNRESTRICTED GRANTS IN AID | F161: 5 | G161: 3145 | H161: SMALL SCHOOLS GRANT | I161: 232235 | J161: R
A162: SU030 | B162: U082 | C162: First Branch USD | D162: 3100 | E162: UNRESTRICTED GRANTS IN AID | F162: 5 | G162: 3150 | H162: STATE AID TRANSPORTATION | I162: 94885 | J162: R
A163: SU030 | B163: U082 | C163: First Branch USD | D163: 6999 | E163: CARRY FWD-CUM UNRESERVED SURPLUS | F163: 5 | G163: 6999 | H163: CARRY FWD-CUM UNRESERVED SURPLUS | I163: 50000 | J163: R
A164: SU030 | B164: U081 | C164: Rochester-Stockbridge USD | D164: 1200 | E164: REVENUES FROM LOCAL GOVERNMENT - NOT LEAS | F164: 5 | G164: 1200 | H164: REVENUES FROM LOCAL GOVERNMENT - NOT LEAS | I164: 9000 | J164: R
A165: SU030 | B165: U081 | C165: Rochester-Stockbridge USD | D165: 1300 | E165: TUITION RECEIVED | F165: 5 | G165: 1300 | H165: TUITION RECEIVED | I165: 394836 | J165: R
A166: SU030 | B166: U081 | C166: Rochester-Stockbridge USD | D166: 1500 | E166: EARNINGS ON INVESTMENTS | F166: 5 | G166: 1500 | H166: EARNINGS ON INVESTMENTS | I166: 7500 | J166: R
A167: SU030 | B167: U081 | C167: Rochester-Stockbridge USD | D167: 1900 | E167: OTHER REVENUE FROM LOCAL SOURCES | F167: 5 | G167: 1999 | H167: ALL OTHER 1900 REVENUES (EXCEPT ACT 144 REVENUES) | I167: 3000 | J167: R
A168: SU030 | B168: U081 | C168: Rochester-Stockbridge USD | D168: 2900 | E168: INTERMEDIATE REVENUES - SUBGRANTS FROM THE SU | F168: 5 | G168: 2000 | H168: INTRMED. REVS - SUBGRANTS FROM SU-ALL EXC. ARRA FUNDS | I168: 144585 | J168: R
A169: SU030 | B169: U081 | C169: Rochester-Stockbridge USD | D169: 3100 | E169: UNRESTRICTED GRANTS IN AID | F169: 5 | G169: 3110 | H169: EDUCATION SPENDING GRANT | I169: 3362662 | J169: R
A170: SU030 | B170: U081 | C170: Rochester-Stockbridge USD | D170: 3100 | E170: UNRESTRICTED GRANTS IN AID | F170: 5 | G170: 3114 | H170: SUP TUITION GRANT FOR TECH CTRS DISTRIB BY STATE | I170: 36889 | J170: R
A171: SU030 | B171: U081 | C171: Rochester-Stockbridge USD | D171: 3100 | E171: UNRESTRICTED GRANTS IN AID | F171: 5 | G171: 3145 | H171: SMALL SCHOOLS GRANT | I171: 237671 | J171: R
A172: SU030 | B172: U081 | C172: Rochester-Stockbridge USD | D172: 3100 | E172: UNRESTRICTED GRANTS IN AID | F172: 5 | G172: 3150 | H172: STATE AID TRANSPORTATION | I172: 78376 | J172: R
A173: SU030 | B173: U081 | C173: Rochester-Stockbridge USD | D173: 4800 | E173: FEDERAL OFFSET PAYMENTS | F173: 5 | G173: 4800 | H173: FEDERAL OFFSET PAYMENTS | I173: 5866 | J173: R
A174: SU030 | B174: U081 | C174: Rochester-Stockbridge USD | D174: 6999 | E174: CARRY FWD-CUM UNRESERVED SURPLUS | F174: 5 | G174: 6999 | H174: CARRY FWD-CUM UNRESERVED SURPLUS | I174: 150000 | J174: R
A175: SU030 | B175: U080 | C175: Granville-Hancock UD | D175: 1500 | E175: EARNINGS ON INVESTMENTS | F175: 5 | G175: 1500 | H175: EARNINGS ON INVESTMENTS | I175: 500 | J175: R
A176: SU030 | B176: U080 | C176: Granville-Hancock UD | D176: 3100 | E176: UNRESTRICTED GRANTS IN AID | F176: 5 | G176: 3110 | H176: EDUCATION SPENDING GRANT | I176: 1533191 | J176: R
A177: SU030 | B177: U080 | C177: Granville-Hancock UD | D177: 3100 | E177: UNRESTRICTED GRANTS IN AID | F177: 5 | G177: 3114 | H177: SUP TUITION GRANT FOR TECH CTRS DISTRIB BY STATE | I177: 22506 | J177: R
A178: SU030 | B178: U080 | C178: Granville-Hancock UD | D178: 4800 | E178: FEDERAL OFFSET PAYMENTS | F178: 5 | G178: 4800 | H178: FEDERAL OFFSET PAYMENTS | I178: 13459 | J178: R
A179: SU030 | B179: U080 | C179: Granville-Hancock UD | D179: 6999 | E179: CARRY FWD-CUM UNRESERVED SURPLUS | F179: 5 | G179: 6999 | H179: CARRY FWD-CUM UNRESERVED SURPLUS | I179: 250000 | J179: R
A180: SU030 | B180: U079 | C180: White River UD | D180: 1300 | E180: TUITION RECEIVED | F180: 5 | G180: 1300 | H180: TUITION RECEIVED | I180: 630312 | J180: R
A181: SU030 | B181: U079 | C181: White River UD | D181: 1500 | E181: EARNINGS ON INVESTMENTS | F181: 5 | G181: 1500 | H181: EARNINGS ON INVESTMENTS | I181: 11000 | J181: R
A182: SU030 | B182: U079 | C182: White River UD | D182: 1900 | E182: OTHER REVENUE FROM LOCAL SOURCES | F182: 5 | G182: 1999 | H182: ALL OTHER 1900 REVENUES (EXCEPT ACT 144 REVENUES) | I182: 7000 | J182: R
A183: SU030 | B183: U079 | C183: White River UD | D183: 2900 | E183: INTERMEDIATE REVENUES - SUBGRANTS FROM THE SU | F183: 5 | G183: 2000 | H183: INTRMED. REVS - SUBGRANTS FROM SU-ALL EXC. ARRA FUNDS | I183: 143346 | J183: R
A184: SU030 | B184: U079 | C184: White River UD | D184: 3100 | E184: UNRESTRICTED GRANTS IN AID | F184: 5 | G184: 3110 | H184: EDUCATION SPENDING GRANT | I184: 11091462 | J184: R
A185: SU030 | B185: U079 | C185: White River UD | D185: 3100 | E185: UNRESTRICTED GRANTS IN AID | F185: 5 | G185: 3114 | H185: SUP TUITION GRANT FOR TECH CTRS DISTRIB BY STATE | I185: 145405 | J185: R
A186: SU030 | B186: U079 | C186: White River UD | D186: 3100 | E186: UNRESTRICTED GRANTS IN AID | F186: 5 | G186: 3150 | H186: STATE AID TRANSPORTATION | I186: 169385 | J186: R
A187: SU030 | B187: U079 | C187: White River UD | D187: 3100 | E187: UNRESTRICTED GRANTS IN AID | F187: 5 | G187: 3199 | H187: ALL OTHER 3100 REVENUE | I187: 56695 | J187: R
A188: SU030 | B188: U079 | C188: White River UD | D188: 6999 | E188: CARRY FWD-CUM UNRESERVED SURPLUS | F188: 5 | G188: 6999 | H188: CARRY FWD-CUM UNRESERVED SURPLUS | I188: 200000 | J188: R
A189: SU009 | B189: U078 | C189: Caledonia Cooperative UUSD | D189: 1300 | E189: TUITION RECEIVED | F189: 5 | G189: 1300 | H189: TUITION RECEIVED | I189: 206250 | J189: R
A190: SU009 | B190: U078 | C190: Caledonia Cooperative UUSD | D190: 1500 | E190: EARNINGS ON INVESTMENTS | F190: 5 | G190: 1500 | H190: EARNINGS ON INVESTMENTS | I190: 75000 | J190: R
A191: SU009 | B191: U078 | C191: Caledonia Cooperative UUSD | D191: 1900 | E191: OTHER REVENUE FROM LOCAL SOURCES | F191: 5 | G191: 1999 | H191: ALL OTHER 1900 REVENUES (EXCEPT ACT 144 REVENUES) | I191: 4000 | J191: R
A192: SU009 | B192: U078 | C192: Caledonia Cooperative UUSD | D192: 3100 | E192: UNRESTRICTED GRANTS IN AID | F192: 5 | G192: 3110 | H192: EDUCATION SPENDING GRANT | I192: 11666324 | J192: R
A193: SU009 | B193: U078 | C193: Caledonia Cooperative UUSD | D193: 3100 | E193: UNRESTRICTED GRANTS IN AID | F193: 5 | G193: 3114 | H193: SUP TUITION GRANT FOR TECH CTRS DISTRIB BY STATE | I193: 23778 | J193: R
A194: SU009 | B194: U078 | C194: Caledonia Cooperative UUSD | D194: 3100 | E194: UNRESTRICTED GRANTS IN AID | F194: 5 | G194: 3145 | H194: SMALL SCHOOLS GRANT | I194: 177280 | J194: R
A195: SU009 | B195: U078 | C195: Caledonia Cooperative UUSD | D195: 3200 | E195: RESTRICTED REVENUE (3200-3799) | F195: 5 | G195: 3200 | H195: RESTRICTED REVENUE (3200-3799) | I195: 5500 | J195: R
A196: SU009 | B196: U078 | C196: Caledonia Cooperative UUSD | D196: 6999 | E196: CARRY FWD-CUM UNRESERVED SURPLUS | F196: 5 | G196: 6999 | H196: CARRY FWD-CUM UNRESERVED SURPLUS | I196: 475000 | J196: R
A197: SU063 | B197: U077 | C197: Green Mountain USD | D197: 1100 | E197: STATUTORY TAXES | F197: 5 | G197: 1170 | H197: NON-PROPERTY TAXES/IMPACT FEES | I197: 500000 | J197: R
A198: SU063 | B198: U077 | C198: Green Mountain USD | D198: 1300 | E198: TUITION RECEIVED | F198: 5 | G198: 1300 | H198: TUITION RECEIVED | I198: 968000 | J198: R
A199: SU063 | B199: U077 | C199: Green Mountain USD | D199: 1500 | E199: EARNINGS ON INVESTMENTS | F199: 5 | G199: 1500 | H199: EARNINGS ON INVESTMENTS | I199: 2403 | J199: R
A200: SU063 | B200: U077 | C200: Green Mountain USD | D200: 1600 | E200: FOOD SERVICES | F200: 5 | G200: 1600 | H200: FOOD SERVICE (IF EXPENDITURES INCLUDED IN BUDGET) | I200: 68300 | J200: R
... 777 more rows

Sheet FY23BUD
A1: DISTID | B1: ACT_EXP | C1: ACT_REV | D1: ACT_EdSpnd | E1: GOVID | F1: FY | G1: SUID | N1: Updated: | O1: 2023-05-01 | Q1: Tot Exp | R1: Off Rev | S1: Ed Spend
A2: U061 | B2: 32665311 | C2: 4047597 | D2: 28617714 | E2: =A2 -> U061 | F2: FY23 | G2: 1 | I2: Data are sorted by SUid then DISTID - bcj | M2: U061 | N2: Mt. Abraham USD | P2: FY23Fin v05 | Q2: 1954323361 | R2: 377625188 | S2: 1576698173
A3: U054 | B3: 22327585 | C3: 3795216 | D3: 18532369 | E3: U054 | F3: FY23 | G3: 2 | M3: U054 | N3: Addison NW USD | Q3: =SUM(B$2:B$241) -> 1954323361 | R3: =SUM(C$2:C$241) -> 377625188 | S3: =SUM(D$2:D$241) -> 1576698173
A4: U055 | B4: 43901188 | C4: 9337870 | D4: 34563318 | E4: U055 | F4: FY23 | G4: 3 | I4: Update column A with prior year districts | M4: U055 | N4: Addison Central USD | P4: Check | Q4: =Q2-Q3 -> 0 | R4: =R2-R3 -> 0 | S4: 0
A5: U062 | B5: 26236547 | C5: 4638426 | D5: 21598121 | E5: U062 | F5: FY23 | G5: 4 | J5: ACT_EXP | M5: U062 | N5: Slate Valley USD
A6: T141 | B6: 3224363 | C6: 152700 | D6: 3071663 | E6: T141 | F6: FY23 | G6: 5 | J6: ACT_REV | M6: T141 | N6: North Bennington ID
A7: T259 | B7: 0 | C7: 0 | D7: 0 | E7: =A7 -> T259 | F7: FY23 | G7: 5 | J7: ACT_REV | M7: T259 | N7: Glastenbury
A8: U014 | B8: 28615127 | C8: 3156944 | D8: 25458183 | E8: U014 | F8: FY23 | G8: 5 | J8: ACT_EdSpnd | M8: U014 | N8: Mt. Anthony UHSD
A9: U087 | B9: 26425265 | C9: 2352095 | D9: 24073170 | E9: U087 | F9: FY23 | G9: 5 | M9: U087 | N9: Southwest Vermont UESD
A10: T248 | B10: 4981546 | C10: 142104 | D10: 4839442 | E10: T248 | F10: FY23 | G10: 6 | M10: T248 | N10: Winhall
A11: U063 | B11: 34558626 | C11: 1870875 | D11: 32687751 | E11: U063 | F11: FY23 | G11: 6 | J11: col A = col F | M11: U063 | N11: Taconic & Green Regional USD
A12: U084 | B12: 6049284 | C12: 525639 | D12: 5523645 | E12: U084 | F12: FY23 | G12: 6 | M12: U084 | N12: Mettawee School District
A13: T050 | B13: 48563209 | C13: 10926062 | D13: 37637147 | E13: T050 | F13: FY23 | G13: 7 | M13: T050 | N13: Colchester
A14: T038 | B14: 3450377 | C14: 212750 | D14: 3237627 | E14: T038 | F14: FY23 | G14: 9 | M14: T038 | N14: Cabot
A15: T057 | B15: 6723233 | C15: 855250 | D15: 5867983 | E15: T057 | F15: FY23 | G15: 9 | M15: T057 | N15: Danville
A16: T151 | B16: 2108382 | C16: 87741 | D16: 2020641 | E16: T151 | F16: FY23 | G16: 9 | M16: T151 | N16: Peacham
A17: U033 | B17: 6615566 | C17: 19500 | D17: 6596066 | E17: U033 | F17: FY23 | G17: 9 | M17: U033 | N17: Twinfield USD
A18: U078 | B18: 12633132 | C18: 943030 | D18: 11690102 | E18: U078 | F18: FY23 | G18: 9 | M18: U078 | N18: Caledonia Cooperative USD
A19: T126 | B19: 36008264 | C19: 8856601 | D19: 27151663 | E19: T126 | F19: FY23 | G19: 10 | M19: T126 | N19: Milton
A20: T179 | B20: 24073926 | C20: 5187661 | D20: 18886265 | E20: T179 | F20: FY23 | G20: 11 | M20: T179 | N20: St. Johnsbury
A21: T255 | B21: 0 | C21: 0 | D21: 0 | E21: T255 | F21: FY23 | G21: 12 | M21: T255 | N21: Buels Gore
A22: U401 | B22: 52410895 | C22: 8870143 | D22: 43540752 | E22: U401 | F22: FY23 | G22: 12 | M22: U401 | N22: Mt. Mansfield UUSD
A23: U056 | B23: 89397762 | C23: 13441359 | D23: 75956403 | E23: U056 | F23: FY23 | G23: 14 | M23: U056 | N23: Champlain Valley USD
A24: T037 | B24: 101397316 | C24: 27299618 | D24: 74097698 | E24: T037 | F24: FY23 | G24: 15 | M24: T037 | N24: Burlington
A25: T191 | B25: 58344602 | C25: 13599887 | D25: 44744715 | E25: T191 | F25: FY23 | G25: 16 | M25: T191 | N25: South Burlington
A26: T249 | B26: 30528987 | C26: 12515366 | D26: 18013621 | E26: T249 | F26: FY23 | G26: 17 | M26: T249 | N26: Winooski ID
A27: T041 | B27: 4518062 | C27: 1740167 | D27: 2777895 | E27: T041 | F27: FY23 | G27: 19 | M27: T041 | N27: Canaan
A28: T256 | B28: 0 | C28: 0 | D28: 0 | E28: =A28 -> T256 | F28: FY23 | G28: 19 | M28: T256 | N28: Averill
A29: T257 | B29: 0 | C29: 0 | D29: 0 | E29: T257 | F29: FY23 | G29: 19 | M29: T257 | N29: Avery's Gore
A30: T258 | B30: 0 | C30: 0 | D30: 0 | E30: T258 | F30: FY23 | G30: 19 | M30: T258 | N30: Ferdinand
A31: T260 | B31: 0 | C31: 0 | D31: 0 | E31: =A31 -> T260 | F31: FY23 | G31: 19 | M31: T260 | N31: Lewis
A32: T262 | B32: 0 | C32: 0 | D32: 0 | E32: T262 | F32: FY23 | G32: 19 | M32: T262 | N32: Warner's Grant
A33: T263 | B33: 0 | C33: 0 | D33: 0 | E33: T263 | F33: FY23 | G33: 19 | M33: T263 | N33: Warrens Gore
A34: U065 | B34: 5814523 | C34: 1000 | D34: 5813523 | E34: U065 | F34: FY23 | G34: 19 | M34: U065 | N34: Northeast Kingdom Choice USD
A35: U085 | B35: 18210899 | C35: 843275 | D35: 17367624 | E35: U085 | F35: FY23 | G35: 20 | M35: U085 | N35: Northern Mountain Valley UUSD
A36: U088 | B36: 20174531 | C36: 4528946 | D36: 15645585 | E36: U088 | F36: FY23 | G36: 20 | M36: U088 | N36: Enosburgh-Richford USD
A37: U089 | B37: 40767254 | C37: 11338157 | D37: 29429097 | E37: U089 | F37: FY23 | G37: 21 | M37: U089 | N37: Missisquois Valley School District
A38: T071 | B38: 15703216 | C38: 1950284 | D38: 13752932 | E38: T071 | F38: FY23 | G38: 22 | M38: T071 | N38: Fairfax
A39: T077 | B39: 3904745 | C39: 290913 | D39: 3613832 | E39: T077 | F39: FY23 | G39: 22 | M39: T077 | N39: Fletcher
A40: T079 | B40: 14562325 | C40: 254287 | D40: 14308038 | E40: =A40 -> T079 | F40: FY23 | G40: 22 | M40: T079 | N40: Georgia
A41: U057 | B41: 64797075 | C41: 18843139 | D41: 45953936 | E41: U057 | F41: FY23 | G41: 23 | M41: U057 | N41: Maple Run USD
A42: T003 | B42: 6788276 | C42: 627250 | D42: 6161026 | E42: T003 | F42: FY23 | G42: 24 | M42: T003 | N42: Alburgh
A43: T192 | B43: 4273851 | C43: 516478 | D43: 3757373 | E43: T192 | F43: FY23 | G43: 24 | M43: T192 | N43: South Hero
A44: U066 | B44: 8746096 | C44: 1103400 | D44: 7642696 | E44: U066 | F44: FY23 | G44: 24 | M44: U066 | N44: Champlain Islands UUSD
A45: T040 | B45: 6351467 | C45: 892455 | D45: 5459012 | E45: T040 | F45: FY23 | G45: 25 | M45: T040 | N45: Cambridge
A46: U058A | B46: 15018228 | C46: 2024595 | D46: 12993633 | E46: U058A | F46: FY23 | G46: 25 | M46: U058A | N46: Lamoille North MUSD
A47: U058B | B47: 18889884 | C47: 4962324 | D47: 13927560 | E47: U058B | F47: FY23 | G47: 25 | M47: U058B | N47: Lamoille North MUSD
A48: T198 | B48: 0 | C48: 0 | D48: 0 | E48: =A48 -> T198 | F48: FY23 | G48: 26 | I48: New for FY2024 - out of U090 | M48: T198 | N48: Stowe | P48: New for FY2024 - out of U090
A49: U090 | B49: 34061025 | C49: 5595600 | D49: 28465425 | E49: U090 | F49: FY23 | G49: 26 | M49: U090 | N49: Lamoille South USD
A50: T205 | B50: 8792973 | C50: 111500 | D50: 8681473 | E50: T205 | F50: FY23 | G50: 27 | M50: T205 | N50: Thetford
A51: U021 | B51: 8459981 | C51: 1209092 | D51: 7250889 | E51: U021 | F51: FY23 | G51: 27 | M51: U021 | N51: Blue Mountain USD
A52: U036 | B52: 6514298 | C52: 437336 | D52: 6076962 | E52: U036 | F52: FY23 | G52: 27 | M52: U036 | N52: Waits River Valley USD
A53: U091 | B53: 17561635 | C53: 4855151 | D53: 12706484 | E53: U091 | F53: FY23 | G53: 27 | M53: U091 | N53: Oxbow UUSD
A54: U059 | B54: 22165294 | C54: 5250916 | D54: 16914378 | E54: U059 | F54: FY23 | G54: 28 | M54: U059 | N54: Orange Southwest USD
A55: T184 | B55: 5402073 | C55: 271388 | D55: 5130685 | E55: T184 | F55: FY23 | G55: 30 | M55: T184 | N55: Sharon
A56: T199 | B56: 3545997 | C56: 248436 | D56: 3297561 | E56: T199 | F56: FY23 | G56: 30 | M56: T199 | N56: Strafford
A57: U079 | B57: 12454605 | C57: 1217738 | D57: 11236867 | E57: U079 | F57: FY23 | G57: 30 | M57: U079 | N57: White River USD
A58: U080 | B58: 1819656 | C58: 263959 | D58: 1555697 | E58: U080 | F58: FY23 | G58: 30 | M58: U080 | N58: Granville-Hancock USD
A59: U081 | B59: 4430385 | C59: 1030834 | D59: 3399551 | E59: U081 | F59: FY23 | G59: 30 | M59: U081 | N59: Rochester-Stockbridge USD
A60: U082 | B60: 6990964 | C60: 483509 | D60: 6507455 | E60: U082 | F60: FY23 | G60: 30 | M60: U082 | N60: First Branch USD
A61: T030 | B61: 2647679 | C61: 359307 | D61: 2288372 | E61: T030 | F61: FY23 | G61: 31 | M61: T030 | N61: Brighton
A62: T044 | B62: 2640591 | C62: 369219 | D62: 2271372 | E62: T044 | F62: FY23 | G62: 31 | M62: T044 | N62: Charleston
A63: T054 | B63: 3892304 | C63: 433827 | D63: 3458477 | E63: T054 | F63: FY23 | G63: 31 | M63: T054 | N63: Coventry
A64: T058 | B64: 6905823 | C64: 1809499 | D64: 5096324 | E64: T058 | F64: FY23 | G64: 31 | M64: T058 | N64: Derby
A65: T097 | B65: 708474 | C65: 33100 | D65: 675374 | E65: T097 | F65: FY23 | G65: 31 | M65: T097 | N65: Holland
A66: T105 | B66: 1138039 | C66: 50475 | D66: 1087564 | E66: T105 | F66: FY23 | G66: 31 | M66: T105 | N66: Jay
A67: T114 | B67: 2076805 | C67: 368922 | D67: 1707883 | E67: T114 | F67: FY23 | G67: 31 | M67: T114 | N67: Lowell
A68: T131 | B68: 552311 | C68: 78752 | D68: 473559 | E68: T131 | F68: FY23 | G68: 31 | M68: T131 | N68: Morgan
A69: T139 | B69: 7073045 | C69: 763136 | D69: 6309909 | E69: T139 | F69: FY23 | G69: 31 | M69: T139 | N69: Newport City
A70: T140 | B70: 3162165 | C70: 373718 | D70: 2788447 | E70: T140 | F70: FY23 | G70: 31 | M70: T140 | N70: Newport Town
A71: T209 | B71: 3965952 | C71: 554225 | D71: 3411727 | E71: T209 | F71: FY23 | G71: 31 | M71: T209 | N71: Troy
A72: T231 | B72: 619330 | C72: 36143 | D72: 583187 | E72: T231 | F72: FY23 | G72: 31 | M72: T231 | N72: Westfield
A73: U022A | B73: 5698400 | C73: 816037 | D73: 4882363 | E73: =A73 -> U022A | F73: FY23 | G73: 31 | M73: U022A | N73: North Country Jr UHSD
A74: U022B | B74: 15123836 | C74: 1481090 | D74: 13642746 | E74: U022B | F74: FY23 | G74: 31 | M74: U022B | N74: North Country Sr UHSD
A75: U092 | B75: 36169267 | C75: 7348250 | D75: 28821017 | E75: U092 | F75: FY23 | G75: 32 | M75: U092 | N75: Washington Central USD
A76: U052 | B76: 18637991 | C76: 4763486 | D76: 13874505 | E76: U052 | F76: FY23 | G76: 33 | M76: U052 | N76: Mill River USD
A77: U024 | B77: 7113271 | C77: 1390392 | D77: 5722879 | E77: U024 | F77: FY23 | G77: 34 | M77: U024 | N77: Lake Region UHSD
A78: U093 | B78: 12841735 | C78: 2112653 | D78: 10729082 | E78: U093 | F78: FY23 | G78: 34 | M78: U093 | N78: Lake Region Union Elementary-Middle School district
A79: T055 | B79: 4109542 | C79: 864592 | D79: 3244950 | E79: T055 | F79: FY23 | G79: 35 | M79: T055 | N79: Craftsbury
A80: T195 | B80: 281210 | C80: 14270 | D80: 266940 | E80: T195 | F80: FY23 | G80: 35 | M80: T195 | N80: Stannard
A81: T250 | B81: 5049244 | C81: 89223 | D81: 4960021 | E81: T250 | F81: FY23 | G81: 35 | M81: T250 | N81: Wolcott
A82: U026 | B82: 6946481 | C82: 492304 | D82: 6454177 | E82: U026 | F82: FY23 | G82: 35 | M82: U026 | N82: Hazen UHSD
A83: U094 | B83: 7136165 | C83: 656164 | D83: 6480001 | E83: U094 | F83: FY23 | G83: 35 | M83: U094 | N83: Orleans Southwest UESD
A84: U049 | B84: 5797333 | C84: 143549 | D84: 5653784 | E84: U049 | F84: FY23 | G84: 36 | M84: U049 | N84: Barstow USD
A85: U053 | B85: 22705955 | C85: 1014045 | D85: 21691910 | E85: U053 | F85: FY23 | G85: 36 | M85: U053 | N85: Otter Valley USD
A86: T173 | B86: 61649209 | C86: 25376318 | D86: 36272891 | E86: T173 | F86: FY23 | G86: 40 | M86: T173 | N86: Rutland City
A87: U060 | B87: 42655858 | C87: 7477794 | D87: 35178064 | E87: U060 | F87: FY23 | G87: 42 | M87: U060 | N87: Harwood USD
A88: T120 | B88: 3714001 | C88: 233194 | D88: 3480807 | E88: T120 | F88: FY23 | G88: 46 | M88: T120 | N88: Marlboro
A89: T200 | B89: 1379648 | C89: 181965 | D89: 1197683 | E89: T200 | F89: FY23 | G89: 46 | M89: T200 | N89: Stratton
A90: T246 | B90: 434000 | C90: 64390 | D90: 369610 | E90: T246 | F90: FY23 | G90: 46 | M90: T246 | N90: Windham
A91: U072A | B91: 5676671 | C91: 300326 | D91: 5376345 | E91: U072A | F91: FY23 | G91: 46 | M91: U072A | N91: West River Modified Union Education District
A92: U072B | B92: 7238329 | C92: 691298 | D92: 6547031 | E92: U072B | F92: FY23 | G92: 46 | M92: U072B | N92: West River UED
A93: U073 | B93: 6255575 | C93: 354662 | D93: 5900913 | E93: U073 | F93: FY23 | G93: 46 | M93: U073 | N93: River Valleys USD
A94: T169 | B94: 9697976 | C94: 1171688 | D94: 8526288 | E94: T169 | F94: FY23 | G94: 47 | M94: T169 | N94: Rockingham
A95: T234 | B95: 4618770 | C95: 0 | D95: 4618770 | E95: =A95 -> T234 | F95: FY23 | G95: 47 | M95: T234 | N95: Westminster
A96: U027 | B96: 7310950 | C96: 142942 | D96: 7168008 | E96: U027 | F96: FY23 | G96: 47 | M96: U027 | N96: Bellows Falls UHSD
A97: U095 | B97: 1776984 | C97: 0 | D97: 1776984 | E97: U095 | F97: FY23 | G97: 47 | M97: U095 | N97: Windham Northeast UESD
A98: T214 | B98: 7137725 | C98: 755422 | D98: 6382303 | E98: T214 | F98: FY23 | G98: 48 | M98: T214 | N98: Vernon
A99: U096 | B99: 60293834 | C99: 12589188 | D99: 47704646 | E99: U096 | F99: FY23 | G99: 48 | M99: U096 | N99: Windham Southeast USD
A100: T090 | B100: 2152350 | C100: 486163 | D100: 1666187 | E100: T090 | F100: FY23 | G100: 49 | M100: T090 | N100: Halifax
A101: T164 | B101: 1535228 | C101: 331202 | D101: 1204026 | E101: T164 | F101: FY23 | G101: 49 | M101: T164 | N101: Readsboro
A102: T182 | B102: 444216 | C102: 80115 | D102: 364101 | E102: T182 | F102: FY23 | G102: 49 | M102: T182 | N102: Searsburg
A103: T194 | B103: 2159300 | C103: 572863 | D103: 1586437 | E103: T194 | F103: FY23 | G103: 49 | M103: T194 | N103: Stamford
A104: T261 | B104: 31000 | C104: 0 | D104: 31000 | E104: =A104 -> T261 | F104: FY23 | G104: 49 | M104: T261 | N104: Somerset
A105: U075 | B105: 10177905 | C105: 2031073 | D105: 8146832 | E105: U075 | F105: FY23 | G105: 49 | M105: U075 | N105: Twin Valley USD
A106: T009 | B106: 0 | C106: 0 | D106: 0 | E106: T009 | F106: FY23 | G106: 51 | M106: T009 | N106: Barnard
A107: T153 | B107: 948188 | C107: 178700 | D107: 769488 | E107: T153 | F107: FY23 | G107: 51 | M107: T153 | N107: Pittsfield
A108: U076 | B108: 24314318 | C108: 5520109 | D108: 18794209 | E108: =A108 -> U076 | F108: FY23 | G108: 51 | M108: U076 | N108: Windsor Central UUSD
A109: T094 | B109: 9581349 | C109: 338490 | D109: 9242859 | E109: T094 | F109: FY23 | G109: 52 | M109: T094 | N109: Hartland
A110: T227 | B110: 6964373 | C110: 100305 | D110: 6864068 | E110: T227 | F110: FY23 | G110: 52 | M110: T227 | N110: Weathersfield
A111: U086 | B111: 13102873 | C111: 2362598 | D111: 10740275 | E111: U086 | F111: FY23 | G111: 52 | M111: U086 | N111: Mount Ascutney USD
A112: T093 | B112: 43687968 | C112: 18711216 | D112: 24976752 | E112: T093 | F112: FY23 | G112: 54 | M112: T093 | N112: Hartford
A113: T145 | B113: 14923286 | C113: 1713532 | D113: 13209754 | E113: T145 | F113: FY23 | G113: 55 | M113: T145 | N113: Norwich
A114: T193 | B114: 33739951 | C114: 9444770 | D114: 24295181 | E114: T193 | F114: FY23 | G114: 56 | M114: T193 | N114: Springfield
A115: T005 | B115: 7413793 | C115: 737588 | D115: 6676205 | E115: T005 | F115: FY23 | G115: 60 | M115: T005 | N115: Arlington
A116: T181 | B116: 1020065 | C116: 800 | D116: 1019265 | E116: T181 | F116: FY23 | G116: 60 | M116: T181 | N116: Sandgate
A117: U097 | B117: 47254319 | C117: 9762385 | D117: 37491934 | E117: U097 | F117: FY23 | G117: 61 | M117: U097 | N117: Barre USD
A118: U077 | B118: 14705015 | C118: 1956183 | D118: 12748832 | E118: U077 | F118: FY23 | G118: 63 | M118: U077 | N118: Green Mountain USD
A119: U083 | B119: 7412147 | C119: 652319 | D119: 6759828 | E119: U083 | F119: FY23 | G119: 63 | M119: U083 | N119: Ludlow-Mt. Holly UUSD
A120: U146 | B120: 9445265 | C120: 2197164 | D120: 7248101 | E120: U146 | F120: FY23 | G120: 64 | M120: U146 | N120: Rivendell Interstate USD
A121: U051 | B121: 94235466 | C121: 26385152 | D121: 67850314 | E121: U051 | F121: FY23 | G121: 65 | M121: U051 | N121: Essex-Westford EC USD
A122: T101 | B122: 754392 | C122: 8236 | D122: 746156 | E122: T101 | F122: FY23 | G122: 66 | M122: T101 | N122: Ira
A123: T174 | B123: 9239524 | C123: 352883 | D123: 8886641 | E123: T174 | F123: FY23 | G123: 66 | M123: T174 | N123: Rutland Town
A124: U069 | B124: 5414148 | C124: 429212 | D124: 4984936 | E124: U069 | F124: FY23 | G124: 66 | M124: U069 | N124: Wells Spring USD
A125: U070 | B125: 19096030 | C125: 1834145 | D125: 17261885 | E125: U070 | F125: FY23 | G125: 66 | M125: U070 | N125: Quarry Valley USD
A126: U064 | B126: 37997215 | C126: 5138910 | D126: 32858305 | E126: U064 | F126: FY23 | G126: 67 | M126: U064 | N126: Kingdom East USD
A127: U067 | B127: 5437127 | C127: 581588 | D127: 4855539 | E127: U067 | F127: FY23 | G127: 68 | M127: U067 | N127: Echo Valley Community School District
A128: U068 | B128: 19145440 | C128: 1561179 | D128: 17584261 | E128: U068 | F128: FY23 | G128: 68 | M128: U068 | N128: Paine Mountain School District
A129: U071 | B129: 27198821 | C129: 4674180 | D129: 22524641 | E129: =A129 -> U071 | F129: FY23 | G129: 69 | I129: New for FY2024 - out of U061 and S001 | M129: U071 | N129: Montpelier Roxbury School District
A130: T112 | B130: 0 | C130: 0 | D130: 0 | E130: T112 | F130: FY23 | G130: 70 | M130: T112 | N130: Lincoln | P130: New for FY2024 - out of U061 and S001

Sheet FY23prefillData
A1: GovID | B1: LEAID | C1: FY24 FTEs | D1: On-behalf | E1: SpEd2yrprior | F1: SU | M1: For FY2024:
B2: Totals | C2: =SUM(C3:C320) -> 2227.02 | D2: =SUM(D3:D320) -> 24221068 | E2: =SUM(E3:E320) -> 590441 | F2: na | I2: Updated: | K2: 2142332 | M2: T112 | N2: Lincoln out of U061 Mt. Abraham USD and S001 | Q2: 5% local share of SpEd ExtOrd is at SU level.
A3: T031 | B3: Bristol | C3: 0 | D3: =ROUND(C3*$I$12,0) -> 0 | E3: 0 | F3: 1 | I3: 2023-05-01 | K3: =SUM(E3:E329) -> 590441 | M3: T198 | N3: Stowe out of U090 Lamoille South UUSD | Q3: Cannnot break it out to districts within SUs.
A4: T127 | B4: Monkton | C4: 0 | D4: 0 | E4: 0 | F4: 1 | K4: =K2-K3 -> 1551891
A5: T138 | B5: New Haven | C5: 0 | D5: 0 | E5: 0 | F5: 1
A6: T196 | B6: Starksboro | C6: 0 | D6: 0 | E6: 0 | F6: 1 | I6: 2227.02 | J6: FY23 6-sem avg total
A7: U061 | B7: Mt. Abraham USD | C7: 33.45 | D7: 363802 | E7: 38516 | F7: 1 | I7: =SUM(C3:C320) -> 2227.02
A8: T001 | B8: Addison | C8: 0 | D8: 0 | E8: 0 | F8: 2 | I8: =I6-I7 -> 0 | J8: Check
A9: T076 | B9: Ferrisburgh | C9: 0 | D9: 0 | E9: 0 | F9: 2
A10: T149 | B10: Panton | C10: 0 | D10: 0 | E10: 0 | F10: 2 | I10: 12501 | J10: FY23 based ed amt
A11: T213 | B11: Vergennes | C11: 0 | D11: 0 | E11: 0 | F11: 2 | I11: 0.87
A12: T220 | B12: Waltham | C12: 0 | D12: 0 | E12: 0 | F12: 2 | I12: =ROUND(I10*I11,0) -> 10876 | J12: CTE on-behalf payment
A13: U054 | B13: Addison NW USD | C13: 47.15 | D13: 512803 | E13: 24912 | F13: 2
A14: T029 | B14: Bridport | C14: 0 | D14: 0 | E14: 0 | F14: 3 | I14: =SUM(D3:D320) -> 24221068 | J14: CTE on-behalf payment
A15: T053 | B15: Cornwall | C15: 0 | D15: 0 | E15: 0 | F15: 3
A16: T123 | B16: Middlebury ID | C16: 0 | D16: 0 | E16: 0 | F16: 3 | I16: 1111877 | J16: What prior 2 yr ExtOrd Local Share should be
A17: T167 | B17: Ripton | C17: 0 | D17: 0 | E17: 0 | F17: 3 | I17: =$E$2 -> 590441 | J17: Column D - amount at supervisory district level
A18: T180 | B18: Salisbury | C18: 0 | D18: 0 | E18: 0 | F18: 3 | I18: =I16-I17 -> 521436 | J18: Amount at SU level that needs to be allocated to districts
A19: T189 | B19: Shoreham | C19: 0 | D19: 0 | E19: 0 | F19: 3
A20: T239 | B20: Weybridge | C20: 0 | D20: 0 | E20: 0 | F20: 3
A21: U055 | B21: Addison Central USD | C21: 48.08 | D21: 522918 | E21: 3703 | F21: 3
A22: T017 | B22: Benson | C22: 0 | D22: 0 | E22: 0 | F22: 4
A23: T042 | B23: Castleton | C23: 0 | D23: 0 | E23: 0 | F23: 4
A24: T073 | B24: Fair Haven | C24: 0 | D24: 0 | E24: 0 | F24: 4
A25: T098 | B25: Hubbardton | C25: 0 | D25: 0 | E25: 0 | F25: 4
A26: T148 | B26: Orwell | C26: 0 | D26: 0 | E26: 0 | F26: 4
A27: T233 | B27: West Haven | C27: 0 | D27: 0 | E27: 0 | F27: 4
A28: U062 | B28: Slate Valley USD | C28: 32.27 | D28: 350969 | E28: 1684 | F28: 4
A29: T005 | B29: Arlington | C29: 6.54 | D29: 71129 | E29: 0 | F29: 5
A30: T015 | B30: Bennington ID | C30: 0 | D30: 0 | E30: 0 | F30: 5
A31: T141 | B31: North Bennington ID | C31: 0 | D31: 0 | E31: 0 | F31: 5
A32: T159 | B32: Pownal | C32: 0 | D32: 0 | E32: 0 | F32: 5
A33: T181 | B33: Sandgate | C33: 1.06 | D33: 11529 | E33: 0 | F33: 5
A34: T183 | B34: Shaftsbury | C34: 0 | D34: 0 | E34: 0 | F34: 5
A35: T252 | B35: Woodford | C35: 0 | D35: 0 | E35: 0 | F35: 5
A36: T259 | B36: Glastenbury | C36: 0 | D36: 0 | E36: 0 | F36: 5
A37: U014 | B37: Mt. Anthony UHSD | C37: 135.77 | D37: 1476635 | E37: 0 | F37: 5
A38: U087 | B38: Southwest Vermont UESD | C38: 0 | D38: 0 | E38: 0 | F38: 5
A39: T056 | B39: Danby | C39: 0 | D39: 0 | E39: 0 | F39: 6
A40: T059 | B40: Dorset | C40: 0 | D40: 0 | E40: 0 | F40: 6
A41: T109 | B41: Landgrove | C41: 0 | D41: 0 | E41: 0 | F41: 6
A42: T113 | B42: Londonderry | C42: 0 | D42: 0 | E42: 0 | F42: 6
A43: T119 | B43: Manchester | C43: 0 | D43: 0 | E43: 0 | F43: 6
A44: T134 | B44: Mt. Tabor | C44: 0 | D44: 0 | E44: 0 | F44: 6
A45: T150 | B45: Pawlet | C45: 0 | D45: 0 | E45: 0 | F45: 6
A46: T152 | B46: Peru | C46: 0 | D46: 0 | E46: 0 | F46: 6
A47: T172 | B47: Rupert | C47: 0 | D47: 0 | E47: 0 | F47: 6
A48: T202 | B48: Sunderland | C48: 0 | D48: 0 | E48: 0 | F48: 6
A49: T236 | B49: Weston | C49: 0 | D49: 0 | E49: 0 | F49: 6
A50: T248 | B50: Winhall | C50: 0.61 | D50: 6634 | E50: 0 | F50: 6
A51: U063 | B51: Taconic & Green Regional USD | C51: 10.04 | D51: 109195 | E51: 0 | F51: 6
A52: U084 | B52: Mettawee School District | C52: 0.44 | D52: 4785 | E52: 0 | F52: 6
A53: T050 | B53: Colchester | C53: 46.79 | D53: 508888 | E53: 38428 | F53: 7
A54: T010 | B54: Barnet | C54: 0 | D54: 0 | E54: 0 | F54: 9
A55: T038 | B55: Cabot | C55: 1.66 | D55: 18054 | E55: 0 | F55: 9
A56: T057 | B56: Danville | C56: 0.5 | D56: 5438 | E56: 0 | F56: 9
A57: T121 | B57: Marshfield | C57: 0 | D57: 0 | E57: 0 | F57: 9
A58: T151 | B58: Peacham | C58: 0 | D58: 0 | E58: 0 | F58: 9
A59: T155 | B59: Plainfield | C59: 0 | D59: 0 | E59: 0 | F59: 9
A60: T218 | B60: Walden | C60: 0 | D60: 0 | E60: 0 | F60: 9
A61: T225 | B61: Waterford | C61: 0 | D61: 0 | E61: 0 | F61: 9
A62: U033 | B62: Twinfield USD | C62: 11.82 | D62: 128554 | E62: 0 | F62: 9
A63: U078 | B63: Caledonia Cooperative USD | C63: 2.57 | D63: 27951 | E63: 0 | F63: 9
A64: T126 | B64: Milton | C64: 39.09 | D64: 425143 | E64: 10127 | F64: 10
A65: T179 | B65: St. Johnsbury | C65: 0.14 | D65: 1523 | E65: 18644 | F65: 11
A66: T022 | B66: Bolton | C66: 0 | D66: 0 | E66: 0 | F66: 12
A67: T099 | B67: Huntington | C67: 0 | D67: =ROUND(C67*$I$12,0) -> 0 | E67: 0 | F67: 12
A68: T106 | B68: Jericho | C68: 0 | D68: 0 | E68: 0 | F68: 12
A69: T166 | B69: Richmond | C69: 0 | D69: 0 | E69: 0 | F69: 12
A70: T212 | B70: Underhill Town | C70: 0 | D70: 0 | E70: 0 | F70: 12
A71: T255 | B71: Buels Gore | C71: 0.17 | D71: 1849 | E71: 0 | F71: 12
A72: U401 | B72: Mt. Mansfield USD | C72: 64.15 | D72: 697695 | E72: 27902 | F72: 12
A73: T045 | B73: Charlotte | C73: 0 | D73: 0 | E73: 0 | F73: 14
A74: T096 | B74: Hinesburg | C74: 0 | D74: 0 | E74: 0 | F74: 14
A75: T178 | B75: St. George | C75: 0 | D75: 0 | E75: 0 | F75: 14
A76: T186 | B76: Shelburne | C76: 0 | D76: 0 | E76: 0 | F76: 14
A77: T244 | B77: Williston | C77: 0 | D77: 0 | E77: 0 | F77: 14
A78: U056 | B78: Champlain Valley USD | C78: 56.92 | D78: 619062 | E78: 23361 | F78: 14
A79: T037 | B79: Burlington | C79: 71.19 | D79: 774262 | E79: 37853 | F79: 15
A80: T191 | B80: South Burlington | C80: 24.48 | D80: 266244 | E80: 19522 | F80: 16
A81: T249 | B81: Winooski ID | C81: 27.16 | D81: 295392 | E81: 9836 | F81: 17
A82: T021 | B82: Bloomfield | C82: 0 | D82: 0 | E82: 0 | F82: 19
A83: T035 | B83: Brunswick | C83: 0 | D83: 0 | E83: 0 | F83: 19
A84: T041 | B84: Canaan | C84: 15.17 | D84: 164989 | E84: 0 | F84: 19
A85: T064 | B85: East Haven | C85: 0 | D85: 0 | E85: 0 | F85: 19
A86: T083 | B86: Granby | C86: 0 | D86: 0 | E86: 0 | F86: 19
A87: T088 | B87: Guildhall | C87: 0 | D87: 0 | E87: 0 | F87: 19
A88: T108 | B88: Kirby | C88: 0 | D88: 0 | E88: 0 | F88: 19
A89: T111 | B89: Lemington | C89: 0 | D89: 0 | E89: 0 | F89: 19
A90: T118 | B90: Maidstone | C90: 0 | D90: 0 | E90: 0 | F90: 19
A91: T144 | B91: Norton | C91: 0 | D91: 0 | E91: 0 | F91: 19
A92: T216 | B92: Victory | C92: 0 | D92: 0 | E92: 0 | F92: 19
A93: T256 | B93: Averill | C93: 0 | D93: 0 | E93: 0 | F93: 19
A94: T257 | B94: Avery's Gore | C94: 0 | D94: 0 | E94: 0 | F94: 19
A95: T258 | B95: Ferdinand | C95: 0.08 | D95: 870 | E95: 0 | F95: 19
A96: T260 | B96: Lewis | C96: 0 | D96: 0 | E96: 0 | F96: 19
A97: T262 | B97: Warner's Grant | C97: 0 | D97: 0 | E97: 0 | F97: 19
A98: T263 | B98: Warrens Gore | C98: 0 | D98: 0 | E98: 0 | F98: 19
A99: U065 | B99: Northeast Kingdom Choice USD | C99: 0.99 | D99: 10767 | E99: 0 | F99: 19
A100: T007 | B100: Bakersfield | C100: 0 | D100: 0 | E100: 0 | F100: 20 | I100: NMV USD B&B is not shown separately
A101: T018 | B101: Berkshire | C101: 0 | D101: 0 | E101: 0 | F101: 20
A102: T068 | B102: Enosburgh | C102: 0 | D102: 0 | E102: 0 | F102: 20
A103: T128 | B103: Montgomery | C103: 0 | D103: 0 | E103: 0 | F103: 20
A104: T165 | B104: Richford | C104: 0 | D104: 0 | E104: 0 | F104: 20
A105: T187 | B105: Sheldon | C105: 0 | D105: 0 | E105: 0 | F105: 20
A106: U085 | B106: Northern Mountain Valley UUSD | C106: 46.2 | D106: 502471 | E106: 0 | F106: 20
A107: U088 | B107: Enosburgh-Richford USD | C107: 36.73 | D107: 399475 | E107: 0 | F107: 20
A108: T078 | B108: Franklin | C108: 0 | D108: 0 | E108: 0 | F108: 21
A109: T095 | B109: Highgate | C109: 0 | D109: 0 | E109: 0 | F109: 21
A110: T204 | B110: Swanton | C110: 0 | D110: 0 | E110: 0 | F110: 21
A111: U089 | B111: Missisquois Valley School District | C111: 22.08 | D111: 240142 | E111: 21358 | F111: 21
A112: T071 | B112: Fairfax | C112: 26.55 | D112: 288758 | E112: 0 | F112: 22
A113: T077 | B113: Fletcher | C113: 8.75 | D113: 95165 | E113: 0 | F113: 22
A114: T079 | B114: Georgia | C114: 40.17 | D114: 436889 | E114: 0 | F114: 22
A115: T072 | B115: Fairfield | C115: 0 | D115: 0 | E115: 0 | F115: 23
A116: T176 | B116: St. Albans City | C116: 0 | D116: 0 | E116: 0 | F116: 23
A117: T177 | B117: St. Albans Town | C117: 0 | D117: 0 | E117: 0 | F117: 23
A118: U057 | B118: Maple Run USD | C118: 109.67 | D118: 1192771 | E118: 28861 | F118: 23
A119: T003 | B119: Alburgh | C119: 6.22 | D119: 67649 | E119: 0 | F119: 24
A120: T084 | B120: Grand Isle | C120: 0 | D120: 0 | E120: 0 | F120: 24
A121: T103 | B121: Isle La Motte | C121: 0 | D121: 0 | E121: 0 | F121: 24
A122: T143 | B122: North Hero | C122: 0 | D122: 0 | E122: 0 | F122: 24
A123: T192 | B123: South Hero | C123: 1.34 | D123: 14574 | E123: 0 | F123: 24
A124: U066 | B124: Champlain Islands UUSD | C124: 10.78 | D124: 117243 | E124: 0 | F124: 24
A125: T014 | B125: Belvidere | C125: 0 | D125: 0 | E125: 0 | F125: 25
A126: T040 | B126: Cambridge | C126: 0 | D126: 0 | E126: 0 | F126: 25
A127: T066 | B127: Eden | C127: 0 | D127: 0 | E127: 0 | F127: 25
A128: T100 | B128: Hyde Park | C128: 0 | D128: 0 | E128: 0 | F128: 25
A129: T107 | B129: Johnson | C129: 0 | D129: 0 | E129: 0 | F129: 25
A130: T226 | B130: Waterville | C130: 0 | D130: 0 | E130: 0 | F130: 25
A131: U058A | B131: Lamoille North MUSD | C131: 0 | D131: =ROUND(C131*$I$12,0) -> 0 | E131: 0 | F131: 25
A132: U058B | B132: Lamoille North MUSD | C132: 66.76 | D132: 726082 | E132: 0 | F132: 25
A133: T067 | B133: Elmore | C133: 0 | D133: 0 | E133: 0 | F133: 26
A134: T132 | B134: Morristown | C134: 0 | D134: 0 | E134: 0 | F134: 26
A135: T198 | B135: Stowe | C135: 3.33 | D135: 36217 | E135: 0 | F135: 26
A136: U090 | B136: Lamoille South USD | C136: 24.17 | D136: 262873 | E136: 3164 | F136: 26
A137: T023 | B137: Bradford ID | C137: 0 | D137: 0 | E137: 0 | F137: 27
A138: T052 | B138: Corinth | C138: 0 | D138: 0 | E138: 0 | F138: 27
A139: T087 | B139: Groton | C139: 0 | D139: 0 | E139: 0 | F139: 27
A140: T136 | B140: Newbury | C140: 0 | D140: 0 | E140: 0 | F140: 27
A141: T175 | B141: Ryegate | C141: 0 | D141: 0 | E141: 0 | F141: 27
A142: T205 | B142: Thetford | C142: 7.16 | D142: 77872 | E142: 0 | F142: 27
A143: T207 | B143: Topsham | C143: 0 | D143: 0 | E143: 0 | F143: 27
A144: T229 | B144: Wells River | C144: 0 | D144: 0 | E144: 0 | F144: 27
A145: U021 | B145: Blue Mountain USD | C145: 12.76 | D145: 138778 | E145: 0 | F145: 27
A146: U036 | B146: Waits River Valley UESD | C146: 13.9 | D146: 151176 | E146: 0 | F146: 27
A147: U091 | B147: Oxbow UHSD | C147: 33 | D147: 358908 | E147: 0 | F147: 27
A148: T024 | B148: Braintree | C148: 0 | D148: 0 | E148: 0 | F148: 28
A149: T032 | B149: Brookfield | C149: 0 | D149: 0 | E149: 0 | F149: 28
A150: T162 | B150: Randolph | C150: 0 | D150: 0 | E150: 0 | F150: 28
A151: U059 | B151: Orange Southwest USD | C151: 52.74 | D151: 573600 | E151: 11194 | F151: 28
A152: T020 | B152: Bethel | C152: 0 | D152: 0 | E152: 0 | F152: 30
A153: T046 | B153: Chelsea | C153: 0 | D153: 0 | E153: 0 | F153: 30
A154: T085 | B154: Granville | C154: 0 | D154: 0 | E154: 0 | F154: 30
A155: T091 | B155: Hancock | C155: 0 | D155: 0 | E155: 0 | F155: 30
A156: T168 | B156: Rochester | C156: 0 | D156: 0 | E156: 0 | F156: 30
A157: T171 | B157: Royalton | C157: 0 | D157: 0 | E157: 0 | F157: 30
A158: T184 | B158: Sharon | C158: 6.37 | D158: 69280 | E158: 0 | F158: 30
A159: T197 | B159: Stockbridge | C159: 0 | D159: 0 | E159: 0 | F159: 30
A160: T199 | B160: Strafford | C160: 2.14 | D160: 23275 | E160: 0 | F160: 30
A161: T210 | B161: Tunbridge | C161: 0 | D161: 0 | E161: 0 | F161: 30
A162: U079 | B162: White River USD | C162: 15.44 | D162: 167925 | E162: 0 | F162: 30
A163: U080 | B163: Granville-Hancock USD | C163: 2.63 | D163: 28604 | E163: 0 | F163: 30
A164: U081 | B164: Rochester-Stockbridge USD | C164: 3.96 | D164: 43069 | E164: 0 | F164: 30
A165: U082 | B165: First Branch USD | C165: 12 | D165: 130512 | E165: 0 | F165: 30
A166: T030 | B166: Brighton | C166: 0 | D166: 0 | E166: 0 | F166: 31
A167: T044 | B167: Charleston | C167: 0 | D167: 0 | E167: 0 | F167: 31
A168: T054 | B168: Coventry | C168: 5.67 | D168: 61667 | E168: 0 | F168: 31
A169: T058 | B169: Derby | C169: 0 | D169: 0 | E169: 0 | F169: 31
A170: T097 | B170: Holland | C170: 0 | D170: 0 | E170: 0 | F170: 31
A171: T105 | B171: Jay | C171: 0 | D171: 0 | E171: 0 | F171: 31
A172: T114 | B172: Lowell | C172: 0 | D172: 0 | E172: 0 | F172: 31
A173: T131 | B173: Morgan | C173: 0 | D173: 0 | E173: 0 | F173: 31
A174: T139 | B174: Newport City | C174: 0 | D174: 0 | E174: 0 | F174: 31
A175: T140 | B175: Newport Town | C175: 0 | D175: 0 | E175: 0 | F175: 31
A176: T209 | B176: Troy | C176: 0 | D176: 0 | E176: 0 | F176: 31
A177: T231 | B177: Westfield | C177: 0 | D177: 0 | E177: 0 | F177: 31
A178: U022A | B178: North Country Jr UHSD | C178: 0 | D178: 0 | E178: 0 | F178: 31
A179: U022B | B179: North Country Sr UHSD | C179: 131.07 | D179: 1425517 | E179: 0 | F179: 31
A180: T019 | B180: Berlin | C180: 0 | D180: 0 | E180: 0 | F180: 32
A181: T039 | B181: Calais | C181: 0 | D181: 0 | E181: 0 | F181: 32
A182: T065 | B182: East Montpelier | C182: 0 | D182: 0 | E182: 0 | F182: 32
A183: T124 | B183: Middlesex | C183: 0 | D183: 0 | E183: 0 | F183: 32
A184: T254 | B184: Worcester | C184: 0 | D184: 0 | E184: 0 | F184: 32
A185: U092 | B185: Washington Central USD | C185: 36.28 | D185: 394581 | E185: 22689 | F185: 32
A186: T049 | B186: Clarendon | C186: 0 | D186: 0 | E186: 0 | F186: 33
A187: T190 | B187: Shrewsbury | C187: 0 | D187: 0 | E187: 0 | F187: 33
A188: T206 | B188: Tinmouth | C188: 0 | D188: 0 | E188: 0 | F188: 33
A189: T219 | B189: Wallingford | C189: 0 | D189: 0 | E189: 0 | F189: 33
A190: U052 | B190: Mill River UHSD | C190: 25.28 | D190: 274945 | E190: 721 | F190: 33
A191: T002 | B191: Albany | C191: 0 | D191: 0 | E191: 0 | F191: 34
A192: T013 | B192: Barton ID | C192: 0 | D192: 0 | E192: 0 | F192: 34
A193: T034 | B193: Brownington | C193: 0 | D193: 0 | E193: 0 | F193: 34
A194: T080 | B194: Glover | C194: 0 | D194: 0 | E194: 0 | F194: 34
A195: T102 | B195: Irasburg | C195: 0 | D195: =ROUND(C195*$I$12,0) -> 0 | E195: 0 | F195: 34
A196: T147 | B196: Orleans ID | C196: 0 | D196: 0 | E196: 0 | F196: 34
A197: T235 | B197: Westmore | C197: 0 | D197: 0 | E197: 0 | F197: 34
A198: U024 | B198: Lake Region UHSD | C198: 18.35 | D198: 199575 | E198: 0 | F198: 34
A199: U093 | B199: Lake Region Union Elementary-Middle School district | C199: 0 | D199: 0 | E199: 0 | F199: 34
A200: T055 | B200: Craftsbury | C200: 3.33 | D200: 36217 | E200: 0 | F200: 35
... 120 more rows
